﻿Document Date,Purchase Order No,Line Item No,Supplier ID,Supplier Name ,Pro Class ID,Pro Class Description,Description of Goods or Service,Directorate / Service / Department,Expense Type,Expense Area,Net Order Value
01.10.2014,7500162805,1,140577,R Purcell Civil Eng Contractors LTD,391410,WORKS - CONSTRUCTION : Roads : Construction,purcell ltd invoice,EGEI,SUPPLIES/SERVICES,HIGH/DRAIN WORKS MGT,"46,000.00"
01.10.2014,7500162808,1,151661,Derwen College,171011,EDUCATION : Services : Children,Redacted Personal Data,CFW,NON MAINT SCH FEES,Post 16 - Element 3,"10,459.87"
01.10.2014,7500162808,2,151661,Derwen College,171011,EDUCATION : Services : Children,Redacted Personal Data,CFW,NON MAINT SCH FEES,Post 16 - Element 3,"10,459.87"
01.10.2014,7500162843,1,153151,Vision Integrated Security Ltd,192211,FACILITIES MGT : Security : Closed Circuit Television,Maintenance Contract,T & R ,SECURITY MEASURES,CCTV Central watch S,"1,229.17"
01.10.2014,7500162843,2,153151,Vision Integrated Security Ltd,192211,FACILITIES MGT : Security : Closed Circuit Television,Maintenance Contract,T & R ,SECURITY MEASURES,CCTV Central watch S,"1,229.17"
01.10.2014,7500162843,3,153151,Vision Integrated Security Ltd,192211,FACILITIES MGT : Security : Closed Circuit Television,Maintenance Contract,T & R ,SECURITY MEASURES,CCTV Central watch S,"1,229.17"
01.10.2014,7500162843,4,153151,Vision Integrated Security Ltd,192211,FACILITIES MGT : Security : Closed Circuit Television,Maintenance Contract,T & R ,SECURITY MEASURES,CCTV Central watch S,"1,229.17"
01.10.2014,7500162843,5,153151,Vision Integrated Security Ltd,192211,FACILITIES MGT : Security : Closed Circuit Television,Maintenance Contract,T & R ,SECURITY MEASURES,CCTV Central watch S,"1,229.17"
01.10.2014,7500162843,6,153151,Vision Integrated Security Ltd,192211,FACILITIES MGT : Security : Closed Circuit Television,Maintenance Contract,T & R ,SECURITY MEASURES,CCTV Central watch S,"1,229.17"
01.10.2014,7500162843,7,153151,Vision Integrated Security Ltd,192211,FACILITIES MGT : Security : Closed Circuit Television,Maintenance Contract,T & R ,SECURITY MEASURES,CCTV Central watch S,"1,229.17"
01.10.2014,7500162843,8,153151,Vision Integrated Security Ltd,192211,FACILITIES MGT : Security : Closed Circuit Television,Maintenance Contract,T & R ,SECURITY MEASURES,CCTV Central watch S,"1,229.17"
01.10.2014,7500162843,9,153151,Vision Integrated Security Ltd,192211,FACILITIES MGT : Security : Closed Circuit Television,Maintenance Contract,T & R ,SECURITY MEASURES,CCTV Central watch S,"1,229.17"
01.10.2014,7500162884,1,139038,MJB 24Hr Travel,361300,TRANSPORT : Passenger Transport,MJB - Run 120 M. You,CFW,CONT HIRE HOME TO SC,Home to School Tr,"16,900.00"
02.10.2014,7500162913,1,153084,Eastwood Grange Priory,171011,EDUCATION : Services : Children,Redacted Personal Data,CFW,EXT RES CARE FEES,CHILDREN'S HOMES,"8,365.50"
02.10.2014,7500162913,2,153084,Eastwood Grange Priory,171011,EDUCATION : Services : Children,Redacted Personal Data,CFW,EXT RES CARE FEES,CHILDREN'S HOMES,"13,849.76"
02.10.2014,7500162914,1,141787,Nugent House School,171000,EDUCATION : Services,Redacted Personal Data,CFW,NON MAINT SCH FEES,OTHER L.E.A. & IN,"51,514.33"
02.10.2014,7500162914,2,141787,Nugent House School,171000,EDUCATION : Services,Redacted Personal Data,CFW,NON MAINT SCH FEES,OTHER L.E.A. & IN,"51,514.33"
02.10.2014,7500162914,3,141787,Nugent House School,171000,EDUCATION : Services,Redacted Personal Data,CFW,NON MAINT SCH FEES,OTHER L.E.A. & IN,"51,514.33"
02.10.2014,7500162928,1,142249,Pennine Care NHS Trust,311600,MEDICAL : Services,Redacted Personal Data,CFW,PAYMENTS TO HA'S,ONE STOP RES CENTRE,"7,824.00"
02.10.2014,7500162928,2,142249,Pennine Care NHS Trust,311600,MEDICAL : Services,Redacted Personal Data,CFW,PAYMENTS TO HA'S,ONE STOP RES CENTRE,"22,937.00"
02.10.2014,7500162936,1,142249,Pennine Care NHS Trust,311600,MEDICAL : Services,Redacted Personal Data,CFW,PAYMENTS TO HA'S,ONE STOP RES CENTRE,"7,824.00"
02.10.2014,7500162936,2,142249,Pennine Care NHS Trust,311600,MEDICAL : Services,Redacted Personal Data,CFW,PAYMENTS TO HA'S,ONE STOP RES CENTRE,"22,937.00"
02.10.2014,7500162947,1,138372,Redacted Personal Data,171000,EDUCATION : Services,Redacted Personal Data,EGEI,AAC AGENCY,Bikeability Scheme,"1,050.00"
02.10.2014,7500162947,2,138372,Redacted Personal Data,171000,EDUCATION : Services,Redacted Personal Data,EGEI,AAC AGENCY,Bikeability Scheme,"1,200.00"
02.10.2014,7500162947,3,138372,Redacted Personal Data,171000,EDUCATION : Services,Redacted Personal Data,EGEI,AAC AGENCY,Bikeability Scheme,"1,500.00"
02.10.2014,7500162947,4,138372,Redacted Personal Data,171000,EDUCATION : Services,Redacted Personal Data,EGEI,AAC AGENCY,Bikeability Scheme,600.00
02.10.2014,7500162947,5,138372,Redacted Personal Data,171000,EDUCATION : Services,Redacted Personal Data,EGEI,AAC AGENCY,Bikeability Scheme,"1,050.00"
02.10.2014,7500162951,1,151232,Redacted Personal Data,261500,HR : Training & Conferences,Redacted Personal Data,EGEI,AAC AGENCY,Bikeability Scheme,966.00
02.10.2014,7500162951,2,151232,Redacted Personal Data,261500,HR : Training & Conferences,Redacted Personal Data,EGEI,AAC AGENCY,Bikeability Scheme,"1,104.00"
02.10.2014,7500162951,3,151232,Redacted Personal Data,261500,HR : Training & Conferences,Redacted Personal Data,EGEI,AAC AGENCY,Bikeability Scheme,"1,380.00"
02.10.2014,7500162951,4,151232,Redacted Personal Data,261500,HR : Training & Conferences,Redacted Personal Data,EGEI,AAC AGENCY,Bikeability Scheme,552.00
02.10.2014,7500162951,5,151232,Redacted Personal Data,261500,HR : Training & Conferences,Redacted Personal Data,EGEI,AAC AGENCY,Bikeability Scheme,"1,242.00"
02.10.2014,7500162952,1,138374,Redacted Personal Data,171000,EDUCATION : Services,Redacted Personal Data,EGEI,AAC AGENCY,Bikeability Scheme,528.00
02.10.2014,7500162952,2,138374,Redacted Personal Data,171000,EDUCATION : Services,Redacted Personal Data,EGEI,AAC AGENCY,Bikeability Scheme,468.00
02.10.2014,7500162952,3,138374,Redacted Personal Data,171000,EDUCATION : Services,Redacted Personal Data,EGEI,AAC AGENCY,Bikeability Scheme,528.00
02.10.2014,7500162952,4,138374,Redacted Personal Data,171000,EDUCATION : Services,Redacted Personal Data,EGEI,AAC AGENCY,Bikeability Scheme,624.00
02.10.2014,7500162952,5,138374,Redacted Personal Data,171000,EDUCATION : Services,Redacted Personal Data,EGEI,AAC AGENCY,Bikeability Scheme,"1,056.00"
02.10.2014,7500162952,6,138374,Redacted Personal Data,171000,EDUCATION : Services,Redacted Personal Data,EGEI,AAC AGENCY,Bikeability Scheme,312.00
02.10.2014,7500162952,7,138374,Redacted Personal Data,171000,EDUCATION : Services,Redacted Personal Data,EGEI,AAC AGENCY,Bikeability Scheme,264.00
02.10.2014,7500162952,8,138374,Redacted Personal Data,171000,EDUCATION : Services,Redacted Personal Data,EGEI,AAC AGENCY,Bikeability Scheme,312.00
02.10.2014,7500162952,9,138374,Redacted Personal Data,171000,EDUCATION : Services,Redacted Personal Data,EGEI,AAC AGENCY,Bikeability Scheme,924.00
02.10.2014,7500162952,10,138374,Redacted Personal Data,171000,EDUCATION : Services,Redacted Personal Data,EGEI,AAC AGENCY,Bikeability Scheme,312.00
02.10.2014,7500162955,1,143564,By the Bridge North West Ltd,321111,SOCIAL CARE SERVICES : Children : Adoption & Fostering,Redacted Personal Data,CFW,CONT VOL BODIES,PLACEMENT FOSTERING,"28,471.50"
02.10.2014,7500162956,1,143564,By the Bridge North West Ltd,321111,SOCIAL CARE SERVICES : Children : Adoption & Fostering,Redacted Personal Data,CFW,CONT VOL BODIES,PLACEMENT FOSTERING,"27,432.54"
02.10.2014,7500162962,1,153157,AgilityWorks Ltd UK,151800,CONSULTANCY : IT,LL SAP Consultant Un,CFW,EXT PROJECT MAN,Capital Schemes,"16,150.00"
02.10.2014,7500162962,2,153157,AgilityWorks Ltd UK,151800,CONSULTANCY : IT,LL SAP Consultant Ad,CFW,EXT PROJECT MAN,Capital Schemes,"3,800.00"
02.10.2014,7500162962,3,153157,AgilityWorks Ltd UK,151800,CONSULTANCY : IT,LL SAP Consultant Ex,CFW,EXT PROJECT MAN,Capital Schemes,397.22
02.10.2014,7500162988,1,148333,Community Forest Trust,261500,HR : Training & Conferences,Trafford Countryside,EGEI,OTHER LA -GENERAL,TCMP (MERSEY VALLEY),"45,000.00"
02.10.2014,7500162998,1,136851,Trafford College,171010,EDUCATION : Services : Adult & Further Education,World Host Training:,EGEI,COURSES FOR YOUNG PE,Skills development,840.00
02.10.2014,7500162998,2,136851,Trafford College,171010,EDUCATION : Services : Adult & Further Education,World Host Training:,EGEI,COURSES FOR YOUNG PE,Skills development,"3,780.00"
02.10.2014,7500162998,3,136851,Trafford College,171010,EDUCATION : Services : Adult & Further Education,World Host Training:,EGEI,COURSES FOR YOUNG PE,Skills development,300.00
02.10.2014,7500162998,4,136851,Trafford College,171010,EDUCATION : Services : Adult & Further Education,World Host Training:,EGEI,COURSES FOR YOUNG PE,Skills development,60.00
02.10.2014,7500162998,5,136851,Trafford College,171010,EDUCATION : Services : Adult & Further Education,World Host Training:,EGEI,COURSES FOR YOUNG PE,Skills development,60.00
02.10.2014,7500162998,6,136851,Trafford College,171010,EDUCATION : Services : Adult & Further Education,World Host Training:,EGEI,COURSES FOR YOUNG PE,Skills development,60.00
02.10.2014,7500162998,7,136851,Trafford College,171010,EDUCATION : Services : Adult & Further Education,World Host Training:,EGEI,COURSES FOR YOUNG PE,Skills development,60.00
03.10.2014,7500163060,1,151118,IRG Advisors LLP,261500,HR : Training & Conferences,Redacted Personal Data,T & R ,CONSULTANCY FEES,Financial Management,"13,650.00"
06.10.2014,7500163076,1,136048,F R SHARROCK LTD,241500,HORTICULTURAL : Tools & Equipment,Sharrocks Invoice Oc,EGEI,SERV & REP MOWERS,EN:GM ARBORICULTURE,"25,318.59"
07.10.2014,7500163092,1,142669,The David Lewis Centre,321214,SOCIAL CARE SERVICES : Disabled Children : Residential Care,Redacted Personal Data,CFW,NON MAINT SCH FEES,Post 16 - Element 3,"15,997.11"
07.10.2014,7500163092,2,142669,The David Lewis Centre,321214,SOCIAL CARE SERVICES : Disabled Children : Residential Care,Redacted Personal Data,CFW,NON MAINT SCH FEES,Post 16 - Element 3,"13,725.02"
07.10.2014,7500163092,3,142669,The David Lewis Centre,321214,SOCIAL CARE SERVICES : Disabled Children : Residential Care,Redacted Personal Data,CFW,NON MAINT SCH FEES,Post 16 - Element 3,"13,789.94"
07.10.2014,7500163092,4,142669,The David Lewis Centre,321214,SOCIAL CARE SERVICES : Disabled Children : Residential Care,Redacted Personal Data,CFW,NON MAINT SCH FEES,Post 16 - Element 3,"18,918.36"
07.10.2014,7500163092,5,142669,The David Lewis Centre,321214,SOCIAL CARE SERVICES : Disabled Children : Residential Care,Redacted Personal Data,CFW,NON MAINT SCH FEES,Post 16 - Element 3,"17,880.63"
07.10.2014,7500163092,6,142669,The David Lewis Centre,321214,SOCIAL CARE SERVICES : Disabled Children : Residential Care,Redacted Personal Data,CFW,NON MAINT SCH FEES,Post 16 - Element 3,"17,691.81"
07.10.2014,7500163133,1,153166,MCR Blackcab Ltd,171011,EDUCATION : Services : Children,MCBlackCabs Run 720,CFW,CONT HIRE HOME TO SC,Home to School Tr,"15,124.00"
07.10.2014,7500163209,1,153150,Enterprise (AOL) Ltd,231400,HIGHWAY EQUIPMENT & MATERIALS : Street Lighting,Enterprise August 20,EGEI,ELECT - STREET LIGHT,EN:WORKS MGT- ST LIG,65.00
07.10.2014,7500163209,2,153150,Enterprise (AOL) Ltd,231400,HIGHWAY EQUIPMENT & MATERIALS : Street Lighting,Enterprise August 20,EGEI,ELECT - STREET LIGHT,EN:WORKS MGT- ST LIG,113.00
07.10.2014,7500163209,3,153150,Enterprise (AOL) Ltd,231400,HIGHWAY EQUIPMENT & MATERIALS : Street Lighting,Enterprise August 20,EGEI,ELECT - STREET LIGHT,EN:WORKS MGT- ST LIG,32.00
07.10.2014,7500163209,4,153150,Enterprise (AOL) Ltd,231400,HIGHWAY EQUIPMENT & MATERIALS : Street Lighting,Enterprise August 20,EGEI,ELECT - STREET LIGHT,EN:WORKS MGT- ST LIG,180.50
07.10.2014,7500163209,5,153150,Enterprise (AOL) Ltd,231400,HIGHWAY EQUIPMENT & MATERIALS : Street Lighting,Enterprise August 20,EGEI,ELECT - STREET LIGHT,EN:WORKS MGT- ST LIG,367.50
07.10.2014,7500163209,6,153150,Enterprise (AOL) Ltd,231400,HIGHWAY EQUIPMENT & MATERIALS : Street Lighting,Enterprise August 20,EGEI,ELECT - STREET LIGHT,EN:WORKS MGT- ST LIG,195.00
07.10.2014,7500163209,7,153150,Enterprise (AOL) Ltd,231400,HIGHWAY EQUIPMENT & MATERIALS : Street Lighting,Enterprise August 20,EGEI,ELECT - STREET LIGHT,EN:WORKS MGT- ST LIG,149.00
07.10.2014,7500163209,8,153150,Enterprise (AOL) Ltd,231400,HIGHWAY EQUIPMENT & MATERIALS : Street Lighting,Enterprise August 20,EGEI,ELECT - STREET LIGHT,EN:WORKS MGT- ST LIG,52.50
07.10.2014,7500163209,9,153150,Enterprise (AOL) Ltd,231400,HIGHWAY EQUIPMENT & MATERIALS : Street Lighting,Enterprise August 20,EGEI,ELECT - STREET LIGHT,EN:WORKS MGT- ST LIG,52.50
07.10.2014,7500163209,10,153150,Enterprise (AOL) Ltd,231400,HIGHWAY EQUIPMENT & MATERIALS : Street Lighting,Enterprise August 20,EGEI,ELECT - STREET LIGHT,EN:WORKS MGT- ST LIG,37.00
07.10.2014,7500163209,11,153150,Enterprise (AOL) Ltd,231400,HIGHWAY EQUIPMENT & MATERIALS : Street Lighting,Enterprise August 20,EGEI,ELECT - STREET LIGHT,HIGH/DRAIN WORKS MGT,25.25
07.10.2014,7500163209,12,153150,Enterprise (AOL) Ltd,231400,HIGHWAY EQUIPMENT & MATERIALS : Street Lighting,Enterprise August 20,EGEI,ELECT - STREET LIGHT,EN:WORKS MGT- ST LIG,248.00
07.10.2014,7500163209,13,153150,Enterprise (AOL) Ltd,231400,HIGHWAY EQUIPMENT & MATERIALS : Street Lighting,Enterprise August 20,EGEI,ELECT - STREET LIGHT,EN:WORKS MGT- ST LIG,338.50
07.10.2014,7500163209,14,153150,Enterprise (AOL) Ltd,231400,HIGHWAY EQUIPMENT & MATERIALS : Street Lighting,Enterprise August 20,EGEI,ELECT - STREET LIGHT,EN:WORKS MGT- ST LIG,104.00
07.10.2014,7500163209,15,153150,Enterprise (AOL) Ltd,231400,HIGHWAY EQUIPMENT & MATERIALS : Street Lighting,Enterprise August 20,EGEI,ELECT - STREET LIGHT,EN:WORKS MGT- ST LIG,223.50
07.10.2014,7500163209,16,153150,Enterprise (AOL) Ltd,231400,HIGHWAY EQUIPMENT & MATERIALS : Street Lighting,Enterprise August 20,EGEI,ELECT - STREET LIGHT,EN:WORKS MGT- ST LIG,86.50
07.10.2014,7500163209,17,153150,Enterprise (AOL) Ltd,231400,HIGHWAY EQUIPMENT & MATERIALS : Street Lighting,Enterprise August 20,EGEI,ELECT - STREET LIGHT,EN:WORKS MGT- ST LIG,62.00
07.10.2014,7500163209,18,153150,Enterprise (AOL) Ltd,231400,HIGHWAY EQUIPMENT & MATERIALS : Street Lighting,Enterprise August 20,EGEI,ELECT - STREET LIGHT,EN:WORKS MGT- ST LIG,59.25
07.10.2014,7500163209,19,153150,Enterprise (AOL) Ltd,231400,HIGHWAY EQUIPMENT & MATERIALS : Street Lighting,Enterprise August 20,EGEI,ELECT - STREET LIGHT,EN:WORKS MGT- ST LIG,59.00
07.10.2014,7500163209,20,153150,Enterprise (AOL) Ltd,231400,HIGHWAY EQUIPMENT & MATERIALS : Street Lighting,Enterprise August 20,EGEI,ELECT - STREET LIGHT,EN:WORKS MGT- ST LIG,275.00
07.10.2014,7500163209,21,153150,Enterprise (AOL) Ltd,231400,HIGHWAY EQUIPMENT & MATERIALS : Street Lighting,Enterprise August 20,EGEI,ELECT - STREET LIGHT,EN:WORKS MGT- ST LIG,274.00
07.10.2014,7500163209,22,153150,Enterprise (AOL) Ltd,231400,HIGHWAY EQUIPMENT & MATERIALS : Street Lighting,Enterprise August 20,EGEI,ELECT - STREET LIGHT,EN:WORKS MGT- ST LIG,92.00
07.10.2014,7500163209,23,153150,Enterprise (AOL) Ltd,231400,HIGHWAY EQUIPMENT & MATERIALS : Street Lighting,Enterprise August 20,EGEI,ELECT - STREET LIGHT,EN:WORKS MGT- ST LIG,56.00
07.10.2014,7500163209,24,153150,Enterprise (AOL) Ltd,231400,HIGHWAY EQUIPMENT & MATERIALS : Street Lighting,Enterprise August 20,EGEI,ELECT - STREET LIGHT,HIGH/DRAIN WORKS MGT,371.00
07.10.2014,7500163209,25,153150,Enterprise (AOL) Ltd,231400,HIGHWAY EQUIPMENT & MATERIALS : Street Lighting,Enterprise August 20,EGEI,ELECT - STREET LIGHT,HIGH/DRAIN WORKS MGT,9.00
07.10.2014,7500163209,26,153150,Enterprise (AOL) Ltd,231400,HIGHWAY EQUIPMENT & MATERIALS : Street Lighting,Enterprise August 20,EGEI,ELECT - STREET LIGHT,EN:WORKS MGT- ST LIG,201.50
07.10.2014,7500163209,27,153150,Enterprise (AOL) Ltd,231400,HIGHWAY EQUIPMENT & MATERIALS : Street Lighting,Enterprise August 20,EGEI,ELECT - STREET LIGHT,EN:WORKS MGT- ST LIG,165.50
07.10.2014,7500163209,28,153150,Enterprise (AOL) Ltd,231400,HIGHWAY EQUIPMENT & MATERIALS : Street Lighting,Enterprise August 20,EGEI,ELECT - STREET LIGHT,EN:WORKS MGT- ST LIG,302.75
07.10.2014,7500163209,29,153150,Enterprise (AOL) Ltd,231400,HIGHWAY EQUIPMENT & MATERIALS : Street Lighting,Enterprise August 20,EGEI,ELECT - STREET LIGHT,EN:WORKS MGT- ST LIG,59.00
07.10.2014,7500163209,30,153150,Enterprise (AOL) Ltd,231400,HIGHWAY EQUIPMENT & MATERIALS : Street Lighting,Enterprise August 20,EGEI,ELECT - STREET LIGHT,EN:WORKS MGT- ST LIG,56.00
07.10.2014,7500163209,31,153150,Enterprise (AOL) Ltd,231400,HIGHWAY EQUIPMENT & MATERIALS : Street Lighting,Enterprise August 20,EGEI,ELECT - STREET LIGHT,EN:WORKS MGT- ST LIG,91.00
07.10.2014,7500163209,32,153150,Enterprise (AOL) Ltd,231400,HIGHWAY EQUIPMENT & MATERIALS : Street Lighting,Enterprise August 20,EGEI,ELECT - STREET LIGHT,EN:WORKS MGT- ST LIG,178.00
07.10.2014,7500163209,33,153150,Enterprise (AOL) Ltd,231400,HIGHWAY EQUIPMENT & MATERIALS : Street Lighting,Enterprise August 20,EGEI,ELECT - STREET LIGHT,EN:WORKS MGT- ST LIG,118.00
07.10.2014,7500163209,34,153150,Enterprise (AOL) Ltd,231400,HIGHWAY EQUIPMENT & MATERIALS : Street Lighting,Enterprise August 20,EGEI,ELECT - STREET LIGHT,EN:WORKS MGT- ST LIG,139.50
07.10.2014,7500163209,35,153150,Enterprise (AOL) Ltd,231400,HIGHWAY EQUIPMENT & MATERIALS : Street Lighting,Enterprise August 20,EGEI,ELECT - STREET LIGHT,EN:WORKS MGT- ST LIG,81.50
07.10.2014,7500163209,36,153150,Enterprise (AOL) Ltd,231400,HIGHWAY EQUIPMENT & MATERIALS : Street Lighting,Enterprise August 20,EGEI,ELECT - STREET LIGHT,EN:WORKS MGT- ST LIG,45.50
07.10.2014,7500163209,37,153150,Enterprise (AOL) Ltd,231400,HIGHWAY EQUIPMENT & MATERIALS : Street Lighting,Enterprise August 20,EGEI,ELECT - STREET LIGHT,EN:WORKS MGT- ST LIG,9.00
07.10.2014,7500163209,38,153150,Enterprise (AOL) Ltd,231400,HIGHWAY EQUIPMENT & MATERIALS : Street Lighting,Enterprise August 20,EGEI,ELECT - STREET LIGHT,EN:WORKS MGT- ST LIG,32.00
07.10.2014,7500163209,39,153150,Enterprise (AOL) Ltd,231400,HIGHWAY EQUIPMENT & MATERIALS : Street Lighting,Enterprise August 20,EGEI,ELECT - STREET LIGHT,EN:WORKS MGT- ST LIG,262.50
07.10.2014,7500163209,40,153150,Enterprise (AOL) Ltd,231400,HIGHWAY EQUIPMENT & MATERIALS : Street Lighting,Enterprise August 20,EGEI,ELECT - STREET LIGHT,EN:WORKS MGT- ST LIG,96.00
07.10.2014,7500163209,41,153150,Enterprise (AOL) Ltd,231400,HIGHWAY EQUIPMENT & MATERIALS : Street Lighting,Enterprise August 20,EGEI,ELECT - STREET LIGHT,EN:WORKS MGT- ST LIG,59.00
07.10.2014,7500163209,42,153150,Enterprise (AOL) Ltd,231400,HIGHWAY EQUIPMENT & MATERIALS : Street Lighting,Enterprise August 20,EGEI,ELECT - STREET LIGHT,EN:WORKS MGT- ST LIG,105.00
07.10.2014,7500163209,43,153150,Enterprise (AOL) Ltd,231400,HIGHWAY EQUIPMENT & MATERIALS : Street Lighting,Enterprise August 20,EGEI,ELECT - STREET LIGHT,EN:WORKS MGT- ST LIG,56.00
07.10.2014,7500163209,44,153150,Enterprise (AOL) Ltd,231400,HIGHWAY EQUIPMENT & MATERIALS : Street Lighting,Enterprise August 20,EGEI,ELECT - STREET LIGHT,EN:WORKS MGT- ST LIG,71.00
07.10.2014,7500163209,45,153150,Enterprise (AOL) Ltd,231400,HIGHWAY EQUIPMENT & MATERIALS : Street Lighting,Enterprise August 20,EGEI,ELECT - STREET LIGHT,EN:WORKS MGT- ST LIG,64.00
07.10.2014,7500163209,46,153150,Enterprise (AOL) Ltd,231400,HIGHWAY EQUIPMENT & MATERIALS : Street Lighting,Enterprise August 20,EGEI,ELECT - STREET LIGHT,EN:WORKS MGT- ST LIG,105.00
07.10.2014,7500163209,47,153150,Enterprise (AOL) Ltd,231400,HIGHWAY EQUIPMENT & MATERIALS : Street Lighting,Enterprise August 20,EGEI,ELECT - STREET LIGHT,EN:WORKS MGT- ST LIG,201.50
07.10.2014,7500163209,48,153150,Enterprise (AOL) Ltd,231400,HIGHWAY EQUIPMENT & MATERIALS : Street Lighting,Enterprise August 20,EGEI,ELECT - STREET LIGHT,EN:WORKS MGT- ST LIG,241.50
07.10.2014,7500163209,49,153150,Enterprise (AOL) Ltd,231400,HIGHWAY EQUIPMENT & MATERIALS : Street Lighting,Enterprise August 20,EGEI,ELECT - STREET LIGHT,EN:WORKS MGT- ST LIG,56.00
07.10.2014,7500163209,50,153150,Enterprise (AOL) Ltd,231400,HIGHWAY EQUIPMENT & MATERIALS : Street Lighting,Enterprise August 20,EGEI,ELECT - STREET LIGHT,EN:WORKS MGT- ST LIG,751.50
07.10.2014,7500163209,51,153150,Enterprise (AOL) Ltd,231400,HIGHWAY EQUIPMENT & MATERIALS : Street Lighting,Enterprise August 20,EGEI,ELECT - STREET LIGHT,EN:WORKS MGT- ST LIG,210.00
07.10.2014,7500163209,52,153150,Enterprise (AOL) Ltd,231400,HIGHWAY EQUIPMENT & MATERIALS : Street Lighting,Enterprise August 20,EGEI,ELECT - STREET LIGHT,EN:WORKS MGT- ST LIG,315.00
07.10.2014,7500163209,53,153150,Enterprise (AOL) Ltd,231400,HIGHWAY EQUIPMENT & MATERIALS : Street Lighting,Enterprise August 20,EGEI,ELECT - STREET LIGHT,EN:WORKS MGT- ST LIG,45.75
07.10.2014,7500163209,54,153150,Enterprise (AOL) Ltd,231400,HIGHWAY EQUIPMENT & MATERIALS : Street Lighting,Enterprise August 20,EGEI,ELECT - STREET LIGHT,EN:WORKS MGT- ST LIG,56.00
07.10.2014,7500163209,55,153150,Enterprise (AOL) Ltd,231400,HIGHWAY EQUIPMENT & MATERIALS : Street Lighting,Enterprise August 20,EGEI,ELECT - STREET LIGHT,EN:WORKS MGT- ST LIG,86.50
07.10.2014,7500163209,56,153150,Enterprise (AOL) Ltd,231400,HIGHWAY EQUIPMENT & MATERIALS : Street Lighting,Enterprise August 20,EGEI,ELECT - STREET LIGHT,HIGH/DRAIN WORKS MGT,71.00
07.10.2014,7500163209,57,153150,Enterprise (AOL) Ltd,231400,HIGHWAY EQUIPMENT & MATERIALS : Street Lighting,Enterprise August 20,EGEI,ELECT - STREET LIGHT,EN:WORKS MGT- ST LIG,86.50
07.10.2014,7500163209,58,153150,Enterprise (AOL) Ltd,231400,HIGHWAY EQUIPMENT & MATERIALS : Street Lighting,Enterprise August 20,EGEI,ELECT - STREET LIGHT,EN:WORKS MGT- ST LIG,232.50
07.10.2014,7500163209,59,153150,Enterprise (AOL) Ltd,231400,HIGHWAY EQUIPMENT & MATERIALS : Street Lighting,Enterprise August 20,EGEI,ELECT - STREET LIGHT,EN:WORKS MGT- ST LIG,52.50
07.10.2014,7500163209,60,153150,Enterprise (AOL) Ltd,231400,HIGHWAY EQUIPMENT & MATERIALS : Street Lighting,Enterprise August 20,EGEI,ELECT - STREET LIGHT,EN:WORKS MGT- ST LIG,201.50
07.10.2014,7500163209,61,153150,Enterprise (AOL) Ltd,231400,HIGHWAY EQUIPMENT & MATERIALS : Street Lighting,Enterprise August 20,EGEI,ELECT - STREET LIGHT,EN:WORKS MGT- ST LIG,120.00
07.10.2014,7500163209,62,153150,Enterprise (AOL) Ltd,231400,HIGHWAY EQUIPMENT & MATERIALS : Street Lighting,Enterprise August 20,EGEI,ELECT - STREET LIGHT,EN:WORKS MGT- ST LIG,322.00
07.10.2014,7500163209,63,153150,Enterprise (AOL) Ltd,231400,HIGHWAY EQUIPMENT & MATERIALS : Street Lighting,Enterprise August 20,EGEI,ELECT - STREET LIGHT,EN:WORKS MGT- ST LIG,192.00
07.10.2014,7500163209,64,153150,Enterprise (AOL) Ltd,231400,HIGHWAY EQUIPMENT & MATERIALS : Street Lighting,Enterprise August 20,EGEI,ELECT - STREET LIGHT,EN:WORKS MGT- ST LIG,52.50
07.10.2014,7500163209,65,153150,Enterprise (AOL) Ltd,231400,HIGHWAY EQUIPMENT & MATERIALS : Street Lighting,Enterprise August 20,EGEI,ELECT - STREET LIGHT,EN:WORKS MGT- ST LIG,128.00
07.10.2014,7500163209,66,153150,Enterprise (AOL) Ltd,231400,HIGHWAY EQUIPMENT & MATERIALS : Street Lighting,Enterprise August 20,EGEI,ELECT - STREET LIGHT,EN:WORKS MGT- ST LIG,114.25
07.10.2014,7500163209,67,153150,Enterprise (AOL) Ltd,231400,HIGHWAY EQUIPMENT & MATERIALS : Street Lighting,Enterprise August 20,EGEI,ELECT - STREET LIGHT,EN:WORKS MGT- ST LIG,43.25
07.10.2014,7500163209,68,153150,Enterprise (AOL) Ltd,231400,HIGHWAY EQUIPMENT & MATERIALS : Street Lighting,Enterprise August 20,EGEI,ELECT - STREET LIGHT,EN:WORKS MGT- ST LIG,52.50
07.10.2014,7500163209,69,153150,Enterprise (AOL) Ltd,231400,HIGHWAY EQUIPMENT & MATERIALS : Street Lighting,Enterprise August 20,EGEI,ELECT - STREET LIGHT,EN:WORKS MGT- ST LIG,97.50
07.10.2014,7500163209,70,153150,Enterprise (AOL) Ltd,231400,HIGHWAY EQUIPMENT & MATERIALS : Street Lighting,Enterprise August 20,EGEI,ELECT - STREET LIGHT,EN:WORKS MGT- ST LIG,201.50
07.10.2014,7500163209,71,153150,Enterprise (AOL) Ltd,231400,HIGHWAY EQUIPMENT & MATERIALS : Street Lighting,Enterprise August 20,EGEI,ELECT - STREET LIGHT,EN:WORKS MGT- ST LIG,59.50
07.10.2014,7500163209,72,153150,Enterprise (AOL) Ltd,231400,HIGHWAY EQUIPMENT & MATERIALS : Street Lighting,Enterprise August 20,EGEI,ELECT - STREET LIGHT,EN:WORKS MGT- ST LIG,176.00
07.10.2014,7500163209,73,153150,Enterprise (AOL) Ltd,231400,HIGHWAY EQUIPMENT & MATERIALS : Street Lighting,Enterprise August 20,EGEI,ELECT - STREET LIGHT,EN:WORKS MGT- ST LIG,43.25
07.10.2014,7500163209,74,153150,Enterprise (AOL) Ltd,231400,HIGHWAY EQUIPMENT & MATERIALS : Street Lighting,Enterprise August 20,EGEI,ELECT - STREET LIGHT,EN:WORKS MGT- ST LIG,288.00
07.10.2014,7500163209,75,153150,Enterprise (AOL) Ltd,231400,HIGHWAY EQUIPMENT & MATERIALS : Street Lighting,Enterprise August 20,EGEI,ELECT - STREET LIGHT,EN:WORKS MGT- ST LIG,16.00
07.10.2014,7500163209,76,153150,Enterprise (AOL) Ltd,231400,HIGHWAY EQUIPMENT & MATERIALS : Street Lighting,Enterprise August 20,EGEI,ELECT - STREET LIGHT,EN:WORKS MGT- ST LIG,64.00
07.10.2014,7500163209,77,153150,Enterprise (AOL) Ltd,231400,HIGHWAY EQUIPMENT & MATERIALS : Street Lighting,Enterprise August 20,EGEI,ELECT - STREET LIGHT,EN:WORKS MGT- ST LIG,474.00
07.10.2014,7500163209,78,153150,Enterprise (AOL) Ltd,231400,HIGHWAY EQUIPMENT & MATERIALS : Street Lighting,Enterprise August 20,EGEI,ELECT - STREET LIGHT,HIGH/DRAIN WORKS MGT,371.00
07.10.2014,7500163209,79,153150,Enterprise (AOL) Ltd,231400,HIGHWAY EQUIPMENT & MATERIALS : Street Lighting,Enterprise August 20,EGEI,ELECT - STREET LIGHT,EN:WORKS MGT- ST LIG,40.00
07.10.2014,7500163225,1,141752,Salford City Council,201100,FINANCIAL SERVICES : Audit,Salford ICT Internal,T & R ,PROFESSIONAL FEES,SO:Internal Audit,"8,750.00"
08.10.2014,7500163233,1,153179,Colin Rea Transport (CRT),171011,EDUCATION : Services : Children,CRT Run 603 Delamere,CFW,CONT HIRE HOME TO SC,Home to School Tr,"16,720.00"
08.10.2014,7500163234,1,153179,Colin Rea Transport (CRT),171011,EDUCATION : Services : Children,CRT Run 125 Delamere,CFW,CONT HIRE HOME TO SC,Home to School Tr,"16,720.00"
08.10.2014,7500163241,1,153170,Wings Education Ltd,321117,SOCIAL CARE SERVICES : Children : Residential Care,Redacted Personal Data,CFW,EXT RES CARE FEES,CHILDREN'S HOMES,"4,739.31"
08.10.2014,7500163241,2,153170,Wings Education Ltd,321117,SOCIAL CARE SERVICES : Children : Residential Care,Redacted Personal Data,CFW,EXT RES CARE FEES,CHILDREN'S HOMES,"10,158.75"
08.10.2014,7500163241,3,153170,Wings Education Ltd,321117,SOCIAL CARE SERVICES : Children : Residential Care,Redacted Personal Data,CFW,EXT RES CARE FEES,CHILDREN'S HOMES,"5,614.11"
08.10.2014,7500163248,1,139717,ICABS,361300,TRANSPORT : Passenger Transport,ICabs - Run SSC35 20,CFW,Internal Trans Rchrg,LD TRANSPORT,"2,420.00"
08.10.2014,7500163248,1,139717,ICABS,361300,TRANSPORT : Passenger Transport,ICabs - Run SSC35 Se,CFW,Internal Trans Rchrg,LD TRANSPORT,"2,420.00"
08.10.2014,7500163248,2,139717,ICABS,361300,TRANSPORT : Passenger Transport,ICabs - Run SSC35 20,CFW,Internal Trans Rchrg,LD TRANSPORT,"18,295.20"
08.10.2014,7500163249,1,153179,Colin Rea Transport (CRT),171011,EDUCATION : Services : Children,CRT Run 536 Brentwoo,CFW,CONT HIRE HOME TO SC,Home to School Tr,"16,720.00"
08.10.2014,7500163250,1,153166,MCR Blackcab Ltd,171011,EDUCATION : Services : Children,McrBlack Cabs Run 70,CFW,CONT HIRE HOME TO SC,Home to School Tr,"13,851.00"
08.10.2014,7500163255,1,153179,Colin Rea Transport (CRT),171011,EDUCATION : Services : Children,CRT Run 706 Brentwoo,CFW,CONT HIRE HOME TO SC,Home to School Tr,"3,848.00"
08.10.2014,7500163255,2,153179,Colin Rea Transport (CRT),171011,EDUCATION : Services : Children,CRT Run 706 Brentwoo,CFW,CONT HIRE HOME TO SC,Home to School Tr,"2,400.00"
08.10.2014,7500163256,1,153179,Colin Rea Transport (CRT),171011,EDUCATION : Services : Children,CRT Run 433 Brentwoo,CFW,CONT HIRE HOME TO SC,Home to School Tr,"16,720.00"
08.10.2014,7500163278,1,151369,Craegmoor Arden College,321211,SOCIAL CARE SERVICES : Disabled Children : Day Services,Redacted Personal Data,CFW,NON MAINT SCH FEES,Post 16 - Element 3,"7,629.90"
08.10.2014,7500163279,1,142063,Cedar House School,321117,SOCIAL CARE SERVICES : Children : Residential Care,Redacted Personal Data,CFW,NON MAINT SCH FEES,OTHER L.E.A. & IN,"30,091.00"
08.10.2014,7500163292,1,149426,Cransley School Ltd,321117,SOCIAL CARE SERVICES : Children : Residential Care,Redacted Personal Data,CFW,NON MAINT SCH FEES,OTHER L.E.A. & IN,"2,083.00"
08.10.2014,7500163292,2,149426,Cransley School Ltd,321117,SOCIAL CARE SERVICES : Children : Residential Care,Redacted Personal Data,CFW,NON MAINT SCH FEES,OTHER L.E.A. & IN,"2,083.00"
08.10.2014,7500163292,3,149426,Cransley School Ltd,321117,SOCIAL CARE SERVICES : Children : Residential Care,Redacted Personal Data,CFW,NON MAINT SCH FEES,OTHER L.E.A. & IN,"2,083.00"
08.10.2014,7500163312,1,150623,Huyton Plumbing & Heating Ltd,391113,WORKS - CONSTRUCTION : Buildings : Repair,Disabled Facilities,CFW,CLIENTS ADAPTATIONS,HS:ADAPTATIONS,"4,724.84"
08.10.2014,7500163312,2,150623,Huyton Plumbing & Heating Ltd,391113,WORKS - CONSTRUCTION : Buildings : Repair,Design fee & asbesto,CFW,CLIENTS ADAPTATIONS,HS:ADAPTATIONS,299.06
08.10.2014,7500163314,1,144988,Trapeze Group (UK) Ltd,271600,ICT : Software,Home to school trans,CFW,IT PURCHASES,Home to School Tr,"6,582.06"
09.10.2014,7500163380,1,137557,Stockport MBC (Contributions),151911,CONSULTANCY : Management : Organisation & Planning,Landscape Design - O,EGEI,EXTERNAL DAY-TO-DAY,L/Scape Arch Agency,"9,035.83"
09.10.2014,7500163380,2,137557,Stockport MBC (Contributions),151911,CONSULTANCY : Management : Organisation & Planning,Landscape Design - O,EGEI,EXTERNAL DAY-TO-DAY,L/Scape Arch Agency,"4,480.00"
09.10.2014,7500163399,1,151504,Ruskin Mill Trust Ltd,321117,SOCIAL CARE SERVICES : Children : Residential Care,Redacted Personal Data,CFW,NON MAINT SCH FEES,Post 16 - Element 3,"4,727.27"
09.10.2014,7500163399,2,151504,Ruskin Mill Trust Ltd,321117,SOCIAL CARE SERVICES : Children : Residential Care,Redacted Personal Data,CFW,NON MAINT SCH FEES,Post 16 - Element 3,"3,462.91"
09.10.2014,7500163399,3,151504,Ruskin Mill Trust Ltd,321117,SOCIAL CARE SERVICES : Children : Residential Care,Redacted Personal Data,CFW,NON MAINT SCH FEES,Post 16 - Element 3,"6,534.45"
09.10.2014,7500163399,4,151504,Ruskin Mill Trust Ltd,321117,SOCIAL CARE SERVICES : Children : Residential Care,Redacted Personal Data,CFW,NON MAINT SCH FEES,Post 16 - Element 3,"4,727.27"
09.10.2014,7500163399,5,151504,Ruskin Mill Trust Ltd,321117,SOCIAL CARE SERVICES : Children : Residential Care,Redacted Personal Data,CFW,NON MAINT SCH FEES,Post 16 - Element 3,"3,462.91"
09.10.2014,7500163399,6,151504,Ruskin Mill Trust Ltd,321117,SOCIAL CARE SERVICES : Children : Residential Care,Redacted Personal Data,CFW,NON MAINT SCH FEES,Post 16 - Element 3,"6,534.45"
09.10.2014,7500163399,7,151504,Ruskin Mill Trust Ltd,321117,SOCIAL CARE SERVICES : Children : Residential Care,Redacted Personal Data,CFW,NON MAINT SCH FEES,Post 16 - Element 3,"4,727.27"
09.10.2014,7500163399,8,151504,Ruskin Mill Trust Ltd,321117,SOCIAL CARE SERVICES : Children : Residential Care,Redacted Personal Data,CFW,NON MAINT SCH FEES,Post 16 - Element 3,"3,462.91"
09.10.2014,7500163399,9,151504,Ruskin Mill Trust Ltd,321117,SOCIAL CARE SERVICES : Children : Residential Care,Redacted Personal Data,CFW,NON MAINT SCH FEES,Post 16 - Element 3,"6,534.45"
09.10.2014,7500163399,10,151504,Ruskin Mill Trust Ltd,321117,SOCIAL CARE SERVICES : Children : Residential Care,Redacted Personal Data,CFW,NON MAINT SCH FEES,Post 16 - Element 3,"4,727.27"
09.10.2014,7500163399,11,151504,Ruskin Mill Trust Ltd,321117,SOCIAL CARE SERVICES : Children : Residential Care,Redacted Personal Data,CFW,NON MAINT SCH FEES,Post 16 - Element 3,"3,462.91"
09.10.2014,7500163399,12,151504,Ruskin Mill Trust Ltd,321117,SOCIAL CARE SERVICES : Children : Residential Care,Redacted Personal Data,CFW,NON MAINT SCH FEES,Post 16 - Element 3,"6,534.45"
09.10.2014,7500163399,13,151504,Ruskin Mill Trust Ltd,321117,SOCIAL CARE SERVICES : Children : Residential Care,Redacted Personal Data,CFW,NON MAINT SCH FEES,Post 16 - Element 3,"4,727.27"
09.10.2014,7500163399,14,151504,Ruskin Mill Trust Ltd,321117,SOCIAL CARE SERVICES : Children : Residential Care,Redacted Personal Data,CFW,NON MAINT SCH FEES,Post 16 - Element 3,"3,462.91"
09.10.2014,7500163399,15,151504,Ruskin Mill Trust Ltd,321117,SOCIAL CARE SERVICES : Children : Residential Care,Redacted Personal Data,CFW,NON MAINT SCH FEES,Post 16 - Element 3,"6,534.45"
09.10.2014,7500163399,16,151504,Ruskin Mill Trust Ltd,321117,SOCIAL CARE SERVICES : Children : Residential Care,Redacted Personal Data,CFW,NON MAINT SCH FEES,Post 16 - Element 3,"4,727.27"
09.10.2014,7500163399,17,151504,Ruskin Mill Trust Ltd,321117,SOCIAL CARE SERVICES : Children : Residential Care,Redacted Personal Data,CFW,NON MAINT SCH FEES,Post 16 - Element 3,"3,462.91"
09.10.2014,7500163399,18,151504,Ruskin Mill Trust Ltd,321117,SOCIAL CARE SERVICES : Children : Residential Care,Redacted Personal Data,CFW,NON MAINT SCH FEES,Post 16 - Element 3,"6,534.45"
09.10.2014,7500163399,19,151504,Ruskin Mill Trust Ltd,321117,SOCIAL CARE SERVICES : Children : Residential Care,Redacted Personal Data,CFW,NON MAINT SCH FEES,Post 16 - Element 3,"4,727.27"
09.10.2014,7500163399,20,151504,Ruskin Mill Trust Ltd,321117,SOCIAL CARE SERVICES : Children : Residential Care,Redacted Personal Data,CFW,NON MAINT SCH FEES,Post 16 - Element 3,"3,462.91"
09.10.2014,7500163399,21,151504,Ruskin Mill Trust Ltd,321117,SOCIAL CARE SERVICES : Children : Residential Care,Redacted Personal Data,CFW,NON MAINT SCH FEES,Post 16 - Element 3,"6,534.45"
09.10.2014,7500163402,1,146389,Gibsons Joiners & Builders Ltd,391100,WORKS - CONSTRUCTION : Buildings,Gorse Hill Primary S,EGEI,EXTERNAL DAY-TO-DAY,CN:Bldg Serv Schemes,"44,537.20"
09.10.2014,7500163407,1,139595,AT Nolan Ltd,391113,WORKS - CONSTRUCTION : Buildings : Repair,Gorse Hill Primary S,EGEI,EXTERNAL DAY-TO-DAY,CN:Bldg Serv Schemes,"24,281.00"
10.10.2014,7500163438,1,138741,Dlp Services Northern Ltd,391100,WORKS - CONSTRUCTION : Buildings,Disabled Facilities,CFW,CLIENTS ADAPTATIONS,HS:ADAPTATIONS,"19,027.99"
10.10.2014,7500163442,1,144546,Health Management Limited,311600,MEDICAL : Services,Health Management Co,T & R ,MEDICAL FEES,PP:OCCUPATIONAL HEAL,"100,000.00"
10.10.2014,7500163473,1,144312,Handicare Accessibility Ltd,321311,SOCIAL CARE SERVICES : Supplies : Equipment,Service charges,CFW,CLIENTS LIFT REP & M,LIFT REPAIRS & MTCE,60.00
10.10.2014,7500163473,2,144312,Handicare Accessibility Ltd,321311,SOCIAL CARE SERVICES : Supplies : Equipment,Service charges,CFW,CLIENTS LIFT REP & M,LIFT REPAIRS & MTCE,650.00
10.10.2014,7500163473,3,144312,Handicare Accessibility Ltd,321311,SOCIAL CARE SERVICES : Supplies : Equipment,Service charges,CFW,CLIENTS LIFT REP & M,LIFT REPAIRS & MTCE,"2,250.00"
10.10.2014,7500163473,4,144312,Handicare Accessibility Ltd,321311,SOCIAL CARE SERVICES : Supplies : Equipment,Service charges,CFW,CLIENTS LIFT REP & M,LIFT REPAIRS & MTCE,190.00
10.10.2014,7500163473,5,144312,Handicare Accessibility Ltd,321311,SOCIAL CARE SERVICES : Supplies : Equipment,Service charges,CFW,CLIENTS LIFT REP & M,LIFT REPAIRS & MTCE,405.00
10.10.2014,7500163473,6,144312,Handicare Accessibility Ltd,321311,SOCIAL CARE SERVICES : Supplies : Equipment,Service charges,CFW,CLIENTS LIFT REP & M,LIFT REPAIRS & MTCE,"1,235.00"
10.10.2014,7500163473,7,144312,Handicare Accessibility Ltd,321311,SOCIAL CARE SERVICES : Supplies : Equipment,Service charges,CFW,CLIENTS LIFT REP & M,LIFT REPAIRS & MTCE,"3,000.00"
10.10.2014,7500163474,1,150658,Wythenshawe Private Hire Ltd,361300,TRANSPORT : Passenger Transport,Club Cars - Run 673,CFW,CONT HIRE HOME TO SC,Home to School Tr,"14,560.00"
10.10.2014,7500163477,1,139393,Redacted Personal Data,361300,TRANSPORT : Passenger Transport,DMC - Run 588 Delame,CFW,CONT HIRE HOME TO SC,Home to School Tr,"3,740.00"
10.10.2014,7500163477,2,139393,Redacted Personal Data,361300,TRANSPORT : Passenger Transport,DMC - Run 588 Delame,CFW,CONT HIRE HOME TO SC,Home to School Tr,"12,780.00"
12.10.2014,7500163491,1,138948,After Adoption,321100,SOCIAL CARE SERVICES : Children,After Adoption - age,CFW,Adoption - inter agency fees,PLACEMENT ADOPTION,"9,000.00"
12.10.2014,7500163491,2,138948,After Adoption,321100,SOCIAL CARE SERVICES : Children,After Adoption - age,CFW,Adoption - inter agency fees,PLACEMENT ADOPTION,"18,000.00"
13.10.2014,7500163500,1,139619,Kenny Bros (Civil Eng) Ltd,391400,WORKS - CONSTRUCTION : Roads,kenny bros invoice 1,EGEI,SUPPLIES/SERVICES,HIGH/DRAIN WORKS MGT,"7,050.44"
13.10.2014,7500163514,1,142588,United Utilities Water Standpipes,371300,UTILITIES : Water,Standpipe Invoice sp,EGEI,EXT VEH & PLANT HIR,Groundforce DSO Nth,349.98
13.10.2014,7500163514,2,142588,United Utilities Water Standpipes,371300,UTILITIES : Water,Standpipe Invoice sp,EGEI,EXT VEH & PLANT HIR,Groundforce DSO Nth,"4,122.37"
13.10.2014,7500163514,3,142588,United Utilities Water Standpipes,371300,UTILITIES : Water,Standpipe Invoice sp,EGEI,EXT VEH & PLANT HIR,Groundforce DSO Nth,182.96
13.10.2014,7500163514,4,142588,United Utilities Water Standpipes,371300,UTILITIES : Water,Standpipe Invoice sp,EGEI,EXT VEH & PLANT HIR,Groundforce DSO Nth,500.04
13.10.2014,7500163514,5,142588,United Utilities Water Standpipes,371300,UTILITIES : Water,Standpipe Invoice sp,EGEI,EXT VEH & PLANT HIR,Groundforce DSO Nth,711.72
13.10.2014,7500163514,6,142588,United Utilities Water Standpipes,371300,UTILITIES : Water,Standpipe Invoice sp,EGEI,EXT VEH & PLANT HIR,Groundforce DSO Nth,375.03
13.10.2014,7500163514,7,142588,United Utilities Water Standpipes,371300,UTILITIES : Water,Standpipe Invoice sp,EGEI,EXT VEH & PLANT HIR,Groundforce DSO Nth,174.99
13.10.2014,7500163530,1,142316,Network Rail Infrastructure Ltd,391300,WORKS - CONSTRUCTION : Open Spaces,"Bridge No. 030, Shaf",EGEI,A&M PAY TO CONTRACTO,Capital Schemes,"7,500.00"
13.10.2014,7500163538,1,137557,Stockport MBC (Contributions),151911,CONSULTANCY : Management : Organisation & Planning,Oldfield Brow Primar,EGEI,A&M PAY TO CONTRACTO,Capital Schemes,"22,764.38"
13.10.2014,7500163538,2,137557,Stockport MBC (Contributions),151911,CONSULTANCY : Management : Organisation & Planning,Oldfield Brow Primar,EGEI,A&M PAY TO CONTRACTO,Capital Schemes,"15,937.50"
13.10.2014,7500163538,3,137557,Stockport MBC (Contributions),151911,CONSULTANCY : Management : Organisation & Planning,Oldfield Brow Primar,EGEI,A&M PAY TO CONTRACTO,Capital Schemes,"4,000.00"
13.10.2014,7500163546,1,153167,Asidua (GB) Limited,271600,ICT : Software,CRM Scope Confirmati,T & R ,CAP PUR ICT H/W & S/,Capital Schemes,"20,000.00"
14.10.2014,7500163552,1,153174,Three Circles Fostering,322003,SOCIAL CARE SERVICES: Children : Fostering,Redacted Personal Data,CFW,CONT VOL BODIES,PLACEMENT FOSTERING,"15,771.56"
14.10.2014,7500163570,1,141213,Arc,291300,LEISURE SERVICES : Performing Arts,Ticketsales - The So,T & R ,PRIVATE CONTRACTORS,Arts- Sale Waterside,"7,180.00"
14.10.2014,7500163616,1,149327,Pulse Regeneration Limited,321000,SOCIAL CARE SERVICES : Adult,Social Enterprise Ch,T & R ,SUPP LIVING CONT,Community Strategy Refresh,"5,000.00"
14.10.2014,7500163617,1,149327,Pulse Regeneration Limited,321000,SOCIAL CARE SERVICES : Adult,Equalities Grant 201,T & R ,SUPP LIVING CONT,Community Strategy Refresh,"29,695.07"
15.10.2014,7500163630,1,153150,Enterprise (AOL) Ltd,231400,HIGHWAY EQUIPMENT & MATERIALS : Street Lighting,September 2014 works,EGEI,ELECT - STREET LIGHT,EN:WORKS MGT- ST LIG,369.00
15.10.2014,7500163630,2,153150,Enterprise (AOL) Ltd,231400,HIGHWAY EQUIPMENT & MATERIALS : Street Lighting,September 2014 works,EGEI,ELECT - STREET LIGHT,EN:WORKS MGT- ST LIG,296.00
15.10.2014,7500163630,3,153150,Enterprise (AOL) Ltd,231400,HIGHWAY EQUIPMENT & MATERIALS : Street Lighting,September 2014 works,EGEI,ELECT - STREET LIGHT,EN:WORKS MGT- ST LIG,277.00
15.10.2014,7500163630,4,153150,Enterprise (AOL) Ltd,231400,HIGHWAY EQUIPMENT & MATERIALS : Street Lighting,September 2014 works,EGEI,ELECT - STREET LIGHT,EN:WORKS MGT- ST LIG,38.50
15.10.2014,7500163630,5,153150,Enterprise (AOL) Ltd,231400,HIGHWAY EQUIPMENT & MATERIALS : Street Lighting,September 2014 works,EGEI,ELECT - STREET LIGHT,EN:WORKS MGT- ST LIG,154.00
15.10.2014,7500163630,6,153150,Enterprise (AOL) Ltd,231400,HIGHWAY EQUIPMENT & MATERIALS : Street Lighting,September 2014 works,EGEI,ELECT - STREET LIGHT,EN:WORKS MGT- ST LIG,120.50
15.10.2014,7500163630,7,153150,Enterprise (AOL) Ltd,231400,HIGHWAY EQUIPMENT & MATERIALS : Street Lighting,September 2014 works,EGEI,ELECT - STREET LIGHT,EN:WORKS MGT- ST LIG,31.00
15.10.2014,7500163630,8,153150,Enterprise (AOL) Ltd,231400,HIGHWAY EQUIPMENT & MATERIALS : Street Lighting,September 2014 works,EGEI,ELECT - STREET LIGHT,EN:WORKS MGT- ST LIG,38.50
15.10.2014,7500163630,9,153150,Enterprise (AOL) Ltd,231400,HIGHWAY EQUIPMENT & MATERIALS : Street Lighting,September 2014 works,EGEI,ELECT - STREET LIGHT,EN:WORKS MGT- ST LIG,38.50
15.10.2014,7500163630,10,153150,Enterprise (AOL) Ltd,231400,HIGHWAY EQUIPMENT & MATERIALS : Street Lighting,September 2014 works,EGEI,ELECT - STREET LIGHT,EN:WORKS MGT- ST LIG,16.00
15.10.2014,7500163630,11,153150,Enterprise (AOL) Ltd,231400,HIGHWAY EQUIPMENT & MATERIALS : Street Lighting,September 2014 works,EGEI,ELECT - STREET LIGHT,EN:WORKS MGT- ST LIG,256.50
15.10.2014,7500163630,12,153150,Enterprise (AOL) Ltd,231400,HIGHWAY EQUIPMENT & MATERIALS : Street Lighting,September 2014 works,EGEI,ELECT - STREET LIGHT,EN:WORKS MGT- ST LIG,63.00
15.10.2014,7500163630,13,153150,Enterprise (AOL) Ltd,231400,HIGHWAY EQUIPMENT & MATERIALS : Street Lighting,September 2014 works,EGEI,ELECT - STREET LIGHT,EN:WORKS MGT- ST LIG,144.00
15.10.2014,7500163630,14,153150,Enterprise (AOL) Ltd,231400,HIGHWAY EQUIPMENT & MATERIALS : Street Lighting,September 2014 works,EGEI,ELECT - STREET LIGHT,EN:WORKS MGT- ST LIG,44.50
15.10.2014,7500163630,15,153150,Enterprise (AOL) Ltd,231400,HIGHWAY EQUIPMENT & MATERIALS : Street Lighting,September 2014 works,EGEI,ELECT - STREET LIGHT,EN:WORKS MGT- ST LIG,484.50
15.10.2014,7500163630,16,153150,Enterprise (AOL) Ltd,231400,HIGHWAY EQUIPMENT & MATERIALS : Street Lighting,September 2014 works,EGEI,ELECT - STREET LIGHT,EN:WORKS MGT- ST LIG,115.50
15.10.2014,7500163630,17,153150,Enterprise (AOL) Ltd,231400,HIGHWAY EQUIPMENT & MATERIALS : Street Lighting,September 2014 works,EGEI,ELECT - STREET LIGHT,EN:WORKS MGT- ST LIG,77.00
15.10.2014,7500163630,18,153150,Enterprise (AOL) Ltd,231400,HIGHWAY EQUIPMENT & MATERIALS : Street Lighting,September 2014 works,EGEI,ELECT - STREET LIGHT,EN:WORKS MGT- ST LIG,64.00
15.10.2014,7500163630,19,153150,Enterprise (AOL) Ltd,231400,HIGHWAY EQUIPMENT & MATERIALS : Street Lighting,September 2014 works,EGEI,ELECT - STREET LIGHT,EN:WORKS MGT- ST LIG,64.00
15.10.2014,7500163630,20,153150,Enterprise (AOL) Ltd,231400,HIGHWAY EQUIPMENT & MATERIALS : Street Lighting,September 2014 works,EGEI,ELECT - STREET LIGHT,EN:WORKS MGT- ST LIG,302.75
15.10.2014,7500163630,21,153150,Enterprise (AOL) Ltd,231400,HIGHWAY EQUIPMENT & MATERIALS : Street Lighting,September 2014 works,EGEI,ELECT - STREET LIGHT,EN:WORKS MGT- ST LIG,210.00
15.10.2014,7500163630,22,153150,Enterprise (AOL) Ltd,231400,HIGHWAY EQUIPMENT & MATERIALS : Street Lighting,September 2014 works,EGEI,ELECT - STREET LIGHT,EN:WORKS MGT- ST LIG,585.25
15.10.2014,7500163630,23,153150,Enterprise (AOL) Ltd,231400,HIGHWAY EQUIPMENT & MATERIALS : Street Lighting,September 2014 works,EGEI,ELECT - STREET LIGHT,EN:WORKS MGT- ST LIG,71.00
15.10.2014,7500163630,24,153150,Enterprise (AOL) Ltd,231400,HIGHWAY EQUIPMENT & MATERIALS : Street Lighting,September 2014 works,EGEI,ELECT - STREET LIGHT,EN:WORKS MGT- ST LIG,43.25
15.10.2014,7500163630,25,153150,Enterprise (AOL) Ltd,231400,HIGHWAY EQUIPMENT & MATERIALS : Street Lighting,September 2014 works,EGEI,ELECT - STREET LIGHT,EN:WORKS MGT- ST LIG,53.00
15.10.2014,7500163630,26,153150,Enterprise (AOL) Ltd,231400,HIGHWAY EQUIPMENT & MATERIALS : Street Lighting,September 2014 works,EGEI,ELECT - STREET LIGHT,EN:WORKS MGT- ST LIG,154.00
15.10.2014,7500163630,27,153150,Enterprise (AOL) Ltd,231400,HIGHWAY EQUIPMENT & MATERIALS : Street Lighting,September 2014 works,EGEI,ELECT - STREET LIGHT,EN:WORKS MGT- ST LIG,201.50
15.10.2014,7500163630,28,153150,Enterprise (AOL) Ltd,231400,HIGHWAY EQUIPMENT & MATERIALS : Street Lighting,September 2014 works,EGEI,ELECT - STREET LIGHT,EN:WORKS MGT- ST LIG,201.50
15.10.2014,7500163630,29,153150,Enterprise (AOL) Ltd,231400,HIGHWAY EQUIPMENT & MATERIALS : Street Lighting,September 2014 works,EGEI,ELECT - STREET LIGHT,EN:WORKS MGT- ST LIG,256.00
15.10.2014,7500163630,30,153150,Enterprise (AOL) Ltd,231400,HIGHWAY EQUIPMENT & MATERIALS : Street Lighting,September 2014 works,EGEI,ELECT - STREET LIGHT,EN:WORKS MGT- ST LIG,86.50
15.10.2014,7500163630,31,153150,Enterprise (AOL) Ltd,231400,HIGHWAY EQUIPMENT & MATERIALS : Street Lighting,September 2014 works,EGEI,ELECT - STREET LIGHT,EN:WORKS MGT- ST LIG,387.00
15.10.2014,7500163630,32,153150,Enterprise (AOL) Ltd,231400,HIGHWAY EQUIPMENT & MATERIALS : Street Lighting,September 2014 works,EGEI,ELECT - STREET LIGHT,EN:WORKS MGT- ST LIG,604.50
15.10.2014,7500163630,33,153150,Enterprise (AOL) Ltd,231400,HIGHWAY EQUIPMENT & MATERIALS : Street Lighting,September 2014 works,EGEI,ELECT - STREET LIGHT,EN:WORKS MGT- ST LIG,201.50
15.10.2014,7500163630,34,153150,Enterprise (AOL) Ltd,231400,HIGHWAY EQUIPMENT & MATERIALS : Street Lighting,September 2014 works,EGEI,ELECT - STREET LIGHT,EN:WORKS MGT- ST LIG,387.00
15.10.2014,7500163630,35,153150,Enterprise (AOL) Ltd,231400,HIGHWAY EQUIPMENT & MATERIALS : Street Lighting,September 2014 works,EGEI,ELECT - STREET LIGHT,EN:WORKS MGT- ST LIG,387.00
15.10.2014,7500163630,36,153150,Enterprise (AOL) Ltd,231400,HIGHWAY EQUIPMENT & MATERIALS : Street Lighting,September 2014 works,EGEI,ELECT - STREET LIGHT,EN:WORKS MGT- ST LIG,32.00
15.10.2014,7500163630,37,153150,Enterprise (AOL) Ltd,231400,HIGHWAY EQUIPMENT & MATERIALS : Street Lighting,September 2014 works,EGEI,ELECT - STREET LIGHT,EN:WORKS MGT- ST LIG,432.50
15.10.2014,7500163630,38,153150,Enterprise (AOL) Ltd,231400,HIGHWAY EQUIPMENT & MATERIALS : Street Lighting,September 2014 works,EGEI,ELECT - STREET LIGHT,EN:WORKS MGT- ST LIG,32.00
15.10.2014,7500163630,39,153150,Enterprise (AOL) Ltd,231400,HIGHWAY EQUIPMENT & MATERIALS : Street Lighting,September 2014 works,EGEI,ELECT - STREET LIGHT,EN:WORKS MGT- ST LIG,66.00
15.10.2014,7500163630,40,153150,Enterprise (AOL) Ltd,231400,HIGHWAY EQUIPMENT & MATERIALS : Street Lighting,September 2014 works,EGEI,ELECT - STREET LIGHT,EN:WORKS MGT- ST LIG,96.00
15.10.2014,7500163630,41,153150,Enterprise (AOL) Ltd,231400,HIGHWAY EQUIPMENT & MATERIALS : Street Lighting,September 2014 works,EGEI,ELECT - STREET LIGHT,EN:WORKS MGT- ST LIG,78.00
15.10.2014,7500163630,42,153150,Enterprise (AOL) Ltd,231400,HIGHWAY EQUIPMENT & MATERIALS : Street Lighting,September 2014 works,EGEI,ELECT - STREET LIGHT,EN:WORKS MGT- ST LIG,129.75
15.10.2014,7500163630,43,153150,Enterprise (AOL) Ltd,231400,HIGHWAY EQUIPMENT & MATERIALS : Street Lighting,September 2014 works,EGEI,ELECT - STREET LIGHT,EN:WORKS MGT- ST LIG,90.50
15.10.2014,7500163630,44,153150,Enterprise (AOL) Ltd,231400,HIGHWAY EQUIPMENT & MATERIALS : Street Lighting,September 2014 works,EGEI,ELECT - STREET LIGHT,EN:WORKS MGT- ST LIG,87.00
15.10.2014,7500163630,45,153150,Enterprise (AOL) Ltd,231400,HIGHWAY EQUIPMENT & MATERIALS : Street Lighting,September 2014 works,EGEI,ELECT - STREET LIGHT,EN:WORKS MGT- ST LIG,25.25
15.10.2014,7500163630,46,153150,Enterprise (AOL) Ltd,231400,HIGHWAY EQUIPMENT & MATERIALS : Street Lighting,September 2014 works,EGEI,ELECT - STREET LIGHT,CN:Bldg Serv Schemes,50.50
15.10.2014,7500163630,47,153150,Enterprise (AOL) Ltd,231400,HIGHWAY EQUIPMENT & MATERIALS : Street Lighting,September 2014 works,EGEI,ELECT - STREET LIGHT,EN:WORKS MGT- ST LIG,64.00
15.10.2014,7500163630,48,153150,Enterprise (AOL) Ltd,231400,HIGHWAY EQUIPMENT & MATERIALS : Street Lighting,September 2014 works,EGEI,ELECT - STREET LIGHT,EN:WORKS MGT- ST LIG,226.50
15.10.2014,7500163630,49,153150,Enterprise (AOL) Ltd,231400,HIGHWAY EQUIPMENT & MATERIALS : Street Lighting,September 2014 works,EGEI,ELECT - STREET LIGHT,EN:WORKS MGT- ST LIG,34.00
15.10.2014,7500163630,50,153150,Enterprise (AOL) Ltd,231400,HIGHWAY EQUIPMENT & MATERIALS : Street Lighting,September 2014 works,EGEI,ELECT - STREET LIGHT,EN:WORKS MGT- ST LIG,138.50
15.10.2014,7500163630,51,153150,Enterprise (AOL) Ltd,231400,HIGHWAY EQUIPMENT & MATERIALS : Street Lighting,September 2014 works,EGEI,ELECT - STREET LIGHT,EN:WORKS MGT- ST LIG,57.50
15.10.2014,7500163630,52,153150,Enterprise (AOL) Ltd,231400,HIGHWAY EQUIPMENT & MATERIALS : Street Lighting,September 2014 works,EGEI,ELECT - STREET LIGHT,EN:WORKS MGT- ST LIG,91.50
15.10.2014,7500163630,53,153150,Enterprise (AOL) Ltd,231400,HIGHWAY EQUIPMENT & MATERIALS : Street Lighting,September 2014 works,EGEI,ELECT - STREET LIGHT,EN:WORKS MGT- ST LIG,16.00
15.10.2014,7500163630,54,153150,Enterprise (AOL) Ltd,231400,HIGHWAY EQUIPMENT & MATERIALS : Street Lighting,September 2014 works,EGEI,ELECT - STREET LIGHT,EN:WORKS MGT- ST LIG,87.00
15.10.2014,7500163630,55,153150,Enterprise (AOL) Ltd,231400,HIGHWAY EQUIPMENT & MATERIALS : Street Lighting,September 2014 works,EGEI,ELECT - STREET LIGHT,EN:WORKS MGT- ST LIG,194.00
15.10.2014,7500163630,56,153150,Enterprise (AOL) Ltd,231400,HIGHWAY EQUIPMENT & MATERIALS : Street Lighting,September 2014 works,EGEI,ELECT - STREET LIGHT,EN:WORKS MGT- ST LIG,220.00
15.10.2014,7500163630,57,153150,Enterprise (AOL) Ltd,231400,HIGHWAY EQUIPMENT & MATERIALS : Street Lighting,September 2014 works,EGEI,ELECT - STREET LIGHT,EN:WORKS MGT- ST LIG,71.00
15.10.2014,7500163630,58,153150,Enterprise (AOL) Ltd,231400,HIGHWAY EQUIPMENT & MATERIALS : Street Lighting,September 2014 works,EGEI,ELECT - STREET LIGHT,EN:WORKS MGT- ST LIG,52.50
15.10.2014,7500163630,59,153150,Enterprise (AOL) Ltd,231400,HIGHWAY EQUIPMENT & MATERIALS : Street Lighting,September 2014 works,EGEI,ELECT - STREET LIGHT,EN:WORKS MGT- ST LIG,131.00
15.10.2014,7500163630,60,153150,Enterprise (AOL) Ltd,231400,HIGHWAY EQUIPMENT & MATERIALS : Street Lighting,September 2014 works,EGEI,ELECT - STREET LIGHT,EN:WORKS MGT- ST LIG,201.50
15.10.2014,7500163630,61,153150,Enterprise (AOL) Ltd,231400,HIGHWAY EQUIPMENT & MATERIALS : Street Lighting,September 2014 works,EGEI,ELECT - STREET LIGHT,EN:WORKS MGT- ST LIG,60.00
15.10.2014,7500163630,62,153150,Enterprise (AOL) Ltd,231400,HIGHWAY EQUIPMENT & MATERIALS : Street Lighting,September 2014 works,EGEI,ELECT - STREET LIGHT,EN:WORKS MGT- ST LIG,43.25
15.10.2014,7500163630,63,153150,Enterprise (AOL) Ltd,231400,HIGHWAY EQUIPMENT & MATERIALS : Street Lighting,September 2014 works,EGEI,ELECT - STREET LIGHT,EN:WORKS MGT- ST LIG,50.00
15.10.2014,7500163630,64,153150,Enterprise (AOL) Ltd,231400,HIGHWAY EQUIPMENT & MATERIALS : Street Lighting,September 2014 works,EGEI,ELECT - STREET LIGHT,EN:WORKS MGT- ST LIG,75.00
15.10.2014,7500163630,65,153150,Enterprise (AOL) Ltd,231400,HIGHWAY EQUIPMENT & MATERIALS : Street Lighting,September 2014 works,EGEI,ELECT - STREET LIGHT,EN:WORKS MGT- ST LIG,43.25
15.10.2014,7500163630,66,153150,Enterprise (AOL) Ltd,231400,HIGHWAY EQUIPMENT & MATERIALS : Street Lighting,September 2014 works,EGEI,ELECT - STREET LIGHT,EN:WORKS MGT- ST LIG,62.00
15.10.2014,7500163630,67,153150,Enterprise (AOL) Ltd,231400,HIGHWAY EQUIPMENT & MATERIALS : Street Lighting,September 2014 works,EGEI,ELECT - STREET LIGHT,EN:WORKS MGT- ST LIG,166.00
15.10.2014,7500163630,68,153150,Enterprise (AOL) Ltd,231400,HIGHWAY EQUIPMENT & MATERIALS : Street Lighting,September 2014 works,EGEI,ELECT - STREET LIGHT,EN:WORKS MGT- ST LIG,40.00
15.10.2014,7500163630,69,153150,Enterprise (AOL) Ltd,231400,HIGHWAY EQUIPMENT & MATERIALS : Street Lighting,September 2014 works,EGEI,ELECT - STREET LIGHT,EN:WORKS MGT- ST LIG,43.25
15.10.2014,7500163630,70,153150,Enterprise (AOL) Ltd,231400,HIGHWAY EQUIPMENT & MATERIALS : Street Lighting,September 2014 works,EGEI,ELECT - STREET LIGHT,EN:WORKS MGT- ST LIG,43.25
15.10.2014,7500163630,71,153150,Enterprise (AOL) Ltd,231400,HIGHWAY EQUIPMENT & MATERIALS : Street Lighting,September 2014 works,EGEI,ELECT - STREET LIGHT,EN:WORKS MGT- ST LIG,75.00
15.10.2014,7500163630,72,153150,Enterprise (AOL) Ltd,231400,HIGHWAY EQUIPMENT & MATERIALS : Street Lighting,September 2014 works,EGEI,ELECT - STREET LIGHT,EN:WORKS MGT- ST LIG,201.38
15.10.2014,7500163630,73,153150,Enterprise (AOL) Ltd,231400,HIGHWAY EQUIPMENT & MATERIALS : Street Lighting,September 2014 works,EGEI,ELECT - STREET LIGHT,EN:WORKS MGT- ST LIG,217.37
15.10.2014,7500163630,74,153150,Enterprise (AOL) Ltd,231400,HIGHWAY EQUIPMENT & MATERIALS : Street Lighting,September 2014 works,EGEI,ELECT - STREET LIGHT,EN:WORKS MGT- ST LIG,119.00
15.10.2014,7500163630,75,153150,Enterprise (AOL) Ltd,231400,HIGHWAY EQUIPMENT & MATERIALS : Street Lighting,September 2014 works,EGEI,ELECT - STREET LIGHT,EN:WORKS MGT- ST LIG,45.50
15.10.2014,7500163630,76,153150,Enterprise (AOL) Ltd,231400,HIGHWAY EQUIPMENT & MATERIALS : Street Lighting,September 2014 works,EGEI,ELECT - STREET LIGHT,EN:WORKS MGT- ST LIG,103.00
15.10.2014,7500163630,77,153150,Enterprise (AOL) Ltd,231400,HIGHWAY EQUIPMENT & MATERIALS : Street Lighting,September 2014 works,EGEI,ELECT - STREET LIGHT,EN:WORKS MGT- ST LIG,40.00
15.10.2014,7500163630,78,153150,Enterprise (AOL) Ltd,231400,HIGHWAY EQUIPMENT & MATERIALS : Street Lighting,September 2014 works,EGEI,ELECT - STREET LIGHT,EN:WORKS MGT- ST LIG,80.00
15.10.2014,7500163659,1,142195,Manchester Grammar School,171000,EDUCATION : Services,Redacted Personal Data,CFW,NON MAINT SCH FEES,OTHER L.E.A. & IN,"4,394.00"
15.10.2014,7500163659,2,142195,Manchester Grammar School,171000,EDUCATION : Services,Redacted Personal Data,CFW,NON MAINT SCH FEES,OTHER L.E.A. & IN,"4,394.00"
15.10.2014,7500163665,1,134900,Trafford Housing Trust,321000,SOCIAL CARE SERVICES : Adult,Telecare pledge Spet,CFW,CAPITAL - PURCHASE OF FURNITURE & EQUIPMENT,Capital Schemes,"21,976.48"
15.10.2014,7500163668,1,151369,Craegmoor Arden College,321211,SOCIAL CARE SERVICES : Disabled Children : Day Services,Redacted Personal Data,CFW,NON MAINT SCH FEES,Post 16 - Element 3,"3,832.26"
15.10.2014,7500163668,2,151369,Craegmoor Arden College,321211,SOCIAL CARE SERVICES : Disabled Children : Day Services,Redacted Personal Data,CFW,NON MAINT SCH FEES,Post 16 - Element 3,"5,780.14"
15.10.2014,7500163668,3,151369,Craegmoor Arden College,321211,SOCIAL CARE SERVICES : Disabled Children : Day Services,Redacted Personal Data,CFW,NON MAINT SCH FEES,Post 16 - Element 3,"5,973.12"
15.10.2014,7500163668,4,151369,Craegmoor Arden College,321211,SOCIAL CARE SERVICES : Disabled Children : Day Services,Redacted Personal Data,CFW,NON MAINT SCH FEES,Post 16 - Element 3,"5,972.81"
15.10.2014,7500163668,5,151369,Craegmoor Arden College,321211,SOCIAL CARE SERVICES : Disabled Children : Day Services,Redacted Personal Data,CFW,NON MAINT SCH FEES,Post 16 - Element 3,"3,854.10"
15.10.2014,7500163668,6,151369,Craegmoor Arden College,321211,SOCIAL CARE SERVICES : Disabled Children : Day Services,Redacted Personal Data,CFW,NON MAINT SCH FEES,Post 16 - Element 3,"5,780.14"
15.10.2014,7500163668,7,151369,Craegmoor Arden College,321211,SOCIAL CARE SERVICES : Disabled Children : Day Services,Redacted Personal Data,CFW,NON MAINT SCH FEES,Post 16 - Element 3,"3,982.57"
15.10.2014,7500163668,8,151369,Craegmoor Arden College,321211,SOCIAL CARE SERVICES : Disabled Children : Day Services,Redacted Personal Data,CFW,NON MAINT SCH FEES,Post 16 - Element 3,"5,972.81"
15.10.2014,7500163668,9,151369,Craegmoor Arden College,321211,SOCIAL CARE SERVICES : Disabled Children : Day Services,Redacted Personal Data,CFW,NON MAINT SCH FEES,Post 16 - Element 3,"3,960.01"
15.10.2014,7500163668,10,151369,Craegmoor Arden College,321211,SOCIAL CARE SERVICES : Disabled Children : Day Services,Redacted Personal Data,CFW,NON MAINT SCH FEES,Post 16 - Element 3,"5,972.81"
15.10.2014,7500163668,11,151369,Craegmoor Arden College,321211,SOCIAL CARE SERVICES : Disabled Children : Day Services,Redacted Personal Data,CFW,NON MAINT SCH FEES,Post 16 - Element 3,"3,576.78"
15.10.2014,7500163668,12,151369,Craegmoor Arden College,321211,SOCIAL CARE SERVICES : Disabled Children : Day Services,Redacted Personal Data,CFW,NON MAINT SCH FEES,Post 16 - Element 3,"5,394.80"
15.10.2014,7500163668,13,151369,Craegmoor Arden College,321211,SOCIAL CARE SERVICES : Disabled Children : Day Services,Redacted Personal Data,CFW,NON MAINT SCH FEES,Post 16 - Element 3,"3,960.01"
15.10.2014,7500163668,14,151369,Craegmoor Arden College,321211,SOCIAL CARE SERVICES : Disabled Children : Day Services,Redacted Personal Data,CFW,NON MAINT SCH FEES,Post 16 - Element 3,"5,972.81"
15.10.2014,7500163669,1,151504,Ruskin Mill Trust Ltd,321117,SOCIAL CARE SERVICES : Children : Residential Care,Redacted Personal Data,CFW,NON MAINT SCH FEES,Post 16 - Element 3,"4,724.27"
15.10.2014,7500163669,2,151504,Ruskin Mill Trust Ltd,321117,SOCIAL CARE SERVICES : Children : Residential Care,Redacted Personal Data,CFW,NON MAINT SCH FEES,Post 16 - Element 3,"3,462.91"
15.10.2014,7500163669,3,151504,Ruskin Mill Trust Ltd,321117,SOCIAL CARE SERVICES : Children : Residential Care,Redacted Personal Data,CFW,NON MAINT SCH FEES,Post 16 - Element 3,"6,534.45"
15.10.2014,7500163669,4,151504,Ruskin Mill Trust Ltd,321117,SOCIAL CARE SERVICES : Children : Residential Care,Redacted Personal Data,CFW,NON MAINT SCH FEES,Post 16 - Element 3,"4,724.27"
15.10.2014,7500163669,5,151504,Ruskin Mill Trust Ltd,321117,SOCIAL CARE SERVICES : Children : Residential Care,Redacted Personal Data,CFW,NON MAINT SCH FEES,Post 16 - Element 3,"3,462.91"
15.10.2014,7500163669,6,151504,Ruskin Mill Trust Ltd,321117,SOCIAL CARE SERVICES : Children : Residential Care,Redacted Personal Data,CFW,NON MAINT SCH FEES,Post 16 - Element 3,"6,534.45"
15.10.2014,7500163669,7,151504,Ruskin Mill Trust Ltd,321117,SOCIAL CARE SERVICES : Children : Residential Care,Redacted Personal Data,CFW,NON MAINT SCH FEES,Post 16 - Element 3,"4,724.27"
15.10.2014,7500163669,8,151504,Ruskin Mill Trust Ltd,321117,SOCIAL CARE SERVICES : Children : Residential Care,Redacted Personal Data,CFW,NON MAINT SCH FEES,Post 16 - Element 3,"3,462.91"
15.10.2014,7500163669,9,151504,Ruskin Mill Trust Ltd,321117,SOCIAL CARE SERVICES : Children : Residential Care,Redacted Personal Data,CFW,NON MAINT SCH FEES,Post 16 - Element 3,"6,534.45"
15.10.2014,7500163669,10,151504,Ruskin Mill Trust Ltd,321117,SOCIAL CARE SERVICES : Children : Residential Care,Redacted Personal Data,CFW,NON MAINT SCH FEES,Post 16 - Element 3,"4,724.27"
15.10.2014,7500163669,11,151504,Ruskin Mill Trust Ltd,321117,SOCIAL CARE SERVICES : Children : Residential Care,Redacted Personal Data,CFW,NON MAINT SCH FEES,Post 16 - Element 3,"3,462.91"
15.10.2014,7500163669,12,151504,Ruskin Mill Trust Ltd,321117,SOCIAL CARE SERVICES : Children : Residential Care,Redacted Personal Data,CFW,NON MAINT SCH FEES,Post 16 - Element 3,"6,534.45"
15.10.2014,7500163669,13,151504,Ruskin Mill Trust Ltd,321117,SOCIAL CARE SERVICES : Children : Residential Care,Redacted Personal Data,CFW,NON MAINT SCH FEES,Post 16 - Element 3,"4,724.27"
15.10.2014,7500163669,14,151504,Ruskin Mill Trust Ltd,321117,SOCIAL CARE SERVICES : Children : Residential Care,Redacted Personal Data,CFW,NON MAINT SCH FEES,Post 16 - Element 3,"3,462.91"
15.10.2014,7500163669,15,151504,Ruskin Mill Trust Ltd,321117,SOCIAL CARE SERVICES : Children : Residential Care,Redacted Personal Data,CFW,NON MAINT SCH FEES,Post 16 - Element 3,"6,534.45"
15.10.2014,7500163669,16,151504,Ruskin Mill Trust Ltd,321117,SOCIAL CARE SERVICES : Children : Residential Care,Redacted Personal Data,CFW,NON MAINT SCH FEES,Post 16 - Element 3,"4,724.27"
15.10.2014,7500163669,17,151504,Ruskin Mill Trust Ltd,321117,SOCIAL CARE SERVICES : Children : Residential Care,Redacted Personal Data,CFW,NON MAINT SCH FEES,Post 16 - Element 3,"3,462.91"
15.10.2014,7500163669,18,151504,Ruskin Mill Trust Ltd,321117,SOCIAL CARE SERVICES : Children : Residential Care,Redacted Personal Data,CFW,NON MAINT SCH FEES,Post 16 - Element 3,"6,534.45"
15.10.2014,7500163669,19,151504,Ruskin Mill Trust Ltd,321117,SOCIAL CARE SERVICES : Children : Residential Care,Redacted Personal Data,CFW,NON MAINT SCH FEES,Post 16 - Element 3,"4,724.27"
15.10.2014,7500163669,20,151504,Ruskin Mill Trust Ltd,321117,SOCIAL CARE SERVICES : Children : Residential Care,Redacted Personal Data,CFW,NON MAINT SCH FEES,Post 16 - Element 3,"3,462.91"
15.10.2014,7500163669,21,151504,Ruskin Mill Trust Ltd,321117,SOCIAL CARE SERVICES : Children : Residential Care,Redacted Personal Data,CFW,NON MAINT SCH FEES,Post 16 - Element 3,"6,534.45"
15.10.2014,7500163671,1,152115,Keepmoat Property Services Ltd,391110,WORKS - CONSTRUCTION : Buildings : Construction,Disabled Facilities,CFW,CLIENTS ADAPTATIONS,HS:ADAPTATIONS,"5,319.59"
15.10.2014,7500163676,1,144312,Handicare Accessibility Ltd,391110,WORKS - CONSTRUCTION : Buildings : Construction,Disabled Facilities,CFW,CLIENTS ADAPTATIONS,HS:ADAPTATIONS,"10,346.00"
15.10.2014,7500163677,1,138741,Dlp Services Northern Ltd,391110,WORKS - CONSTRUCTION : Buildings : Construction,Disabled Facilities,CFW,CLIENTS ADAPTATIONS,HS:ADAPTATIONS,"21,178.00"
15.10.2014,7500163714,1,147103,Pure Innovations Ltd,261500,HR : Training & Conferences,Trafford Supported T,CFW,GRANTS TO VOL ORGS,LD DEV FUND,"2,916.67"
15.10.2014,7500163714,2,147103,Pure Innovations Ltd,261500,HR : Training & Conferences,Trafford Supported T,CFW,GRANTS TO VOL ORGS,LD DEV FUND,"8,750.00"
15.10.2014,7500163714,3,147103,Pure Innovations Ltd,261500,HR : Training & Conferences,Trafford Supported T,CFW,GRANTS TO VOL ORGS,LD DEV FUND,"8,750.00"
15.10.2014,7500163718,1,139244,Direct Cars Manchester Ltd,361300,TRANSPORT : Passenger Transport,Direct Run SS C54 Lo,CFW,Internal Trans Rchrg,LD TRANSPORT,"11,400.00"
15.10.2014,7500163719,1,139244,Direct Cars Manchester Ltd,361300,TRANSPORT : Passenger Transport,Direct - SS C45 Nat.,CFW,Internal Trans Rchrg,LD TRANSPORT,"6,840.00"
15.10.2014,7500163720,1,139244,Direct Cars Manchester Ltd,361300,TRANSPORT : Passenger Transport,Run SS C6 Trafford C,CFW,Internal Trans Rchrg,LD TRANSPORT,"11,400.00"
15.10.2014,7500163721,1,139244,Direct Cars Manchester Ltd,361300,TRANSPORT : Passenger Transport,SS 3 Meadowside 2014,CFW,Internal Trans Rchrg,LD TRANSPORT,"23,184.00"
15.10.2014,7500163721,2,139244,Direct Cars Manchester Ltd,361300,TRANSPORT : Passenger Transport,SS 3 Meadowside 2014,CFW,Internal Trans Rchrg,LD TRANSPORT,"12,600.00"
15.10.2014,7500163722,1,139244,Direct Cars Manchester Ltd,361300,TRANSPORT : Passenger Transport,SS C15 Trafford Coll,CFW,Internal Trans Rchrg,LD TRANSPORT,"7,600.00"
15.10.2014,7500163723,1,139244,Direct Cars Manchester Ltd,361300,TRANSPORT : Passenger Transport,Run SS C43 EAM/Stock,CFW,Internal Trans Rchrg,LD TRANSPORT,"25,200.00"
15.10.2014,7500163726,1,153213,Redacted Personal Data,361300,TRANSPORT : Passenger Transport,Redacted Personal Data,CFW,CONT HIRE HOME TO SC,Home to School Tr,"17,480.00"
15.10.2014,7500163728,1,139244,Direct Cars Manchester Ltd,361300,TRANSPORT : Passenger Transport,Direct Run SS C49 Ne,CFW,Internal Trans Rchrg,LD TRANSPORT,"7,866.00"
15.10.2014,7500163728,2,139244,Direct Cars Manchester Ltd,361300,TRANSPORT : Passenger Transport,Direct Run SS C49 St,CFW,Internal Trans Rchrg,LD TRANSPORT,"4,560.00"
15.10.2014,7500163729,1,139244,Direct Cars Manchester Ltd,361300,TRANSPORT : Passenger Transport,SS C5 Trafford Colle,CFW,Internal Trans Rchrg,LD TRANSPORT,"20,900.00"
15.10.2014,7500163730,1,139244,Direct Cars Manchester Ltd,361300,TRANSPORT : Passenger Transport,Trafford College Pas,CFW,Internal Trans Rchrg,LD TRANSPORT,"9,120.00"
15.10.2014,7500163730,2,139244,Direct Cars Manchester Ltd,361300,TRANSPORT : Passenger Transport,Trafford College Pas,CFW,Internal Trans Rchrg,LD TRANSPORT,"11,400.00"
16.10.2014,7500163753,1,153095,Foster Cares Ltd,321117,SOCIAL CARE SERVICES : Children : Residential Care,Redacted Personal Data,CFW,CONT VOL BODIES,CHILDREN'S HOMES,"15,771.56"
16.10.2014,7500163753,2,153095,Foster Cares Ltd,321117,SOCIAL CARE SERVICES : Children : Residential Care,Redacted Personal Data,CFW,CONT VOL BODIES,CHILDREN'S HOMES,"25,200.21"
16.10.2014,7500163754,1,153174,Three Circles Fostering,322003,SOCIAL CARE SERVICES: Children : Fostering,Redacted Personal Data,CFW,CONT VOL BODIES,PLACEMENT FOSTERING,"22,208.76"
16.10.2014,7500163754,2,153174,Three Circles Fostering,322003,SOCIAL CARE SERVICES: Children : Fostering,Redacted Personal Data,CFW,CONT VOL BODIES,PLACEMENT FOSTERING,"5,551.56"
16.10.2014,7500163755,1,153174,Three Circles Fostering,322003,SOCIAL CARE SERVICES: Children : Fostering,Redacted Personal Data,CFW,CONT VOL BODIES,PLACEMENT FOSTERING,"9,255.74"
16.10.2014,7500163755,2,153174,Three Circles Fostering,322003,SOCIAL CARE SERVICES: Children : Fostering,Redacted Personal Data,CFW,CONT VOL BODIES,PLACEMENT FOSTERING,"2,315.39"
16.10.2014,7500163756,1,153174,Three Circles Fostering,322003,SOCIAL CARE SERVICES: Children : Fostering,Redacted Personal Data,CFW,CONT VOL BODIES,PLACEMENT FOSTERING,"24,025.68"
16.10.2014,7500163756,2,153174,Three Circles Fostering,322003,SOCIAL CARE SERVICES: Children : Fostering,Redacted Personal Data,CFW,CONT VOL BODIES,PLACEMENT FOSTERING,"6,005.16"
16.10.2014,7500163784,1,139574,Quartzelec Ltd,101100,BUILDING MATERIALS : Electrical,Electrical Rewire,EGEI,A&M PAY TO CONTRACTO,Capital Schemes,"173,825.00"
16.10.2014,7500163788,1,144276,Great Places Housing Association,202000,FINANCIAL SERVICES : Rents,Oct-04,CFW,RENT OF LAND,SUPP PEOPLE SCHEME,"25,820.05"
16.10.2014,7500163788,2,144276,Great Places Housing Association,202000,FINANCIAL SERVICES : Rents,Nov-14,CFW,RENT OF LAND,SUPP PEOPLE SCHEME,"25,820.05"
16.10.2014,7500163788,3,144276,Great Places Housing Association,202000,FINANCIAL SERVICES : Rents,Dec-14,CFW,RENT OF LAND,SUPP PEOPLE SCHEME,"25,820.05"
16.10.2014,7500163788,4,144276,Great Places Housing Association,202000,FINANCIAL SERVICES : Rents,Jan-15,CFW,RENT OF LAND,SUPP PEOPLE SCHEME,"25,820.05"
16.10.2014,7500163788,5,144276,Great Places Housing Association,202000,FINANCIAL SERVICES : Rents,Feb-15,CFW,RENT OF LAND,SUPP PEOPLE SCHEME,"25,820.05"
16.10.2014,7500163788,6,144276,Great Places Housing Association,202000,FINANCIAL SERVICES : Rents,Mar-15,CFW,RENT OF LAND,SUPP PEOPLE SCHEME,"25,820.05"
16.10.2014,7500163788,7,144276,Great Places Housing Association,202000,FINANCIAL SERVICES : Rents,Apr-15,CFW,RENT OF LAND,SUPP PEOPLE SCHEME,"25,820.05"
16.10.2014,7500163788,8,144276,Great Places Housing Association,202000,FINANCIAL SERVICES : Rents,May-15,CFW,RENT OF LAND,SUPP PEOPLE SCHEME,"25,820.05"
16.10.2014,7500163788,9,144276,Great Places Housing Association,202000,FINANCIAL SERVICES : Rents,Jun-15,CFW,RENT OF LAND,SUPP PEOPLE SCHEME,"25,820.05"
16.10.2014,7500163788,10,144276,Great Places Housing Association,202000,FINANCIAL SERVICES : Rents,Jul-15,CFW,RENT OF LAND,SUPP PEOPLE SCHEME,"25,820.05"
16.10.2014,7500163788,11,144276,Great Places Housing Association,202000,FINANCIAL SERVICES : Rents,Aug-15,CFW,RENT OF LAND,SUPP PEOPLE SCHEME,"25,820.05"
16.10.2014,7500163788,12,144276,Great Places Housing Association,202000,FINANCIAL SERVICES : Rents,Sep-15,CFW,RENT OF LAND,SUPP PEOPLE SCHEME,"25,820.05"
16.10.2014,7500163801,1,140079,J Cooney Ltd,391400,WORKS - CONSTRUCTION : Roads,Ely Ave Stretford -,EGEI,Inf - Main Works Con,Capital Schemes,"35,009.72"
16.10.2014,7500163810,1,140079,J Cooney Ltd,391400,WORKS - CONSTRUCTION : Roads,Humphrey Crescent -,EGEI,Inf - Main Works Con,Capital Schemes,"17,883.82"
16.10.2014,7500163832,1,144276,Great Places Housing Association,202000,FINANCIAL SERVICES : Rents,performance related,CFW,RENT OF LAND,SUPP PEOPLE SCHEME,"15,940.57"
17.10.2014,7500163849,1,139455,Streetwise UK Management Ltd,351100,TRAFFIC MANAGEMENT : Equipment,Traffic Management D,EGEI,EQUIPMENT - PURCHASE,MUFC TMP Policing,"25,341.60"
17.10.2014,7500163859,1,145352,Stockport MBC (C&YP Psychology Serv,261500,HR : Training & Conferences,Stokcport - Ed Psy s,CFW,DEF PAYMENT GRANT,FOSTER RETENTION,"2,400.00"
17.10.2014,7500163859,2,145352,Stockport MBC (C&YP Psychology Serv,261500,HR : Training & Conferences,Stokcport - Ed Psy s,CFW,DEF PAYMENT GRANT,FOSTER RETENTION,"3,000.00"
17.10.2014,7500163874,1,153230,Purcell Miller Tritton LLP,151000,CONSULTANCY : Business,CONSULTANCY,EGEI,CONSULTANTS,LOCAL DEV FRAME,"25,063.00"
17.10.2014,7500163896,1,136908,HAWKESWORTH APPLIANCE TESTING LTD,271300,ICT : Maintenance,Altrincham Town Hall,EGEI,EXTERNAL DAY-TO-DAY,CN:Bldg Serv Schemes,43.25
17.10.2014,7500163896,2,136908,HAWKESWORTH APPLIANCE TESTING LTD,271300,ICT : Maintenance,Redacted Personal Data,EGEI,EXTERNAL DAY-TO-DAY,CN:Bldg Serv Schemes,57.50
17.10.2014,7500163896,3,136908,HAWKESWORTH APPLIANCE TESTING LTD,271300,ICT : Maintenance,Old Trafford Youth C,EGEI,EXTERNAL DAY-TO-DAY,CN:Bldg Serv Schemes,80.50
17.10.2014,7500163896,4,136908,HAWKESWORTH APPLIANCE TESTING LTD,271300,ICT : Maintenance,Old Trafford Youth C,EGEI,EXTERNAL DAY-TO-DAY,CN:Bldg Serv Schemes,15.00
17.10.2014,7500163896,5,136908,HAWKESWORTH APPLIANCE TESTING LTD,271300,ICT : Maintenance,Stretford Library IN,EGEI,EXTERNAL DAY-TO-DAY,CN:Bldg Serv Schemes,23.25
17.10.2014,7500163896,6,136908,HAWKESWORTH APPLIANCE TESTING LTD,271300,ICT : Maintenance,Stretford & Lostock,EGEI,EXTERNAL DAY-TO-DAY,CN:Bldg Serv Schemes,221.75
17.10.2014,7500163896,7,136908,HAWKESWORTH APPLIANCE TESTING LTD,271300,ICT : Maintenance,Trafford Council Old,EGEI,EXTERNAL DAY-TO-DAY,CN:Bldg Serv Schemes,986.50
17.10.2014,7500163896,8,136908,HAWKESWORTH APPLIANCE TESTING LTD,271300,ICT : Maintenance,Trafford Town Hall I,EGEI,EXTERNAL DAY-TO-DAY,CN:Bldg Serv Schemes,"6,010.50"
17.10.2014,7500163898,1,139592,J Fletcher (Engineers) Ltd,101700,BUILDING MATERIALS : Heating & Air Conditioning,sale west yc,EGEI,A&M PAY TO CONTRACTO,Capital Schemes,"13,522.00"
17.10.2014,7500163899,1,139598,McCosker Ltd,391110,WORKS - CONSTRUCTION : Buildings : Construction,Stamford Park Infant,EGEI,EXTERNAL DAY-TO-DAY,CN:Bldg Serv Schemes,"13,652.60"
17.10.2014,7500163899,2,139598,McCosker Ltd,391110,WORKS - CONSTRUCTION : Buildings : Construction,Stamford Park Infant,EGEI,EXTERNAL DAY-TO-DAY,CN:Bldg Serv Schemes,"6,160.40"
17.10.2014,7500163906,1,139595,AT Nolan Ltd,391113,WORKS - CONSTRUCTION : Buildings : Repair,St Matthews CE Prima,EGEI,EXTERNAL DAY-TO-DAY,CN:Bldg Serv Schemes,"10,823.00"
17.10.2014,7500163907,1,139595,AT Nolan Ltd,391113,WORKS - CONSTRUCTION : Buildings : Repair,St Matthews Primary,EGEI,EXTERNAL DAY-TO-DAY,CN:Bldg Serv Schemes,"36,003.00"
17.10.2014,7500163910,1,139582,P McGuinness & Co Ltd,180000,ENVIRONMENT : Asbestos Removal,Walting Gate Timperl,EGEI,EXTERNAL DAY-TO-DAY,CN:Bldg Serv Schemes,"79,702.50"
20.10.2014,7500163925,1,135994,North Western Local Authorities Emp,261500,HR : Training & Conferences,Mobilising for Chang,T & R ,CONFERENCE EXP OFF,Training & Develope,"20,540.80"
20.10.2014,7500163958,1,153239,Loreto Preparatory School,321211,SOCIAL CARE SERVICES : Disabled Children : Day Services,Redacted Personal Data,CFW,NON MAINT SCH FEES,OTHER L.E.A. & IN,"1,742.00"
20.10.2014,7500163958,2,153239,Loreto Preparatory School,321211,SOCIAL CARE SERVICES : Disabled Children : Day Services,Redacted Personal Data,CFW,NON MAINT SCH FEES,OTHER L.E.A. & IN,"1,742.00"
20.10.2014,7500163958,3,153239,Loreto Preparatory School,321211,SOCIAL CARE SERVICES : Disabled Children : Day Services,Redacted Personal Data,CFW,NON MAINT SCH FEES,OTHER L.E.A. & IN,"1,742.00"
20.10.2014,7500163958,4,153239,Loreto Preparatory School,321211,SOCIAL CARE SERVICES : Disabled Children : Day Services,Redacted Personal Data,CFW,NON MAINT SCH FEES,OTHER L.E.A. & IN,"1,742.00"
20.10.2014,7500163958,5,153239,Loreto Preparatory School,321211,SOCIAL CARE SERVICES : Disabled Children : Day Services,Redacted Personal Data,CFW,NON MAINT SCH FEES,OTHER L.E.A. & IN,"1,742.00"
20.10.2014,7500163995,1,148223,Trafford Centre for Independent Living,321010,SOCIAL CARE SERVICES : Adult : Advice & Counselling Services,Life Coaching Projec,CFW,Social Care-3rd Prty,CAN Comm Fund,"25,000.00"
20.10.2014,7500163996,1,140079,J Cooney Ltd,391400,WORKS - CONSTRUCTION : Roads,application 1403/41,EGEI,A&M PAY TO CONTRACTO,Capital Schemes,"52,125.00"
20.10.2014,7500164006,1,140079,J Cooney Ltd,391400,WORKS - CONSTRUCTION : Roads,Trafford Park Bus La,EGEI,Inf - Main Works Con,Capital Schemes,"56,327.32"
21.10.2014,7500164032,1,152973,Redacted Personal Data,261000,HR : Accommodation,Room Rental Charges,CFW,SECT 17 PAY ITEM 6,NO RECOURSE TO FUNDS,"6,380.40"
21.10.2014,7500164032,2,152973,Redacted Personal Data,261000,HR : Accommodation,Hostel Charges,CFW,SECT 17 PAY ITEM 6,NO RECOURSE TO FUNDS,780.00
21.10.2014,7500164043,1,138741,Dlp Services Northern Ltd,391110,WORKS - CONSTRUCTION : Buildings : Construction,Disabled Facilities,CFW,CLIENTS ADAPTATIONS,HS:ADAPTATIONS,"5,354.44"
21.10.2014,7500164052,1,138741,Dlp Services Northern Ltd,391110,WORKS - CONSTRUCTION : Buildings : Construction,Disabled Facilities,CFW,CLIENTS ADAPTATIONS,HS:ADAPTATIONS,"20,341.05"
21.10.2014,7500164066,1,140577,R Purcell Civil Eng Contractors LTD,391410,WORKS - CONSTRUCTION : Roads : Construction,purcell excavate and,EGEI,EQUIPMENT - HIRE,HIGH/DRAIN WORKS MGT,"7,244.42"
21.10.2014,7500164117,1,147890,Witherslack Care Ltd,321100,SOCIAL CARE SERVICES : Children,Redacted Personal Data,CFW,EXT RES CARE FEES,CHILDREN'S HOMES,"52,257.00"
21.10.2014,7500164118,1,139771,B & S Travel Ltd,361300,TRANSPORT : Passenger Transport,Redacted Personal Data,CFW,CONT HIRE HOME TO SC,Home to School Tr,"17,820.00"
22.10.2014,7500164123,1,140079,J Cooney Ltd,391400,WORKS - CONSTRUCTION : Roads,The Square Hale Barn,EGEI,Inf - Main Works Con,Capital Schemes,"36,185.02"
21.10.2014,7500164125,1,139771,B & S Travel Ltd,361300,TRANSPORT : Passenger Transport,B & S - Run 560 Nuge,CFW,CONT HIRE HOME TO SC,Home to School Tr,"18,630.00"
22.10.2014,7500164141,1,140577,R Purcell Civil Eng Contractors LTD,391410,WORKS - CONSTRUCTION : Roads : Construction,Purcell dayworks Aug,EGEI,EXTERNAL DAY-TO-DAY,HIGH/DRAIN WORKS MGT,"13,932.83"
22.10.2014,7500164143,1,137557,Stockport MBC (Contributions),202100,FINANCIAL SERVICES : Subscriptions,Switch Contribution,T & R ,IT MAINT SOFTWARE,HR Shared Services,"68,414.89"
22.10.2014,7500164173,1,150881,NHS Trafford CCG,311600,MEDICAL : Services,CCG - Prescribing re,T & R ,MEDICAL REQUISITES,METHADONE,"10,336.72"
22.10.2014,7500164173,2,150881,NHS Trafford CCG,311600,MEDICAL : Services,CCG - Prescribing re,T & R ,MEDICAL REQUISITES,METHADONE,"2,825.49"
22.10.2014,7500164173,3,150881,NHS Trafford CCG,311600,MEDICAL : Services,CCG -Prescribing rec,T & R ,MEDICAL REQUISITES,CONTRACEPTIVES,"23,392.66"
22.10.2014,7500164173,4,150881,NHS Trafford CCG,311600,MEDICAL : Services,CCG - Prescribing re,T & R ,MEDICAL REQUISITES,ALCOHOL MISUSE DRUG,"1,582.23"
22.10.2014,7500164179,1,150881,NHS Trafford CCG,311600,MEDICAL : Services,CCG - Prescribing re,T & R ,MEDICAL REQUISITES,METHADONE,"10,619.00"
22.10.2014,7500164179,2,150881,NHS Trafford CCG,311600,MEDICAL : Services,CCG - Prescribing re,T & R ,MEDICAL REQUISITES,METHADONE,"3,367.00"
22.10.2014,7500164179,3,150881,NHS Trafford CCG,311600,MEDICAL : Services,CCG -Prescribing rec,T & R ,MEDICAL REQUISITES,CONTRACEPTIVES,"27,752.00"
22.10.2014,7500164179,4,150881,NHS Trafford CCG,311600,MEDICAL : Services,CCG - Prescribing re,T & R ,MEDICAL REQUISITES,ALCOHOL MISUSE DRUG,"1,955.00"
22.10.2014,7500164196,1,134900,Trafford Housing Trust,321000,SOCIAL CARE SERVICES : Adult,Telecare Charges Sep,CFW,CONTRIB EXT PROJECTS,Community Alarms,"14,563.96"
22.10.2014,7500164198,1,149327,Pulse Regeneration Limited,321000,SOCIAL CARE SERVICES : Adult,PULSE CONTRACT,EGEI,SUPP LIVING CONT,Community Strategy Refresh,"144,399.96"
22.10.2014,7500164204,1,140789,Addleshaw Goddard LLP,281300,LEGAL SERVICES : Legal Opinion,environmental & infr,T & R ,LEGAL FEES,LD:LEGAL CENTRAL OFF,"10,000.00"
22.10.2014,7500164214,1,138894,Zurich Insurance Company,201800,FINANCIAL SERVICES : Insurance,Risk Management Fee,T & R ,ZM PREMIUMS (CORP),BAL OF RISK CLAIMS,"10,000.00"
23.10.2014,7500164227,1,128255,Freedom Communications (UK) Ltd,271700,ICT : Telecommunications - Fixed,PSTN Line Rental Oct,T & R ,TELEPHONES - RENTALS,EG:IT EQUIPMENT,"8,750.65"
23.10.2014,7500164227,2,128255,Freedom Communications (UK) Ltd,271700,ICT : Telecommunications - Fixed,PSTN Call Charges Ju,T & R ,TELEPHONES - CALLS,EG:IT EQUIPMENT,"2,013.64"
23.10.2014,7500164227,3,128255,Freedom Communications (UK) Ltd,271700,ICT : Telecommunications - Fixed,ISDN30e Call Charges,T & R ,TELEPHONES - CALLS,EG:VOICE NETWORK COR,"1,207.39"
23.10.2014,7500164233,1,148368,LK Management Ltd,151911,CONSULTANCY : Management : Organisation & Planning,CONSULTANCY,EGEI,EXT PROJECT MAN,Capital Schemes,"10,000.00"
23.10.2014,7500164238,1,139345,AECOM Ltd,151610,CONSULTANCY : Highways : Engineering,TRAF 02B - TRO revie,EGEI,EXT ENG HIGHWAY,Capital Schemes,"26,250.00"
23.10.2014,7500164265,1,152975,User Voice,321119,SOCIAL CARE SERVICES : Children : Youth Offending Services,User led project Aug,CFW,PRIVATE CONTRACTORS,CommissionedProjects,"4,776.00"
23.10.2014,7500164265,2,152975,User Voice,321119,SOCIAL CARE SERVICES : Children : Youth Offending Services,User led project Jun,CFW,PRIVATE CONTRACTORS,CommissionedProjects,"4,776.00"
23.10.2014,7500164265,3,152975,User Voice,321119,SOCIAL CARE SERVICES : Children : Youth Offending Services,User led project Jul,CFW,PRIVATE CONTRACTORS,CommissionedProjects,"4,776.00"
23.10.2014,7500164286,1,151118,IRG Advisors LLP,261500,HR : Training & Conferences,Redacted Personal Data,T & R ,CONSULTANTS,Transformation Prog,"39,000.00"
24.10.2014,7500164293,1,141663,Neopost Ltd (Franking Credit Only),301200,MAIL SERVICES : Postage,Credifon Account Rec,EGEI,POSTAGES,AM:Post Room,"10,000.00"
24.10.2014,7500164296,1,128258,British Telecommunications Ltd,271700,ICT : Telecommunications - Fixed,MAN/WAN (Edge) Line,T & R ,IT LINE RENTALS,EG:IT EQUIPMENT,"15,556.44"
24.10.2014,7500164296,2,128258,British Telecommunications Ltd,271700,ICT : Telecommunications - Fixed,MAN/WAN (Core) Maint,T & R ,IT LINE MAINTENANCE COSTS,EG:VOICE NETWORK COR,"1,146.12"
24.10.2014,7500164296,3,128258,British Telecommunications Ltd,271700,ICT : Telecommunications - Fixed,MAN/WAN (School) Lin,T & R ,IT LINE RENTALS,EG: SCHOOLS SLA,"18,200.00"
24.10.2014,7500164331,1,151818,Smartwork.com. Ltd,151800,CONSULTANCY : IT,Redacted Personal Data,T & R ,EXT PROJECT MAN,Capital Schemes,"55,384.00"
24.10.2014,7500164344,1,139595,AT Nolan Ltd,391113,WORKS - CONSTRUCTION : Buildings : Repair,St Matthews Primary,EGEI,EXTERNAL DAY-TO-DAY,CN:Bldg Serv Schemes,"36,003.00"
24.10.2014,7500164349,1,139595,AT Nolan Ltd,391113,WORKS - CONSTRUCTION : Buildings : Repair,St Matthews Primary,EGEI,EXTERNAL DAY-TO-DAY,CN:Bldg Serv Schemes,"10,823.00"
24.10.2014,7500164350,1,139595,AT Nolan Ltd,391113,WORKS - CONSTRUCTION : Buildings : Repair,Gorse Hill Primary S,EGEI,EXTERNAL DAY-TO-DAY,CN:Bldg Serv Schemes,"24,281.00"
24.10.2014,7500164352,1,139610,Tarmac Limited,231100,HIGHWAY EQUIPT&MATLS : Bitumen & Surface Dressing,Stretford Road Urmst,EGEI,Inf - Main Works Con,Capital Schemes,"69,997.97"
24.10.2014,7500164353,1,140079,J Cooney Ltd,391400,WORKS - CONSTRUCTION : Roads,Barnfield Urmston -,EGEI,Inf - Main Works Con,Capital Schemes,"58,612.20"
24.10.2014,7500164357,1,140079,J Cooney Ltd,391400,WORKS - CONSTRUCTION : Roads,App 1406/14 - talbot,EGEI,A&M PAY TO CONTRACTO,Capital Schemes,"62,083.00"
27.10.2014,7500164388,1,149285,Safecote Limited,231800,HIGHWAY EQUIPMENT & MATERIALS : Services,Safecote Quad Bike H,EGEI,EQUIPMENT (TRANS),TT:PR SNOW AND ICE T,"11,040.00"
27.10.2014,7500164388,2,149285,Safecote Limited,231800,HIGHWAY EQUIPMENT & MATERIALS : Services,Safecote Quad Bike D,EGEI,EQUIPMENT (TRANS),TT:PR SNOW AND ICE T,570.00
27.10.2014,7500164396,1,153174,Three Circles Fostering,322003,SOCIAL CARE SERVICES: Children : Fostering,Redacted Personal Data,CFW,CONT VOL BODIES,PLACEMENT FOSTERING,"12,595.44"
27.10.2014,7500164396,2,153174,Three Circles Fostering,322003,SOCIAL CARE SERVICES: Children : Fostering,Redacted Personal Data,CFW,CONT VOL BODIES,PLACEMENT FOSTERING,"3,149.52"
27.10.2014,7500164416,1,153174,Three Circles Fostering,322003,SOCIAL CARE SERVICES: Children : Fostering,Redacted Personal Data,CFW,CONT VOL BODIES,PLACEMENT FOSTERING,"33,633.04"
27.10.2014,7500164416,2,153174,Three Circles Fostering,322003,SOCIAL CARE SERVICES: Children : Fostering,Redacted Personal Data,CFW,CONT VOL BODIES,PLACEMENT FOSTERING,"8,408.26"
28.10.2014,7500164426,1,136171,The Together Trust,321214,SOCIAL CARE SERVICES : Disabled Children : Residential Care,Redacted Personal Data,CFW,NON MAINT SCH FEES,Post 16 - Element 3,"5,461.52"
28.10.2014,7500164426,2,136171,The Together Trust,321214,SOCIAL CARE SERVICES : Disabled Children : Residential Care,Redacted Personal Data,CFW,NON MAINT SCH FEES,Post 16 - Element 3,"5,461.52"
28.10.2014,7500164426,3,136171,The Together Trust,321214,SOCIAL CARE SERVICES : Disabled Children : Residential Care,Redacted Personal Data,CFW,NON MAINT SCH FEES,Post 16 - Element 3,"5,461.52"
28.10.2014,7500164426,4,136171,The Together Trust,321214,SOCIAL CARE SERVICES : Disabled Children : Residential Care,Redacted Personal Data,CFW,NON MAINT SCH FEES,Post 16 - Element 3,"5,461.52"
28.10.2014,7500164426,5,136171,The Together Trust,321214,SOCIAL CARE SERVICES : Disabled Children : Residential Care,Redacted Personal Data,CFW,NON MAINT SCH FEES,Post 16 - Element 3,"5,461.52"
28.10.2014,7500164426,6,136171,The Together Trust,321214,SOCIAL CARE SERVICES : Disabled Children : Residential Care,Redacted Personal Data,CFW,NON MAINT SCH FEES,Post 16 - Element 3,"5,461.52"
28.10.2014,7500164426,7,136171,The Together Trust,321214,SOCIAL CARE SERVICES : Disabled Children : Residential Care,Redacted Personal Data,CFW,NON MAINT SCH FEES,Post 16 - Element 3,"5,461.52"
28.10.2014,7500164436,1,140577,R Purcell Civil Eng Contractors LTD,391410,WORKS - CONSTRUCTION : Roads : Construction,purcell ltd invoice,EGEI,SUPPLIES/SERVICES,HIGH/DRAIN WORKS MGT,"46,102.80"
28.10.2014,7500164442,1,139610,Tarmac Limited,231100,HIGHWAY EQUIPT&MATLS : Bitumen & Surface Dressing,M60 Parkway junction,EGEI,Inf - Main Works Con,Capital Schemes,"21,685.68"
28.10.2014,7500164454,1,139610,Tarmac Limited,231100,HIGHWAY EQUIPT&MATLS : Bitumen & Surface Dressing,M60 junction Traff B,EGEI,Inf - Main Works Con,Capital Schemes,"17,622.23"
28.10.2014,7500164470,1,143430,Stone Central (NW) Ltd,391113,WORKS - CONSTRUCTION : Buildings : Repair,War Memorials - Clea,EGEI,EXTERNAL DAY-TO-DAY,AM:MISC PROPERTIES A,"6,230.51"
28.10.2014,7500164485,1,147337,Uni of Sth M/cr Nhs Foundation Trus,311600,MEDICAL : Services,UHSM Month 6 GUM,T & R ,PAYMENTS TO HA'S,GUM ACUTE ACTIVITY,"19,006.63"
28.10.2014,7500164495,1,140914,Stockport Cerebral Palsey Society,321013,SOCIAL CARE SERVICES : Adult : Day Care,Targeted short break,CFW,CONT VOL BODIES,CAN Comm Fund,"20,995.75"
29.10.2014,7500164502,1,135210,Wilde Consultants Ltd,151610,CONSULTANCY : Highways : Engineering,MOF TRAFDRE59,EGEI,EXT ENG HIGHWAY,Capital Schemes,"14,075.00"
29.10.2014,7500164515,1,146304,Electoral Reform Services Ltd,281100,LEGAL SERVICES : Election Services,ERS 702 ERSLA1402124,T & R ,PRINTING,LD:RECORDS AND ELECT,"5,560.16"
29.10.2014,7500164560,1,142249,Pennine Care NHS Trust,311300,MEDICAL : Equipment,OSRC Equipment - Apr,CFW,EQUIPMENT - PURCHASE,ONE STOP RES CENTRE,"28,171.19"
29.10.2014,7500164563,1,151308,EE Ltd T/A Orange EE (Equipment),271800,ICT : Telecommunications - Mobile,21406809,T & R ,MOBILE COMMUNICATION,EG:IT EQUIPMENT,74.00
29.10.2014,7500164563,2,151308,EE Ltd T/A Orange EE (Equipment),271800,ICT : Telecommunications - Mobile,21385011,T & R ,MOBILE COMMUNICATION,EG:IT EQUIPMENT,74.00
29.10.2014,7500164563,3,151308,EE Ltd T/A Orange EE (Equipment),271800,ICT : Telecommunications - Mobile,21419687,T & R ,MOBILE COMMUNICATION,EG:IT EQUIPMENT,74.00
29.10.2014,7500164563,4,151308,EE Ltd T/A Orange EE (Equipment),271800,ICT : Telecommunications - Mobile,21420760,T & R ,MOBILE COMMUNICATION,EG:IT EQUIPMENT,550.00
29.10.2014,7500164563,5,151308,EE Ltd T/A Orange EE (Equipment),271800,ICT : Telecommunications - Mobile,21423309,T & R ,MOBILE COMMUNICATION,EG:IT EQUIPMENT,298.00
29.10.2014,7500164563,6,151308,EE Ltd T/A Orange EE (Equipment),271800,ICT : Telecommunications - Mobile,21420753,T & R ,MOBILE COMMUNICATION,EG:IT EQUIPMENT,"1,189.00"
29.10.2014,7500164563,7,151308,EE Ltd T/A Orange EE (Equipment),271800,ICT : Telecommunications - Mobile,21420972,T & R ,MOBILE COMMUNICATION,EG:IT EQUIPMENT,"2,126.00"
29.10.2014,7500164563,8,151308,EE Ltd T/A Orange EE (Equipment),271800,ICT : Telecommunications - Mobile,21419889,T & R ,MOBILE COMMUNICATION,EG:IT EQUIPMENT,55.00
29.10.2014,7500164563,9,151308,EE Ltd T/A Orange EE (Equipment),271800,ICT : Telecommunications - Mobile,21419831,T & R ,MOBILE COMMUNICATION,EG:IT EQUIPMENT,213.00
29.10.2014,7500164563,10,151308,EE Ltd T/A Orange EE (Equipment),271800,ICT : Telecommunications - Mobile,21420972,T & R ,MOBILE COMMUNICATION,EG:IT EQUIPMENT,258.00
29.10.2014,7500164563,11,151308,EE Ltd T/A Orange EE (Equipment),271800,ICT : Telecommunications - Mobile,21441634,T & R ,MOBILE COMMUNICATION,EG:IT EQUIPMENT,55.00
29.10.2014,7500164563,12,151308,EE Ltd T/A Orange EE (Equipment),271800,ICT : Telecommunications - Mobile,21441638,T & R ,MOBILE COMMUNICATION,EG:IT EQUIPMENT,55.00
29.10.2014,7500164563,13,151308,EE Ltd T/A Orange EE (Equipment),271800,ICT : Telecommunications - Mobile,21438403,T & R ,MOBILE COMMUNICATION,EG:IT EQUIPMENT,129.00
29.10.2014,7500164563,14,151308,EE Ltd T/A Orange EE (Equipment),271800,ICT : Telecommunications - Mobile,21443786,T & R ,MOBILE COMMUNICATION,EG:IT EQUIPMENT,"1,788.00"
29.10.2014,7500164563,15,151308,EE Ltd T/A Orange EE (Equipment),271800,ICT : Telecommunications - Mobile,21444782,T & R ,MOBILE COMMUNICATION,EG:IT EQUIPMENT,894.00
29.10.2014,7500164563,16,151308,EE Ltd T/A Orange EE (Equipment),271800,ICT : Telecommunications - Mobile,21444804,T & R ,MOBILE COMMUNICATION,EG:IT EQUIPMENT,745.00
29.10.2014,7500164563,17,151308,EE Ltd T/A Orange EE (Equipment),271800,ICT : Telecommunications - Mobile,21443685,T & R ,MOBILE COMMUNICATION,EG:IT EQUIPMENT,440.00
29.10.2014,7500164563,18,151308,EE Ltd T/A Orange EE (Equipment),271800,ICT : Telecommunications - Mobile,21444824,T & R ,MOBILE COMMUNICATION,EG:IT EQUIPMENT,"1,490.00"
29.10.2014,7500164563,19,151308,EE Ltd T/A Orange EE (Equipment),271800,ICT : Telecommunications - Mobile,21450040,T & R ,MOBILE COMMUNICATION,EG:IT EQUIPMENT,149.00
29.10.2014,7500164563,20,151308,EE Ltd T/A Orange EE (Equipment),271800,ICT : Telecommunications - Mobile,21450730,T & R ,MOBILE COMMUNICATION,EG:IT EQUIPMENT,100.00
29.10.2014,7500164563,21,151308,EE Ltd T/A Orange EE (Equipment),271800,ICT : Telecommunications - Mobile,21445494,T & R ,MOBILE COMMUNICATION,EG:IT EQUIPMENT,149.00
29.10.2014,7500164563,22,151308,EE Ltd T/A Orange EE (Equipment),271800,ICT : Telecommunications - Mobile,21465392,T & R ,MOBILE COMMUNICATION,EG:IT EQUIPMENT,110.00
29.10.2014,7500164563,23,151308,EE Ltd T/A Orange EE (Equipment),271800,ICT : Telecommunications - Mobile,21470719,T & R ,MOBILE COMMUNICATION,EG:IT EQUIPMENT,258.00
29.10.2014,7500164563,24,151308,EE Ltd T/A Orange EE (Equipment),271800,ICT : Telecommunications - Mobile,21471158,T & R ,MOBILE COMMUNICATION,EG:IT EQUIPMENT,"1,490.00"
29.10.2014,7500164563,25,151308,EE Ltd T/A Orange EE (Equipment),271800,ICT : Telecommunications - Mobile,21465409,T & R ,MOBILE COMMUNICATION,EG:IT EQUIPMENT,894.00
29.10.2014,7500164563,26,151308,EE Ltd T/A Orange EE (Equipment),271800,ICT : Telecommunications - Mobile,21470027,T & R ,MOBILE COMMUNICATION,EG:IT EQUIPMENT,74.00
29.10.2014,7500164563,27,151308,EE Ltd T/A Orange EE (Equipment),271800,ICT : Telecommunications - Mobile,21474595,T & R ,MOBILE COMMUNICATION,EG:IT EQUIPMENT,5.00
29.10.2014,7500164568,1,151308,EE Ltd T/A Orange EE (Equipment),271800,ICT : Telecommunications - Mobile,21347057,T & R ,MOBILE COMMUNICATION,EG:IT EQUIPMENT,5.00
29.10.2014,7500164568,2,151308,EE Ltd T/A Orange EE (Equipment),271800,ICT : Telecommunications - Mobile,21358199,T & R ,MOBILE COMMUNICATION,EG:IT EQUIPMENT,110.00
29.10.2014,7500164568,3,151308,EE Ltd T/A Orange EE (Equipment),271800,ICT : Telecommunications - Mobile,21371130,T & R ,MOBILE COMMUNICATION,EG:IT EQUIPMENT,20.00
29.10.2014,7500164568,4,151308,EE Ltd T/A Orange EE (Equipment),271800,ICT : Telecommunications - Mobile,21371074,T & R ,MOBILE COMMUNICATION,EG:IT EQUIPMENT,110.00
29.10.2014,7500164568,5,151308,EE Ltd T/A Orange EE (Equipment),271800,ICT : Telecommunications - Mobile,21371107,T & R ,MOBILE COMMUNICATION,EG:IT EQUIPMENT,55.00
29.10.2014,7500164568,6,151308,EE Ltd T/A Orange EE (Equipment),271800,ICT : Telecommunications - Mobile,21371120,T & R ,MOBILE COMMUNICATION,EG:IT EQUIPMENT,297.00
29.10.2014,7500164568,7,151308,EE Ltd T/A Orange EE (Equipment),271800,ICT : Telecommunications - Mobile,21371350,T & R ,MOBILE COMMUNICATION,EG:IT EQUIPMENT,220.00
29.10.2014,7500164568,8,151308,EE Ltd T/A Orange EE (Equipment),271800,ICT : Telecommunications - Mobile,21374281,T & R ,MOBILE COMMUNICATION,EG:IT EQUIPMENT,55.00
29.10.2014,7500164568,9,151308,EE Ltd T/A Orange EE (Equipment),271800,ICT : Telecommunications - Mobile,21373844,T & R ,MOBILE COMMUNICATION,EG:IT EQUIPMENT,738.00
29.10.2014,7500164568,10,151308,EE Ltd T/A Orange EE (Equipment),271800,ICT : Telecommunications - Mobile,21383637,T & R ,MOBILE COMMUNICATION,EG:IT EQUIPMENT,85.00
29.10.2014,7500164568,11,151308,EE Ltd T/A Orange EE (Equipment),271800,ICT : Telecommunications - Mobile,21371107,T & R ,MOBILE COMMUNICATION,EG:IT EQUIPMENT,740.00
29.10.2014,7500164568,12,151308,EE Ltd T/A Orange EE (Equipment),271800,ICT : Telecommunications - Mobile,21371074,T & R ,MOBILE COMMUNICATION,EG:IT EQUIPMENT,447.00
29.10.2014,7500164568,13,151308,EE Ltd T/A Orange EE (Equipment),271800,ICT : Telecommunications - Mobile,21374281,T & R ,MOBILE COMMUNICATION,EG:IT EQUIPMENT,149.00
29.10.2014,7500164568,14,151308,EE Ltd T/A Orange EE (Equipment),271800,ICT : Telecommunications - Mobile,21401834,T & R ,MOBILE COMMUNICATION,EG:IT EQUIPMENT,894.00
29.10.2014,7500164568,15,151308,EE Ltd T/A Orange EE (Equipment),271800,ICT : Telecommunications - Mobile,21398378,T & R ,MOBILE COMMUNICATION,EG:IT EQUIPMENT,"1,043.00"
29.10.2014,7500164568,16,151308,EE Ltd T/A Orange EE (Equipment),271800,ICT : Telecommunications - Mobile,21403437,T & R ,MOBILE COMMUNICATION,EG:IT EQUIPMENT,"2,533.00"
29.10.2014,7500164568,17,151308,EE Ltd T/A Orange EE (Equipment),271800,ICT : Telecommunications - Mobile,21401834,T & R ,MOBILE COMMUNICATION,EG:IT EQUIPMENT,20.00
29.10.2014,7500164568,18,151308,EE Ltd T/A Orange EE (Equipment),271800,ICT : Telecommunications - Mobile,21398407,T & R ,MOBILE COMMUNICATION,EG:IT EQUIPMENT,"1,490.00"
29.10.2014,7500164568,19,151308,EE Ltd T/A Orange EE (Equipment),271800,ICT : Telecommunications - Mobile,21403177,T & R ,MOBILE COMMUNICATION,EG:IT EQUIPMENT,220.00
29.10.2014,7500164568,20,151308,EE Ltd T/A Orange EE (Equipment),271800,ICT : Telecommunications - Mobile,21383646,T & R ,MOBILE COMMUNICATION,EG:IT EQUIPMENT,148.00
29.10.2014,7500164569,1,146304,Electoral Reform Services Ltd,281100,LEGAL SERVICES : Election Services,ERS 669 ERSLA1402091,T & R ,PRINTING,LD:RECORDS AND ELECT,"1,499.22"
29.10.2014,7500164569,2,146304,Electoral Reform Services Ltd,281100,LEGAL SERVICES : Election Services,ERS 699 ERSLA1402121,T & R ,PRINTING,LD:RECORDS AND ELECT,"5,698.16"
29.10.2014,7500164569,3,146304,Electoral Reform Services Ltd,281100,LEGAL SERVICES : Election Services,ERS 700 ERSLA1402122,T & R ,PRINTING,LD:RECORDS AND ELECT,"6,426.35"
29.10.2014,7500164569,4,146304,Electoral Reform Services Ltd,281100,LEGAL SERVICES : Election Services,ERS 701 ERSLA1402123,T & R ,PRINTING,LD:RECORDS AND ELECT,"1,460.43"
29.10.2014,7500164581,1,142249,Pennine Care NHS Trust,311300,MEDICAL : Equipment,OSRC running costs S,CFW,PAYMENTS TO HA'S,ONE STOP RES CENTRE,"22,937.00"
29.10.2014,7500164581,2,142249,Pennine Care NHS Trust,311300,MEDICAL : Equipment,OSRC running costs S,CFW,EQUIPMENT - PURCHASE,ONE STOP RES CENTRE,"7,824.00"
30.10.2014,7500164598,1,142249,Pennine Care NHS Trust,311600,MEDICAL : Services,Intensive Behaviour,CFW,CHARGES FOR SERVICES,PERSONALISATION INFR,"5,083.00"
30.10.2014,7500164598,2,142249,Pennine Care NHS Trust,311600,MEDICAL : Services,Intensive Behaviour,CFW,CHARGES FOR SERVICES,PERSONALISATION INFR,"5,083.00"
30.10.2014,7500164598,3,142249,Pennine Care NHS Trust,311600,MEDICAL : Services,Intensive Behaviour,CFW,CHARGES FOR SERVICES,PERSONALISATION INFR,"5,083.00"
30.10.2014,7500164598,4,142249,Pennine Care NHS Trust,311600,MEDICAL : Services,Intensive Behaviour,CFW,CHARGES FOR SERVICES,PERSONALISATION INFR,"5,083.00"
30.10.2014,7500164598,5,142249,Pennine Care NHS Trust,311600,MEDICAL : Services,Intensive Behaviour,CFW,CHARGES FOR SERVICES,PERSONALISATION INFR,"5,083.00"
30.10.2014,7500164598,6,142249,Pennine Care NHS Trust,311600,MEDICAL : Services,Intensive Behaviour,CFW,CHARGES FOR SERVICES,PERSONALISATION INFR,"5,083.00"
30.10.2014,7500164598,7,142249,Pennine Care NHS Trust,311600,MEDICAL : Services,Intensive Behaviour,CFW,CHARGES FOR SERVICES,PERSONALISATION INFR,"5,083.00"
30.10.2014,7500164622,1,142235,ANS Group,271600,ICT : Software,(Not a standalone SK,T & R ,IT PURCHASES,EG:SVP,"22,301.28"
30.10.2014,7500164622,2,142235,ANS Group,271600,ICT : Software,16GB DDR3-1866-MHz R,T & R ,IT PURCHASES,EG:SVP,181.00
30.10.2014,7500164622,3,142235,ANS Group,271600,ICT : Software,delivery,T & R ,IT PURCHASES,EG:SVP,25.00
30.10.2014,7500164633,1,139028,Imagine Act and Succeed,321000,SOCIAL CARE SERVICES : Adult,Redacted Personal Data,CFW,CONTRIB EXT PROJECTS,EXTRA CARE HOUSING,"18,460.00"
30.10.2014,7500164633,2,139028,Imagine Act and Succeed,321000,SOCIAL CARE SERVICES : Adult,Redacted Personal Data,CFW,CONTRIB EXT PROJECTS,EXTRA CARE HOUSING,"18,460.00"
30.10.2014,7500164641,1,140518,Bedspace Resource Ltd,321117,SOCIAL CARE SERVICES : Children : Residential Care,Redacted Personal Data,CFW,CHILD IN CARE SEC 20,Homeless Young Peopl,"4,875.00"
30.10.2014,7500164641,2,140518,Bedspace Resource Ltd,321117,SOCIAL CARE SERVICES : Children : Residential Care,Redacted Personal Data,CFW,CHILD IN CARE SEC 20,Homeless Young Peopl,"1,250.00"
31.10.2014,7500164680,1,132522,Insight Direct (UK) Ltd,271600,ICT : Software,WinSvrDataCtr 2012R2,T & R ,IT PURCHASES,EG:SVP,"15,054.84"
31.10.2014,7500164680,1,132522,Insight Direct (UK) Ltd,271600,ICT : Software,WinSvrDataCtr SNGL L,T & R ,IT PURCHASES,EG:SVP,"15,054.84"
03.11.2014,7500164711,1,147035,Salford Foundation Ltd,311300,MEDICAL : Equipment,Quarter 2,CFW,CONT VOL BODIES,EI COMMISSIONING FUN,"24,564.75"
03.11.2014,7500164712,1,144384,Home-Start Trafford,171011,EDUCATION : Services : Children,Quarter 2,CFW,CONT VOL BODIES,EI COMMISSIONING FUN,"14,000.00"
03.11.2014,7500164714,1,142142,North Cestrian Grammar School,171000,EDUCATION : Services,Redacted Personal Data,CFW,NON MAINT SCH FEES,OTHER L.E.A. & IN,"2,083.67"
03.11.2014,7500164714,2,142142,North Cestrian Grammar School,171000,EDUCATION : Services,Redacted Personal Data,CFW,NON MAINT SCH FEES,OTHER L.E.A. & IN,"2,083.67"
03.11.2014,7500164714,3,142142,North Cestrian Grammar School,171000,EDUCATION : Services,Redacted Personal Data,CFW,NON MAINT SCH FEES,OTHER L.E.A. & IN,"2,083.67"
03.11.2014,7500164714,4,142142,North Cestrian Grammar School,171000,EDUCATION : Services,Redacted Personal Data,CFW,NON MAINT SCH FEES,OTHER L.E.A. & IN,"2,083.67"
03.11.2014,7500164714,5,142142,North Cestrian Grammar School,171000,EDUCATION : Services,Redacted Personal Data,CFW,NON MAINT SCH FEES,OTHER L.E.A. & IN,"5,682.33"
03.11.2014,7500164714,6,142142,North Cestrian Grammar School,171000,EDUCATION : Services,Redacted Personal Data,CFW,NON MAINT SCH FEES,OTHER L.E.A. & IN,"4,394.00"
03.11.2014,7500164714,7,142142,North Cestrian Grammar School,171000,EDUCATION : Services,Redacted Personal Data,CFW,NON MAINT SCH FEES,OTHER L.E.A. & IN,"2,614.00"
03.11.2014,7500164714,8,142142,North Cestrian Grammar School,171000,EDUCATION : Services,Redacted Personal Data,CFW,NON MAINT SCH FEES,OTHER L.E.A. & IN,"1,742.33"
03.11.2014,7500164714,9,142142,North Cestrian Grammar School,171000,EDUCATION : Services,Redacted Personal Data,CFW,NON MAINT SCH FEES,OTHER L.E.A. & IN,"5,682.33"
03.11.2014,7500164717,1,138818,Action for Children,321117,SOCIAL CARE SERVICES : Children : Residential Care,Quarter 2,CFW,CONT VOL BODIES,EI COMMISSIONING FUN,"34,385.00"
03.11.2014,7500164718,1,138994,Relate GMS,321000,SOCIAL CARE SERVICES : Adult,Quarter 2 2014,CFW,CONT VOL BODIES,EI COMMISSIONING FUN,"15,000.00"
03.11.2014,7500164719,1,145642,Catch 22 Charity Limited,321117,SOCIAL CARE SERVICES : Children : Residential Care,Quarter 2 2014,CFW,CONT VOL BODIES,EI COMMISSIONING FUN,"9,609.00"
03.11.2014,7500164725,1,139595,AT Nolan Ltd,391113,WORKS - CONSTRUCTION : Buildings : Repair,Redacted Personal Data,EGEI,EXTERNAL DAY-TO-DAY,AM:MARKET ST ALT 9-1,"10,816.00"
03.11.2014,7500164727,1,141663,Neopost Ltd (Franking Credit Only),301200,MAIL SERVICES : Postage,Credifon Account Re-,EGEI,POSTAGES,AM:Post Room,"10,000.00"
03.11.2014,7500164732,1,144312,Handicare Accessibility Ltd,321311,SOCIAL CARE SERVICES : Supplies : Equipment,Service charges,CFW,CLIENTS LIFT REP & M,LIFT REPAIRS & MTCE,910.00
03.11.2014,7500164732,2,144312,Handicare Accessibility Ltd,321311,SOCIAL CARE SERVICES : Supplies : Equipment,Service charges,CFW,CLIENTS LIFT REP & M,LIFT REPAIRS & MTCE,"1,375.00"
03.11.2014,7500164732,3,144312,Handicare Accessibility Ltd,321311,SOCIAL CARE SERVICES : Supplies : Equipment,Service charges,CFW,CLIENTS LIFT REP & M,LIFT REPAIRS & MTCE,"3,875.00"
03.11.2014,7500164762,1,139598,McCosker Ltd,391110,WORKS - CONSTRUCTION : Buildings : Construction,The Firs Primary Sch,EGEI,EXTERNAL DAY-TO-DAY,CN:Bldg Serv Schemes,"8,509.00"
03.11.2014,7500164777,1,135072,Manchester United Football Club Ltd,351000,TRAFFIC MANAGEMENT : Car Parks,MUFC Car Parking to,T & R ,RENT OF LAND,Man U Car Park,"6,000.00"
03.11.2014,7500164796,1,134900,Trafford Housing Trust,321000,SOCIAL CARE SERVICES : Adult,Minor Adaptations ma,CFW,CLIENTS ADAPTATIONS,EXTERNAL MINOR ADAPT,"10,267.18"
03.11.2014,7500164796,2,134900,Trafford Housing Trust,321000,SOCIAL CARE SERVICES : Adult,Minor Adaptations pa,CFW,CLIENTS AIDS,EXTERNAL MINOR ADAPT,"2,240.00"
04.11.2014,7500164809,1,141350,Sale Moor Com. Partnership Ltd,171000,EDUCATION : Services,SMCP Youth Bank,EGEI,EDS INFO UNIT,Community Strategy Refresh,"10,000.00"
04.11.2014,7500164812,1,153321,Cheshire & Greater Manchester CRC L,321000,SOCIAL CARE SERVICES : Adult,Non Stat. Offender M,T & R ,SUPP LIVING CONT,ABG SSC,"22,840.67"
04.11.2014,7500164822,1,150987,Oliver House School Priory,321211,SOCIAL CARE SERVICES : Disabled Children : Day Services,Redacted Personal Data,CFW,NON MAINT SCH FEES,OTHER L.E.A. & IN,"25,957.99"
04.11.2014,7500164822,2,150987,Oliver House School Priory,321211,SOCIAL CARE SERVICES : Disabled Children : Day Services,Redacted Personal Data,CFW,NON MAINT SCH FEES,OTHER L.E.A. & IN,"42,154.00"
04.11.2014,7500164829,1,139568,Stannah Lift Services Ltd,321311,SOCIAL CARE SERVICES : Supplies : Equipment,Disabled Facilities,CFW,CLIENTS ADAPTATIONS,HS:ADAPTATIONS,"6,313.00"
05.11.2014,7500164879,1,142452,Warrington Borough Council,271500,ICT : Services,Redacted Personal Data,CFW,CONT TO L.E.A.'S,OTHER L.E.A. & IN,"14,197.00"
05.11.2014,7500164879,2,142452,Warrington Borough Council,271500,ICT : Services,Redacted Personal Data,CFW,CONT TO L.E.A.'S,OTHER L.E.A. & IN,"4,932.00"
05.11.2014,7500164882,1,134025,Civica UK Ltd,271600,ICT : Software,Software,T & R ,SOFTWARE (LEARNING R,FI:COUNCIL TAX ADMIN,"1,000.00"
05.11.2014,7500164882,2,134025,Civica UK Ltd,271600,ICT : Software,Software,T & R ,SOFTWARE (LEARNING R,FI:COUNCIL TAX ADMIN,"5,000.00"
05.11.2014,7500164902,1,135879,SSI SCHAEFER LTD,182011,ENVIRONMENT : Waste Mgt : Equipment,Green 240 Litre Whee,EGEI,DUSTBINS & BULK CONT,EN:Green Waste,"15,225.60"
05.11.2014,7500164906,1,136048,F R SHARROCK LTD,241500,HORTICULTURAL : Tools & Equipment,Sharrocks Invoice No,EGEI,SERV & REP MOWERS,Groundforce DSO Nth,"27,102.59"
05.11.2014,7500164908,1,135879,SSI SCHAEFER LTD,182011,ENVIRONMENT : Waste Mgt : Equipment,Grey 140 Wheeled Bin,EGEI,DUSTBINS & BULK CONT,DOMESTIC COLL-VEOLIA,"15,907.50"
05.11.2014,7500164914,1,150867,Bridgewater Training&Assessment Ltd,261500,HR : Training & Conferences,Bridgewater Training,EGEI,CONFERENCE EXP OFF,EN: HIGH/DRAIN (FUNC,"2,750.00"
05.11.2014,7500164914,2,150867,Bridgewater Training&Assessment Ltd,261500,HR : Training & Conferences,Bridgewater Training,EGEI,CONFERENCE EXP OFF,EN: HIGH/DRAIN (FUNC,600.00
05.11.2014,7500164914,3,150867,Bridgewater Training&Assessment Ltd,261500,HR : Training & Conferences,Bridgewater Training,EGEI,CONFERENCE EXP OFF,EN: HIGH/DRAIN (FUNC,"4,900.00"
05.11.2014,7500164914,4,150867,Bridgewater Training&Assessment Ltd,261500,HR : Training & Conferences,Bridgewater Training,EGEI,CONFERENCE EXP OFF,Groundforce DSO Nth,"1,050.00"
05.11.2014,7500164919,1,150623,Huyton Plumbing & Heating Ltd,391113,WORKS - CONSTRUCTION : Buildings : Repair,Disabled Facilties G,CFW,CLIENTS ADAPTATIONS,HS:ADAPTATIONS,"5,156.50"
05.11.2014,7500164919,2,150623,Huyton Plumbing & Heating Ltd,391113,WORKS - CONSTRUCTION : Buildings : Repair,Asbestos report -  D,CFW,CLIENTS ADAPTATIONS,HS:ADAPTATIONS,157.32
05.11.2014,7500164936,1,127715,Dell Corporation Ltd,271200,ICT : Hardware,Dell Pro Lite 16in B,T & R ,IT PURCHASES,EG:IT EQUIPMENT,144.20
05.11.2014,7500164936,2,127715,Dell Corporation Ltd,271200,ICT : Hardware,Dell MS111 USB Wired,T & R ,IT PURCHASES,EG:IT EQUIPMENT,42.00
05.11.2014,7500164936,3,127715,Dell Corporation Ltd,271200,ICT : Hardware,Latitude 3440 (SM103,T & R ,IT PURCHASES,EG:IT EQUIPMENT,"4,650.00"
05.11.2014,7500164936,4,127715,Dell Corporation Ltd,271200,ICT : Hardware,Dell Professional P1,T & R ,IT PURCHASES,EG:IT EQUIPMENT,"2,023.00"
05.11.2014,7500164968,1,142931,Misco,271600,ICT : Software,ICT,CFW,IT PURCHASES,MES,"5,071.05"
05.11.2014,7500164968,2,142931,Misco,271600,ICT : Software,ICT,CFW,IT PURCHASES,MES,15.56
05.11.2014,7500164968,3,142931,Misco,271600,ICT : Software,ICT,CFW,IT PURCHASES,MES,2.59
05.11.2014,7500164968,4,142931,Misco,271600,ICT : Software,ICT,CFW,IT PURCHASES,MES,5.96
05.11.2014,7500164968,5,142931,Misco,271600,ICT : Software,ICT,CFW,IT PURCHASES,MES,68.71
05.11.2014,7500164968,6,142931,Misco,271600,ICT : Software,ICT,CFW,IT PURCHASES,MES,196.20
05.11.2014,7500164968,7,142931,Misco,271600,ICT : Software,ICT,CFW,IT PURCHASES,MES,"3,580.83"
05.11.2014,7500164968,8,142931,Misco,271600,ICT : Software,ICT,CFW,IT PURCHASES,MES,51.08
06.11.2014,7500165028,1,140789,Addleshaw Goddard LLP,281300,LEGAL SERVICES : Legal Opinion,Invoice 364187,T & R ,LEGAL FEES,LD:LEGAL CENTRAL OFF,"25,836.34"
06.11.2014,7500165038,1,147865,Manchester City Council,391310,WORKS - CONSTRUCTION : Open Spaces : Construction,Replacement of Roof,T & R ,EXT PROJECT MAN,Capital Schemes,"4,900.00"
06.11.2014,7500165038,2,147865,Manchester City Council,391310,WORKS - CONSTRUCTION : Open Spaces : Construction,Broomwood Primary Sc,T & R ,EXT PROJECT MAN,Capital Schemes,"4,900.00"
06.11.2014,7500165038,3,147865,Manchester City Council,391310,WORKS - CONSTRUCTION : Open Spaces : Construction,Extensions at Broadh,T & R ,EXT PROJECT MAN,Capital Schemes,"5,900.00"
06.11.2014,7500165038,4,147865,Manchester City Council,391310,WORKS - CONSTRUCTION : Open Spaces : Construction,Expansion of Bowden,T & R ,EXT PROJECT MAN,Capital Schemes,"11,800.00"
06.11.2014,7500165038,5,147865,Manchester City Council,391310,WORKS - CONSTRUCTION : Open Spaces : Construction,Extension at Willows,T & R ,EXT PROJECT MAN,Capital Schemes,"5,900.00"
06.11.2014,7500165038,6,147865,Manchester City Council,391310,WORKS - CONSTRUCTION : Open Spaces : Construction,Extensions at Oldfie,T & R ,EXT PROJECT MAN,Capital Schemes,"9,900.00"
06.11.2014,7500165038,7,147865,Manchester City Council,391310,WORKS - CONSTRUCTION : Open Spaces : Construction,Relocation of Brentw,T & R ,EXT PROJECT MAN,Capital Schemes,"14,300.00"
06.11.2014,7500165038,8,147865,Manchester City Council,391310,WORKS - CONSTRUCTION : Open Spaces : Construction,Renew Flat Roof Cove,T & R ,EXT PROJECT MAN,Capital Schemes,"4,000.00"
06.11.2014,7500165072,1,152346,Irwell Valley Housing Association,250000,HOUSING MANAGEMENT,Supported Accommodat,CFW,CHANGE OF TENANCIES,SUPPORTING PEOPLE,"9,738.45"
07.11.2014,7500165073,1,146859,Salford City Council (Sust Regen),251000,HOUSING MANAGEMENT : Outsourced,HOST,EGEI,CONT VOL BODIES,HOUSING OPTIONS,"298,000.00"
07.11.2014,7500165074,1,139365,Care Today Children Services,321117,SOCIAL CARE SERVICES : Children : Residential Care,Redacted Personal Data,CFW,EXT RES CARE FEES,CHILDREN'S HOMES,"37,797.99"
07.11.2014,7500165123,1,150623,Huyton Plumbing & Heating Ltd,391113,WORKS - CONSTRUCTION : Buildings : Repair,Disabled Facilities,CFW,CLIENTS ADAPTATIONS,HS:ADAPTATIONS,"5,711.28"
07.11.2014,7500165128,1,145829,The Human Support Group Ltd,321000,SOCIAL CARE SERVICES : Adult,TR104 Reable w.e. 21,CFW,OTH AGENCY CONT SERV,ENHANCED RR,"5,944.00"
07.11.2014,7500165128,2,145829,The Human Support Group Ltd,321000,SOCIAL CARE SERVICES : Adult,TR105 Reable w.e. 28,CFW,OTH AGENCY CONT SERV,ENHANCED RR,"5,944.00"
07.11.2014,7500165128,3,145829,The Human Support Group Ltd,321000,SOCIAL CARE SERVICES : Adult,TR106 Reable w.e. 05,CFW,OTH AGENCY CONT SERV,ENHANCED RR,"5,944.00"
07.11.2014,7500165128,4,145829,The Human Support Group Ltd,321000,SOCIAL CARE SERVICES : Adult,TR107 Reable w.e. 12,CFW,OTH AGENCY CONT SERV,ENHANCED RR,"5,944.00"
07.11.2014,7500165128,5,145829,The Human Support Group Ltd,321000,SOCIAL CARE SERVICES : Adult,TR108 Reable w.e. 19,CFW,OTH AGENCY CONT SERV,ENHANCED RR,"5,944.00"
07.11.2014,7500165128,6,145829,The Human Support Group Ltd,321000,SOCIAL CARE SERVICES : Adult,TR109 Reable w.e. 26,CFW,OTH AGENCY CONT SERV,ENHANCED RR,"5,944.00"
07.11.2014,7500165128,7,145829,The Human Support Group Ltd,321000,SOCIAL CARE SERVICES : Adult,TR110 Reable w.e. 02,CFW,OTH AGENCY CONT SERV,ENHANCED RR,"5,944.00"
07.11.2014,7500165128,8,145829,The Human Support Group Ltd,321000,SOCIAL CARE SERVICES : Adult,TR111 Reable w.e. 09,CFW,OTH AGENCY CONT SERV,ENHANCED RR,"5,944.00"
07.11.2014,7500165129,1,142061,BlueSCI,171000,EDUCATION : Services,MH Social Inclusion,CFW,GRANTS TO VOL ORGS,TRAFFORD CIL,"8,360.00"
07.11.2014,7500165129,2,142061,BlueSCI,171000,EDUCATION : Services,MH Social Inclusion,CFW,GRANTS TO VOL ORGS,TRAFFORD CIL,"8,360.00"
07.11.2014,7500165129,3,142061,BlueSCI,171000,EDUCATION : Services,MH Social Inclusion,CFW,GRANTS TO VOL ORGS,TRAFFORD CIL,"8,360.00"
07.11.2014,7500165129,4,142061,BlueSCI,171000,EDUCATION : Services,MH Social Inclusion,CFW,GRANTS TO VOL ORGS,TRAFFORD CIL,"8,360.00"
07.11.2014,7500165129,5,142061,BlueSCI,171000,EDUCATION : Services,MH Social Inclusion,CFW,GRANTS TO VOL ORGS,TRAFFORD CIL,"8,360.00"
07.11.2014,7500165130,1,142061,BlueSCI,171000,EDUCATION : Services,SaleW + Partington G,CFW,CONTRIB EXT PROJECTS,MH PROMOTION JOINT CENTRES,"5,833.33"
07.11.2014,7500165130,2,142061,BlueSCI,171000,EDUCATION : Services,SaleW + Partington G,CFW,CONTRIB EXT PROJECTS,MH PROMOTION JOINT CENTRES,"5,833.33"
07.11.2014,7500165130,3,142061,BlueSCI,171000,EDUCATION : Services,SaleW + Partington G,CFW,CONTRIB EXT PROJECTS,MH PROMOTION JOINT CENTRES,"5,833.33"
07.11.2014,7500165130,4,142061,BlueSCI,171000,EDUCATION : Services,SaleW + Partington G,CFW,CONTRIB EXT PROJECTS,MH PROMOTION JOINT CENTRES,"5,833.33"
07.11.2014,7500165130,5,142061,BlueSCI,171000,EDUCATION : Services,SaleW + Partington G,CFW,CONTRIB EXT PROJECTS,MH PROMOTION JOINT CENTRES,"5,833.33"
07.11.2014,7500165130,6,142061,BlueSCI,171000,EDUCATION : Services,Partington Healthy L,CFW,CONTRIB EXT PROJECTS,HEALTHY LIVING CENTRE,"2,083.33"
07.11.2014,7500165130,7,142061,BlueSCI,171000,EDUCATION : Services,Partington Healthy L,CFW,CONTRIB EXT PROJECTS,HEALTHY LIVING CENTRE,"2,083.33"
07.11.2014,7500165130,8,142061,BlueSCI,171000,EDUCATION : Services,Partington Healthy L,CFW,CONTRIB EXT PROJECTS,HEALTHY LIVING CENTRE,"2,083.33"
07.11.2014,7500165130,9,142061,BlueSCI,171000,EDUCATION : Services,Partington Healthy L,CFW,CONTRIB EXT PROJECTS,HEALTHY LIVING CENTRE,"2,083.33"
07.11.2014,7500165130,10,142061,BlueSCI,171000,EDUCATION : Services,Partington Healthy L,CFW,CONTRIB EXT PROJECTS,HEALTHY LIVING CENTRE,"2,083.33"
07.11.2014,7500165130,11,142061,BlueSCI,171000,EDUCATION : Services,SaleW + Partington G,CFW,CONTRIB EXT PROJECTS,MH PROMOTION JOINT CENTRES,"5,833.33"
07.11.2014,7500165130,12,142061,BlueSCI,171000,EDUCATION : Services,Partington Healthy L,CFW,CONTRIB EXT PROJECTS,HEALTHY LIVING CENTRE,"2,083.33"
07.11.2014,7500165146,1,133450,John Oliver,241210,HORTICULTURAL : Services : Tree Trimming,Highways October Mon,EGEI,EXT ARB MAINT COSTS,GM ARBOR - WORKS MGT,"8,060.00"
07.11.2014,7500165146,2,133450,John Oliver,241210,HORTICULTURAL : Services : Tree Trimming,Parks October Monthl,EGEI,EXT ARB MAINT COSTS,GM ARBOR - WORKS MGT,"2,600.00"
07.11.2014,7500165146,3,133450,John Oliver,241210,HORTICULTURAL : Services : Tree Trimming,Gorse Hill Allotment,EGEI,EXT ARB MAINT COSTS,GM ARBOR - WORKS MGT,750.00
07.11.2014,7500165146,4,133450,John Oliver,241210,HORTICULTURAL : Services : Tree Trimming,Marshbrook Rd Scheme,EGEI,EXT ARB MAINT COSTS,GM ARBOR - WORKS MGT,"1,000.00"
07.11.2014,7500165146,5,133450,John Oliver,241210,HORTICULTURAL : Services : Tree Trimming,Grosvenor Rd Allotme,EGEI,EXT ARB MAINT COSTS,GM ARBOR - WORKS MGT,600.00
10.11.2014,7500165222,1,152600,Complete Background Screening Ltd,261200,HR : Professional & Advisory Services,DBS checks through e,T & R ,IT MAINT SOFTWARE,Internal CRB,"1,500.00"
10.11.2014,7500165222,2,152600,Complete Background Screening Ltd,261200,HR : Professional & Advisory Services,DBS checks through e,T & R ,IT MAINT SOFTWARE,Internal CRB,"30,800.00"
10.11.2014,7500165222,3,152600,Complete Background Screening Ltd,261200,HR : Professional & Advisory Services,DBS checks through e,T & R ,IT MAINT SOFTWARE,Internal CRB,"1,800.00"
10.11.2014,7500165222,4,152600,Complete Background Screening Ltd,261200,HR : Professional & Advisory Services,DBS checks through e,T & R ,IT MAINT SOFTWARE,Internal CRB,102.50
10.11.2014,7500165222,5,152600,Complete Background Screening Ltd,261200,HR : Professional & Advisory Services,DBS checks through e,T & R ,IT MAINT SOFTWARE,Internal CRB,"1,950.00"
10.11.2014,7500165238,1,139447,Genie Networks,321010,SOCIAL CARE SERVICES : Adult : Advice & Counselling Services,PH Support brokerage,CFW,GRANTS TO VOL ORGS,GENIE NETWORKS,"3,750.00"
10.11.2014,7500165238,2,139447,Genie Networks,321010,SOCIAL CARE SERVICES : Adult : Advice & Counselling Services,PH Support brokerage,CFW,GRANTS TO VOL ORGS,GENIE NETWORKS,"3,750.00"
10.11.2014,7500165238,3,139447,Genie Networks,321010,SOCIAL CARE SERVICES : Adult : Advice & Counselling Services,Support brokerage Qt,CFW,GRANTS TO VOL ORGS,CARERS DEVELOPMENT,"1,250.00"
10.11.2014,7500165238,4,139447,Genie Networks,321010,SOCIAL CARE SERVICES : Adult : Advice & Counselling Services,Support brokerage Qt,CFW,GRANTS TO VOL ORGS,CARERS DEVELOPMENT,"1,250.00"
10.11.2014,7500165245,1,148094,White Circle Trading Ltd,391112,WORKS - CONSTRUCTION : Buildings : Outsourced,Altrincham Lower Mar,EGEI,EXTERNAL DAY-TO-DAY,CN:Bldg Serv Schemes,"11,043.50"
10.11.2014,7500165249,1,134900,Trafford Housing Trust,321000,SOCIAL CARE SERVICES : Adult,Minor adapts main co,CFW,CLIENTS ADAPTATIONS,EXTERNAL MINOR ADAPT,"15,945.93"
10.11.2014,7500165255,1,150623,Huyton Plumbing & Heating Ltd,391113,WORKS - CONSTRUCTION : Buildings : Repair,Disabled Facilities,CFW,CLIENTS ADAPTATIONS,HS:ADAPTATIONS,"6,260.00"
10.11.2014,7500165255,2,150623,Huyton Plumbing & Heating Ltd,391113,WORKS - CONSTRUCTION : Buildings : Repair,Asbestos -  DF2/1458,CFW,CLIENTS ADAPTATIONS,HS:ADAPTATIONS,157.32
10.11.2014,7500165265,1,142217,Vaisala Ltd,181400,ENVIRONMENT : Monitoring,Vaisala route optimi,EGEI,EQUIPMENT (TRANS),TT:PR SNOW AND ICE T,"6,984.00"
11.11.2014,7500165283,1,142235,ANS Group,271600,ICT : Software,NetApp SnapProtect,T & R ,CAP PUR ICT H/W & S/,Capital Schemes,"17,942.54"
11.11.2014,7500165283,2,142235,ANS Group,271600,ICT : Software,NetApp 3 year suppor,T & R ,IT MAINT SOFTWARE,EG:ICT SYSTEM SUPPT,"4,846.98"
11.11.2014,7500165283,3,142235,ANS Group,271600,ICT : Software,Professional Service,T & R ,CAP PUR ICT H/W & S/,Capital Schemes,"18,400.00"
11.11.2014,7500165283,4,142235,ANS Group,271600,ICT : Software,Professional Service,T & R ,CAP PUR ICT H/W & S/,Capital Schemes,"3,500.00"
11.11.2014,7500165283,5,142235,ANS Group,271600,ICT : Software,Professional Service,T & R ,CAP PUR ICT H/W & S/,Capital Schemes,"4,600.00"
11.11.2014,7500165291,1,142235,ANS Group,271600,ICT : Software,CISCO UCS C240 Serve,T & R ,CAP PUR ICT H/W & S/,Capital Schemes,"8,443.65"
11.11.2014,7500165291,2,142235,ANS Group,271600,ICT : Software,Shipping,T & R ,CAP PUR ICT H/W & S/,Capital Schemes,25.00
11.11.2014,7500165291,3,142235,ANS Group,271600,ICT : Software,UCS 3 year support,T & R ,IT MAINT SOFTWARE,EG:ICT SYSTEM SUPPT,772.50
11.11.2014,7500165293,1,143923,Manchester City Council - Corporate,261500,HR : Training & Conferences,AGMA CCRU Contributi,T & R ,CONTRIB EXT PROJECTS,Emergency Planning,"37,950.00"
11.11.2014,7500165294,1,153150,Enterprise (AOL) Ltd,231400,HIGHWAY EQUIPMENT & MATERIALS : Street Lighting,October 2014 works,EGEI,ELECT - STREET LIGHT,EN:WORKS MGT- ST LIG,41.00
11.11.2014,7500165294,2,153150,Enterprise (AOL) Ltd,231400,HIGHWAY EQUIPMENT & MATERIALS : Street Lighting,October 2014 works,EGEI,ELECT - STREET LIGHT,EN:WORKS MGT- ST LIG,283.75
11.11.2014,7500165294,3,153150,Enterprise (AOL) Ltd,231400,HIGHWAY EQUIPMENT & MATERIALS : Street Lighting,October 2014 works,EGEI,ELECT - STREET LIGHT,EN:WORKS MGT- ST LIG,388.50
11.11.2014,7500165294,4,153150,Enterprise (AOL) Ltd,231400,HIGHWAY EQUIPMENT & MATERIALS : Street Lighting,October 2014 works,EGEI,ELECT - STREET LIGHT,EN:WORKS MGT- ST LIG,77.00
11.11.2014,7500165294,5,153150,Enterprise (AOL) Ltd,231400,HIGHWAY EQUIPMENT & MATERIALS : Street Lighting,October 2014 works,EGEI,ELECT - STREET LIGHT,EN:WORKS MGT- ST LIG,200.00
11.11.2014,7500165294,6,153150,Enterprise (AOL) Ltd,231400,HIGHWAY EQUIPMENT & MATERIALS : Street Lighting,October 2014 works,EGEI,ELECT - STREET LIGHT,EN:WORKS MGT- ST LIG,204.00
11.11.2014,7500165294,7,153150,Enterprise (AOL) Ltd,231400,HIGHWAY EQUIPMENT & MATERIALS : Street Lighting,October 2014 works,EGEI,ELECT - STREET LIGHT,EN:WORKS MGT- ST LIG,315.00
11.11.2014,7500165294,8,153150,Enterprise (AOL) Ltd,231400,HIGHWAY EQUIPMENT & MATERIALS : Street Lighting,October 2014 works,EGEI,ELECT - STREET LIGHT,EN:WORKS MGT- ST LIG,38.50
11.11.2014,7500165294,9,153150,Enterprise (AOL) Ltd,231400,HIGHWAY EQUIPMENT & MATERIALS : Street Lighting,October 2014 works,EGEI,ELECT - STREET LIGHT,EN:WORKS MGT- ST LIG,16.00
11.11.2014,7500165294,10,153150,Enterprise (AOL) Ltd,231400,HIGHWAY EQUIPMENT & MATERIALS : Street Lighting,October 2014 works,EGEI,ELECT - STREET LIGHT,EN:WORKS MGT- ST LIG,250.00
11.11.2014,7500165294,11,153150,Enterprise (AOL) Ltd,231400,HIGHWAY EQUIPMENT & MATERIALS : Street Lighting,October 2014 works,EGEI,ELECT - STREET LIGHT,EN:WORKS MGT- ST LIG,60.50
11.11.2014,7500165294,12,153150,Enterprise (AOL) Ltd,231400,HIGHWAY EQUIPMENT & MATERIALS : Street Lighting,October 2014 works,EGEI,ELECT - STREET LIGHT,EN:WORKS MGT- ST LIG,50.00
11.11.2014,7500165294,13,153150,Enterprise (AOL) Ltd,231400,HIGHWAY EQUIPMENT & MATERIALS : Street Lighting,October 2014 works,EGEI,ELECT - STREET LIGHT,EN:WORKS MGT- ST LIG,169.50
11.11.2014,7500165294,14,153150,Enterprise (AOL) Ltd,231400,HIGHWAY EQUIPMENT & MATERIALS : Street Lighting,October 2014 works,EGEI,ELECT - STREET LIGHT,EN:WORKS MGT- ST LIG,512.00
11.11.2014,7500165294,15,153150,Enterprise (AOL) Ltd,231400,HIGHWAY EQUIPMENT & MATERIALS : Street Lighting,October 2014 works,EGEI,ELECT - STREET LIGHT,EN:WORKS MGT- ST LIG,68.50
11.11.2014,7500165294,16,153150,Enterprise (AOL) Ltd,231400,HIGHWAY EQUIPMENT & MATERIALS : Street Lighting,October 2014 works,EGEI,ELECT - STREET LIGHT,EN:WORKS MGT- ST LIG,157.50
11.11.2014,7500165294,17,153150,Enterprise (AOL) Ltd,231400,HIGHWAY EQUIPMENT & MATERIALS : Street Lighting,October 2014 works,EGEI,ELECT - STREET LIGHT,EN:WORKS MGT- ST LIG,105.00
11.11.2014,7500165294,18,153150,Enterprise (AOL) Ltd,231400,HIGHWAY EQUIPMENT & MATERIALS : Street Lighting,October 2014 works,EGEI,ELECT - STREET LIGHT,EN:WORKS MGT- ST LIG,184.00
11.11.2014,7500165294,19,153150,Enterprise (AOL) Ltd,231400,HIGHWAY EQUIPMENT & MATERIALS : Street Lighting,October 2014 works,EGEI,ELECT - STREET LIGHT,EN:WORKS MGT- ST LIG,922.00
11.11.2014,7500165294,20,153150,Enterprise (AOL) Ltd,231400,HIGHWAY EQUIPMENT & MATERIALS : Street Lighting,October 2014 works,EGEI,ELECT - STREET LIGHT,EN:WORKS MGT- ST LIG,142.00
11.11.2014,7500165294,21,153150,Enterprise (AOL) Ltd,231400,HIGHWAY EQUIPMENT & MATERIALS : Street Lighting,October 2014 works,EGEI,ELECT - STREET LIGHT,EN:WORKS MGT- ST LIG,460.00
11.11.2014,7500165294,22,153150,Enterprise (AOL) Ltd,231400,HIGHWAY EQUIPMENT & MATERIALS : Street Lighting,October 2014 works,EGEI,ELECT - STREET LIGHT,EN:WORKS MGT- ST LIG,472.00
11.11.2014,7500165294,23,153150,Enterprise (AOL) Ltd,231400,HIGHWAY EQUIPMENT & MATERIALS : Street Lighting,October 2014 works,EGEI,ELECT - STREET LIGHT,EN:WORKS MGT- ST LIG,43.25
11.11.2014,7500165294,24,153150,Enterprise (AOL) Ltd,231400,HIGHWAY EQUIPMENT & MATERIALS : Street Lighting,October 2014 works,EGEI,ELECT - STREET LIGHT,EN:WORKS MGT- ST LIG,105.00
11.11.2014,7500165294,25,153150,Enterprise (AOL) Ltd,231400,HIGHWAY EQUIPMENT & MATERIALS : Street Lighting,October 2014 works,EGEI,ELECT - STREET LIGHT,EN:WORKS MGT- ST LIG,248.25
11.11.2014,7500165294,26,153150,Enterprise (AOL) Ltd,231400,HIGHWAY EQUIPMENT & MATERIALS : Street Lighting,October 2014 works,EGEI,ELECT - STREET LIGHT,EN:WORKS MGT- ST LIG,75.50
11.11.2014,7500165294,27,153150,Enterprise (AOL) Ltd,231400,HIGHWAY EQUIPMENT & MATERIALS : Street Lighting,October 2014 works,EGEI,ELECT - STREET LIGHT,EN:WORKS MGT- ST LIG,80.00
11.11.2014,7500165294,28,153150,Enterprise (AOL) Ltd,231400,HIGHWAY EQUIPMENT & MATERIALS : Street Lighting,October 2014 works,EGEI,ELECT - STREET LIGHT,EN:WORKS MGT- ST LIG,89.00
11.11.2014,7500165294,29,153150,Enterprise (AOL) Ltd,231400,HIGHWAY EQUIPMENT & MATERIALS : Street Lighting,October 2014 works,EGEI,ELECT - STREET LIGHT,EN:WORKS MGT- ST LIG,91.00
11.11.2014,7500165294,30,153150,Enterprise (AOL) Ltd,231400,HIGHWAY EQUIPMENT & MATERIALS : Street Lighting,October 2014 works,EGEI,ELECT - STREET LIGHT,EN:WORKS MGT- ST LIG,102.50
11.11.2014,7500165294,31,153150,Enterprise (AOL) Ltd,231400,HIGHWAY EQUIPMENT & MATERIALS : Street Lighting,October 2014 works,EGEI,ELECT - STREET LIGHT,EN:WORKS MGT- ST LIG,177.00
11.11.2014,7500165294,32,153150,Enterprise (AOL) Ltd,231400,HIGHWAY EQUIPMENT & MATERIALS : Street Lighting,October 2014 works,EGEI,ELECT - STREET LIGHT,EN:WORKS MGT- ST LIG,16.00
11.11.2014,7500165294,33,153150,Enterprise (AOL) Ltd,231400,HIGHWAY EQUIPMENT & MATERIALS : Street Lighting,October 2014 works,EGEI,ELECT - STREET LIGHT,EN:WORKS MGT- ST LIG,217.50
11.11.2014,7500165294,34,153150,Enterprise (AOL) Ltd,231400,HIGHWAY EQUIPMENT & MATERIALS : Street Lighting,October 2014 works,EGEI,ELECT - STREET LIGHT,EN:WORKS MGT- ST LIG,192.00
11.11.2014,7500165294,35,153150,Enterprise (AOL) Ltd,231400,HIGHWAY EQUIPMENT & MATERIALS : Street Lighting,October 2014 works,EGEI,ELECT - STREET LIGHT,EN:WORKS MGT- ST LIG,45.50
11.11.2014,7500165294,36,153150,Enterprise (AOL) Ltd,231400,HIGHWAY EQUIPMENT & MATERIALS : Street Lighting,October 2014 works,EGEI,ELECT - STREET LIGHT,EN:WORKS MGT- ST LIG,45.50
11.11.2014,7500165294,37,153150,Enterprise (AOL) Ltd,231400,HIGHWAY EQUIPMENT & MATERIALS : Street Lighting,October 2014 works,EGEI,ELECT - STREET LIGHT,EN:WORKS MGT- ST LIG,59.00
11.11.2014,7500165294,38,153150,Enterprise (AOL) Ltd,231400,HIGHWAY EQUIPMENT & MATERIALS : Street Lighting,October 2014 works,EGEI,ELECT - STREET LIGHT,EN:WORKS MGT- ST LIG,123.50
11.11.2014,7500165294,39,153150,Enterprise (AOL) Ltd,231400,HIGHWAY EQUIPMENT & MATERIALS : Street Lighting,October 2014 works,EGEI,ELECT - STREET LIGHT,EN:WORKS MGT- ST LIG,89.00
11.11.2014,7500165294,40,153150,Enterprise (AOL) Ltd,231400,HIGHWAY EQUIPMENT & MATERIALS : Street Lighting,October 2014 works,EGEI,ELECT - STREET LIGHT,EN:WORKS MGT- ST LIG,105.00
11.11.2014,7500165294,41,153150,Enterprise (AOL) Ltd,231400,HIGHWAY EQUIPMENT & MATERIALS : Street Lighting,October 2014 works,EGEI,ELECT - STREET LIGHT,EN:WORKS MGT- ST LIG,40.00
11.11.2014,7500165294,42,153150,Enterprise (AOL) Ltd,231400,HIGHWAY EQUIPMENT & MATERIALS : Street Lighting,October 2014 works,EGEI,ELECT - STREET LIGHT,EN:WORKS MGT- ST LIG,62.00
11.11.2014,7500165294,43,153150,Enterprise (AOL) Ltd,231400,HIGHWAY EQUIPMENT & MATERIALS : Street Lighting,October 2014 works,EGEI,ELECT - STREET LIGHT,EN:WORKS MGT- ST LIG,40.00
11.11.2014,7500165294,44,153150,Enterprise (AOL) Ltd,231400,HIGHWAY EQUIPMENT & MATERIALS : Street Lighting,October 2014 works,EGEI,ELECT - STREET LIGHT,EN:WORKS MGT- ST LIG,74.00
11.11.2014,7500165294,45,153150,Enterprise (AOL) Ltd,231400,HIGHWAY EQUIPMENT & MATERIALS : Street Lighting,October 2014 works,EGEI,ELECT - STREET LIGHT,EN:WORKS MGT- ST LIG,578.50
11.11.2014,7500165294,46,153150,Enterprise (AOL) Ltd,231400,HIGHWAY EQUIPMENT & MATERIALS : Street Lighting,October 2014 works,EGEI,ELECT - STREET LIGHT,EN:WORKS MGT- ST LIG,109.25
11.11.2014,7500165294,47,153150,Enterprise (AOL) Ltd,231400,HIGHWAY EQUIPMENT & MATERIALS : Street Lighting,October 2014 works,EGEI,ELECT - STREET LIGHT,EN:WORKS MGT- ST LIG,185.00
11.11.2014,7500165294,48,153150,Enterprise (AOL) Ltd,231400,HIGHWAY EQUIPMENT & MATERIALS : Street Lighting,October 2014 works,EGEI,ELECT - STREET LIGHT,EN:WORKS MGT- ST LIG,96.25
11.11.2014,7500165294,49,153150,Enterprise (AOL) Ltd,231400,HIGHWAY EQUIPMENT & MATERIALS : Street Lighting,October 2014 works,EGEI,ELECT - STREET LIGHT,EN:WORKS MGT- ST LIG,358.00
11.11.2014,7500165294,50,153150,Enterprise (AOL) Ltd,231400,HIGHWAY EQUIPMENT & MATERIALS : Street Lighting,October 2014 works,EGEI,ELECT - STREET LIGHT,EN:WORKS MGT- ST LIG,201.50
11.11.2014,7500165294,51,153150,Enterprise (AOL) Ltd,231400,HIGHWAY EQUIPMENT & MATERIALS : Street Lighting,October 2014 works,EGEI,ELECT - STREET LIGHT,EN:WORKS MGT- ST LIG,201.50
11.11.2014,7500165294,52,153150,Enterprise (AOL) Ltd,231400,HIGHWAY EQUIPMENT & MATERIALS : Street Lighting,October 2014 works,EGEI,ELECT - STREET LIGHT,EN:WORKS MGT- ST LIG,72.00
11.11.2014,7500165294,53,153150,Enterprise (AOL) Ltd,231400,HIGHWAY EQUIPMENT & MATERIALS : Street Lighting,October 2014 works,EGEI,ELECT - STREET LIGHT,EN:WORKS MGT- ST LIG,107.00
11.11.2014,7500165294,54,153150,Enterprise (AOL) Ltd,231400,HIGHWAY EQUIPMENT & MATERIALS : Street Lighting,October 2014 works,EGEI,ELECT - STREET LIGHT,EN:WORKS MGT- ST LIG,98.50
11.11.2014,7500165294,55,153150,Enterprise (AOL) Ltd,231400,HIGHWAY EQUIPMENT & MATERIALS : Street Lighting,October 2014 works,EGEI,ELECT - STREET LIGHT,EN:WORKS MGT- ST LIG,43.25
11.11.2014,7500165294,56,153150,Enterprise (AOL) Ltd,231400,HIGHWAY EQUIPMENT & MATERIALS : Street Lighting,October 2014 works,EGEI,ELECT - STREET LIGHT,EN:WORKS MGT- ST LIG,52.50
11.11.2014,7500165294,57,153150,Enterprise (AOL) Ltd,231400,HIGHWAY EQUIPMENT & MATERIALS : Street Lighting,October 2014 works,EGEI,ELECT - STREET LIGHT,EN:WORKS MGT- ST LIG,145.75
11.11.2014,7500165294,58,153150,Enterprise (AOL) Ltd,231400,HIGHWAY EQUIPMENT & MATERIALS : Street Lighting,October 2014 works,EGEI,ELECT - STREET LIGHT,EN:WORKS MGT- ST LIG,53.00
11.11.2014,7500165294,59,153150,Enterprise (AOL) Ltd,231400,HIGHWAY EQUIPMENT & MATERIALS : Street Lighting,October 2014 works,EGEI,ELECT - STREET LIGHT,EN:WORKS MGT- ST LIG,75.25
11.11.2014,7500165294,60,153150,Enterprise (AOL) Ltd,231400,HIGHWAY EQUIPMENT & MATERIALS : Street Lighting,October 2014 works,EGEI,ELECT - STREET LIGHT,EN:WORKS MGT- ST LIG,45.50
11.11.2014,7500165294,61,153150,Enterprise (AOL) Ltd,231400,HIGHWAY EQUIPMENT & MATERIALS : Street Lighting,October 2014 works,EGEI,ELECT - STREET LIGHT,EN:WORKS MGT- ST LIG,71.00
11.11.2014,7500165294,62,153150,Enterprise (AOL) Ltd,231400,HIGHWAY EQUIPMENT & MATERIALS : Street Lighting,October 2014 works,EGEI,ELECT - STREET LIGHT,EN:WORKS MGT- ST LIG,32.00
11.11.2014,7500165294,63,153150,Enterprise (AOL) Ltd,231400,HIGHWAY EQUIPMENT & MATERIALS : Street Lighting,October 2014 works,EGEI,ELECT - STREET LIGHT,EN:WORKS MGT- ST LIG,43.25
11.11.2014,7500165294,64,153150,Enterprise (AOL) Ltd,231400,HIGHWAY EQUIPMENT & MATERIALS : Street Lighting,October 2014 works,EGEI,ELECT - STREET LIGHT,EN:WORKS MGT- ST LIG,389.25
11.11.2014,7500165294,65,153150,Enterprise (AOL) Ltd,231400,HIGHWAY EQUIPMENT & MATERIALS : Street Lighting,October 2014 works,EGEI,ELECT - STREET LIGHT,EN:WORKS MGT- ST LIG,86.00
11.11.2014,7500165294,66,153150,Enterprise (AOL) Ltd,231400,HIGHWAY EQUIPMENT & MATERIALS : Street Lighting,October 2014 works,EGEI,ELECT - STREET LIGHT,EN:WORKS MGT- ST LIG,118.50
11.11.2014,7500165294,67,153150,Enterprise (AOL) Ltd,231400,HIGHWAY EQUIPMENT & MATERIALS : Street Lighting,October 2014 works,EGEI,ELECT - STREET LIGHT,EN:WORKS MGT- ST LIG,56.00
11.11.2014,7500165294,68,153150,Enterprise (AOL) Ltd,231400,HIGHWAY EQUIPMENT & MATERIALS : Street Lighting,October 2014 works,EGEI,ELECT - STREET LIGHT,EN:WORKS MGT- ST LIG,56.00
11.11.2014,7500165294,69,153150,Enterprise (AOL) Ltd,231400,HIGHWAY EQUIPMENT & MATERIALS : Street Lighting,October 2014 works,EGEI,ELECT - STREET LIGHT,EN:WORKS MGT- ST LIG,62.00
11.11.2014,7500165294,70,153150,Enterprise (AOL) Ltd,231400,HIGHWAY EQUIPMENT & MATERIALS : Street Lighting,October 2014 works,EGEI,ELECT - STREET LIGHT,EN:WORKS MGT- ST LIG,93.00
11.11.2014,7500165294,71,153150,Enterprise (AOL) Ltd,231400,HIGHWAY EQUIPMENT & MATERIALS : Street Lighting,October 2014 works,EGEI,ELECT - STREET LIGHT,EN:WORKS MGT- ST LIG,102.50
11.11.2014,7500165294,72,153150,Enterprise (AOL) Ltd,231400,HIGHWAY EQUIPMENT & MATERIALS : Street Lighting,October 2014 works,EGEI,ELECT - STREET LIGHT,EN:WORKS MGT- ST LIG,45.50
11.11.2014,7500165294,73,153150,Enterprise (AOL) Ltd,231400,HIGHWAY EQUIPMENT & MATERIALS : Street Lighting,October 2014 works,EGEI,ELECT - STREET LIGHT,EN:WORKS MGT- ST LIG,59.25
11.11.2014,7500165294,74,153150,Enterprise (AOL) Ltd,231400,HIGHWAY EQUIPMENT & MATERIALS : Street Lighting,October 2014 works,EGEI,ELECT - STREET LIGHT,EN:WORKS MGT- ST LIG,52.50
11.11.2014,7500165294,75,153150,Enterprise (AOL) Ltd,231400,HIGHWAY EQUIPMENT & MATERIALS : Street Lighting,October 2014 works,EGEI,ELECT - STREET LIGHT,EN:WORKS MGT- ST LIG,248.50
11.11.2014,7500165294,76,153150,Enterprise (AOL) Ltd,231400,HIGHWAY EQUIPMENT & MATERIALS : Street Lighting,October 2014 works,EGEI,ELECT - STREET LIGHT,EN:WORKS MGT- ST LIG,357.25
11.11.2014,7500165294,77,153150,Enterprise (AOL) Ltd,231400,HIGHWAY EQUIPMENT & MATERIALS : Street Lighting,October 2014 works,EGEI,ELECT - STREET LIGHT,EN:WORKS MGT- ST LIG,43.25
11.11.2014,7500165294,78,153150,Enterprise (AOL) Ltd,231400,HIGHWAY EQUIPMENT & MATERIALS : Street Lighting,October 2014 works,EGEI,ELECT - STREET LIGHT,EN:WORKS MGT- ST LIG,75.50
11.11.2014,7500165294,79,153150,Enterprise (AOL) Ltd,231400,HIGHWAY EQUIPMENT & MATERIALS : Street Lighting,October 2014 works,EGEI,ELECT - STREET LIGHT,EN:WORKS MGT- ST LIG,236.00
11.11.2014,7500165294,80,153150,Enterprise (AOL) Ltd,231400,HIGHWAY EQUIPMENT & MATERIALS : Street Lighting,October 2014 works,EGEI,ELECT - STREET LIGHT,EN:WORKS MGT- ST LIG,56.00
11.11.2014,7500165294,81,153150,Enterprise (AOL) Ltd,231400,HIGHWAY EQUIPMENT & MATERIALS : Street Lighting,October 2014 works,EGEI,ELECT - STREET LIGHT,EN:WORKS MGT- ST LIG,210.00
11.11.2014,7500165294,82,153150,Enterprise (AOL) Ltd,231400,HIGHWAY EQUIPMENT & MATERIALS : Street Lighting,October 2014 works,EGEI,ELECT - STREET LIGHT,EN:WORKS MGT- ST LIG,28.00
11.11.2014,7500165322,1,140577,R Purcell Civil Eng Contractors LTD,391410,WORKS - CONSTRUCTION : Roads : Construction,Purcell Highways Rep,EGEI,EXTERNAL DAY-TO-DAY,HIGH/DRAIN WORKS MGT,"33,669.00"
11.11.2014,7500165326,1,134900,Trafford Housing Trust,321000,SOCIAL CARE SERVICES : Adult,Telcare Charges Oct,CFW,CONTRIB EXT PROJECTS,Community Alarms,"14,548.82"
11.11.2014,7500165331,1,147974,Gulliver's Truck Hire Ltd,381600,VEHICLES : Vehicle Leasing,Vehicle Hire - TTP50,EGEI,EXT VEH & PLANT HIR,EN:TM LARGE SWEEP,"7,100.00"
11.11.2014,7500165338,1,152453,"Knight, Kavanagh & Page",152100,CONSULTANCY : Strategic Planning,Work undertaken for,T & R ,REGIONAL PLANNING GUIDANCE,Programme Office,"3,950.00"
11.11.2014,7500165338,2,152453,"Knight, Kavanagh & Page",152100,CONSULTANCY : Strategic Planning,Work undertaken for,T & R ,REGIONAL PLANNING GUIDANCE,Programme Office,"4,650.00"
11.11.2014,7500165338,3,152453,"Knight, Kavanagh & Page",152100,CONSULTANCY : Strategic Planning,Work undertaken for,T & R ,REGIONAL PLANNING GUIDANCE,Programme Office,"4,650.00"
12.11.2014,7500165370,1,136851,Trafford College,171010,EDUCATION : Services : Adult & Further Education,Redacted Personal Data,CFW,NON MAINT SCH FEES,Post 16 - Element 3,"2,535.33"
12.11.2014,7500165370,2,136851,Trafford College,171010,EDUCATION : Services : Adult & Further Education,Redacted Personal Data,CFW,NON MAINT SCH FEES,Post 16 - Element 3,"4,418.67"
12.11.2014,7500165370,3,136851,Trafford College,171010,EDUCATION : Services : Adult & Further Education,Redacted Personal Data,CFW,NON MAINT SCH FEES,Post 16 - Element 3,"5,356.00"
12.11.2014,7500165370,4,136851,Trafford College,171010,EDUCATION : Services : Adult & Further Education,Redacted Personal Data,CFW,NON MAINT SCH FEES,Post 16 - Element 3,"2,579.33"
12.11.2014,7500165370,5,136851,Trafford College,171010,EDUCATION : Services : Adult & Further Education,Redacted Personal Data,CFW,NON MAINT SCH FEES,Post 16 - Element 3,"8,078.67"
12.11.2014,7500165370,6,136851,Trafford College,171010,EDUCATION : Services : Adult & Further Education,Redacted Personal Data,CFW,NON MAINT SCH FEES,Post 16 - Element 3,"4,046.67"
12.11.2014,7500165370,7,136851,Trafford College,171010,EDUCATION : Services : Adult & Further Education,Redacted Personal Data,CFW,NON MAINT SCH FEES,Post 16 - Element 3,"3,599.67"
12.11.2014,7500165370,8,136851,Trafford College,171010,EDUCATION : Services : Adult & Further Education,Redacted Personal Data,CFW,NON MAINT SCH FEES,Post 16 - Element 3,"2,978.67"
12.11.2014,7500165370,9,136851,Trafford College,171010,EDUCATION : Services : Adult & Further Education,Redacted Personal Data,CFW,NON MAINT SCH FEES,Post 16 - Element 3,"2,423.33"
12.11.2014,7500165370,10,136851,Trafford College,171010,EDUCATION : Services : Adult & Further Education,Redacted Personal Data,CFW,NON MAINT SCH FEES,Post 16 - Element 3,"4,151.00"
12.11.2014,7500165370,11,136851,Trafford College,171010,EDUCATION : Services : Adult & Further Education,Redacted Personal Data,CFW,NON MAINT SCH FEES,Post 16 - Element 3,"8,579.00"
12.11.2014,7500165370,12,136851,Trafford College,171010,EDUCATION : Services : Adult & Further Education,Redacted Personal Data,CFW,NON MAINT SCH FEES,Post 16 - Element 3,"2,535.33"
12.11.2014,7500165370,13,136851,Trafford College,171010,EDUCATION : Services : Adult & Further Education,Redacted Personal Data,CFW,NON MAINT SCH FEES,Post 16 - Element 3,"4,418.67"
12.11.2014,7500165370,14,136851,Trafford College,171010,EDUCATION : Services : Adult & Further Education,Redacted Personal Data,CFW,NON MAINT SCH FEES,Post 16 - Element 3,"5,356.00"
12.11.2014,7500165370,15,136851,Trafford College,171010,EDUCATION : Services : Adult & Further Education,Redacted Personal Data,CFW,NON MAINT SCH FEES,Post 16 - Element 3,"2,579.33"
12.11.2014,7500165370,16,136851,Trafford College,171010,EDUCATION : Services : Adult & Further Education,Redacted Personal Data,CFW,NON MAINT SCH FEES,Post 16 - Element 3,"8,078.67"
12.11.2014,7500165370,17,136851,Trafford College,171010,EDUCATION : Services : Adult & Further Education,Redacted Personal Data,CFW,NON MAINT SCH FEES,Post 16 - Element 3,"4,046.67"
12.11.2014,7500165370,18,136851,Trafford College,171010,EDUCATION : Services : Adult & Further Education,Redacted Personal Data,CFW,NON MAINT SCH FEES,Post 16 - Element 3,"3,599.67"
12.11.2014,7500165370,19,136851,Trafford College,171010,EDUCATION : Services : Adult & Further Education,Redacted Personal Data,CFW,NON MAINT SCH FEES,Post 16 - Element 3,"2,978.67"
12.11.2014,7500165370,20,136851,Trafford College,171010,EDUCATION : Services : Adult & Further Education,Redacted Personal Data,CFW,NON MAINT SCH FEES,Post 16 - Element 3,"2,423.33"
12.11.2014,7500165370,21,136851,Trafford College,171010,EDUCATION : Services : Adult & Further Education,Redacted Personal Data,CFW,NON MAINT SCH FEES,Post 16 - Element 3,"4,151.00"
12.11.2014,7500165370,22,136851,Trafford College,171010,EDUCATION : Services : Adult & Further Education,Redacted Personal Data,CFW,NON MAINT SCH FEES,Post 16 - Element 3,"8,579.00"
12.11.2014,7500165385,1,150269,Health Diagnostics Ltd,311000,MEDICAL : Consumables,Health Check Pharmac,CFW,MEDICAL REQUISITES,NHS HEALTH CHECKS,"9,278.00"
12.11.2014,7500165395,1,139174,City Illuminations Limited,181700,ENVIRONMENT : Street Lighting,Festive Lights 2014,EGEI,EXTERNAL DAY-TO-DAY,XMAS LIGHTS,"59,590.00"
12.11.2014,7500165395,2,139174,City Illuminations Limited,181700,ENVIRONMENT : Street Lighting,Festive Lights 2014,EGEI,EXTERNAL DAY-TO-DAY,XMAS LIGHTS,335.00
12.11.2014,7500165396,1,106560,Bethell Construction Ltd,391111,WORKS - CONSTRUCTION : Buildings : Maintenance,"Br No 010, Crossford",EGEI,A&M PAY TO CONTRACTO,Capital Schemes,"50,000.00"
12.11.2014,7500165403,1,151306,EE Ltd T/A Orange EE (Airtime),271800,ICT : Telecommunications - Mobile,Nov Mobile Data Char,T & R ,MOBILE COMMUNICATION,EG:IT EQUIPMENT,677.00
12.11.2014,7500165403,2,151306,EE Ltd T/A Orange EE (Airtime),271800,ICT : Telecommunications - Mobile,Nov Mobile Data Char,T & R ,MOBILE COMMUNICATION,EG:IT EQUIPMENT,904.74
12.11.2014,7500165403,3,151306,EE Ltd T/A Orange EE (Airtime),271800,ICT : Telecommunications - Mobile,Nov Mobile Data Char,T & R ,MOBILE COMMUNICATION,EG:IT EQUIPMENT,601.33
12.11.2014,7500165403,4,151306,EE Ltd T/A Orange EE (Airtime),271800,ICT : Telecommunications - Mobile,Nov Mobile Charges (,T & R ,MOBILE COMMUNICATION,EG:IT EQUIPMENT,"7,874.97"
12.11.2014,7500165403,5,151306,EE Ltd T/A Orange EE (Airtime),271800,ICT : Telecommunications - Mobile,Nov Mobile Charges (,T & R ,MOBILE COMMUNICATION,EG:IT EQUIPMENT,151.22
12.11.2014,7500165408,1,151771,Springboard Research Ltd,151000,CONSULTANCY : Business,Footfall Monitor (2,EGEI,CENTRAL/ONE-OFF INITIATIVES,TOWN TEAM ALTRINCHAM,"1,950.00"
12.11.2014,7500165408,2,151771,Springboard Research Ltd,151000,CONSULTANCY : Business,Footfall Monitor (3,EGEI,CENTRAL/ONE-OFF INITIATIVES,TOWN TEAM ALTRINCHAM,"1,950.00"
12.11.2014,7500165408,3,151771,Springboard Research Ltd,151000,CONSULTANCY : Business,Footfall Monitor (4,EGEI,CENTRAL/ONE-OFF INITIATIVES,TOWN TEAM ALTRINCHAM,"1,950.00"
12.11.2014,7500165441,1,146408,Eric Charlesworth Ltd,192212,FACILITIES MGT : Security : Equipment,Woodheys Primary Sch,EGEI,EXTERNAL DAY-TO-DAY,CN:Bldg Serv Schemes,"6,934.87"
13.11.2014,7500165548,1,150881,NHS Trafford CCG,311600,MEDICAL : Services,Recharge - secondmen,CFW,EXT PROJECT MAN,Capital Schemes,"5,046.00"
14.11.2014,7500165554,1,153230,Purcell Miller Tritton LLP,151000,CONSULTANCY : Business,purcell b/drive cumu,EGEI,SUPPLIES/SERVICES,HIGH/DRAIN WORKS MGT,"33,542.50"
13.11.2014,7500165561,1,152611,Hanzak Ltd,311400,MEDICAL : Fees,DoLS MHA Assessments,CFW,MEDICAL FEES,SAFEGUARDING ADULTS,"24,000.00"
13.11.2014,7500165561,2,152611,Hanzak Ltd,311400,MEDICAL : Fees,DoLS MHA Assessments,CFW,MEDICAL FEES,SAFEGUARDING ADULTS,"2,500.00"
14.11.2014,7500165573,1,128258,British Telecommunications Ltd,271700,ICT : Telecommunications - Fixed,PSTN Line Rental BT,T & R ,TELEPHONES - RENTALS,EG:IT EQUIPMENT,"3,958.02"
14.11.2014,7500165573,2,128258,British Telecommunications Ltd,271700,ICT : Telecommunications - Fixed,PSTN Call Charges BT,T & R ,TELEPHONES - CALLS,EG:IT EQUIPMENT,"1,667.60"
14.11.2014,7500165573,3,128258,British Telecommunications Ltd,271700,ICT : Telecommunications - Fixed,PSTN Installation Co,T & R ,TELEPHONES - INSTALL,EG:IT EQUIPMENT,51.49
14.11.2014,7500165573,4,128258,British Telecommunications Ltd,271700,ICT : Telecommunications - Fixed,PSTN Installtion BT,T & R ,TELEPHONES - INSTALL,EG:IT EQUIPMENT,100.90
14.11.2014,7500165573,5,128258,British Telecommunications Ltd,271700,ICT : Telecommunications - Fixed,ISDN30 Line Rental B,T & R ,TELEPHONES - RENTALS,EG:VOICE NETWORK COR,"14,150.54"
14.11.2014,7500165573,6,128258,British Telecommunications Ltd,271700,ICT : Telecommunications - Fixed,ISDN30 Call Charges,T & R ,TELEPHONES - CALLS,EG:VOICE NETWORK COR,246.97
14.11.2014,7500165573,7,128258,British Telecommunications Ltd,271700,ICT : Telecommunications - Fixed,PSTN Line Rental BT,T & R ,TELEPHONES - RENTALS,EG: SCHOOLS SLA,875.27
14.11.2014,7500165607,1,140906,Mavoda LLP,271500,ICT : Services,Aruba Silver Support,T & R ,IT MAINT SOFTWARE,EG:VOICE NETWORK COR,"5,853.00"
17.11.2014,7500165670,1,140442,Horticon Ltd,241200,HORTICULTURAL : Services,Ashton on Mersey Vil,EGEI,LANDSCAPING WORKS,Capital Schemes,"18,667.50"
17.11.2014,7500165697,1,135140,Lostock College,171000,EDUCATION : Services,Services,CFW,HIRE OF ROOMS,MES,"2,700.00"
17.11.2014,7500165697,2,135140,Lostock College,171000,EDUCATION : Services,Services,CFW,HIRE OF ROOMS,MES,"2,700.00"
18.11.2014,7500165704,1,143918,BT Redcare,192200,FACILITIES MGT : Security,CCTV Fibre CCTV 2002,T & R ,EXT ALARMS/SEC,CCTV Central watch S,"8,036.98"
18.11.2014,7500165749,1,139917,South Manchester Radio Cabs Ltd,361300,TRANSPORT : Passenger Transport,SMRC SS C11 2014/15,CFW,Internal Trans Rchrg,LD TRANSPORT,"9,520.00"
19.11.2014,7500165839,1,138741,Dlp Services Northern Ltd,391110,WORKS - CONSTRUCTION : Buildings : Construction,Disabled Facilities,CFW,CLIENTS ADAPTATIONS,HS:ADAPTATIONS,"21,249.23"
19.11.2014,7500165880,1,153396,Imperial War Museum,201700,FINANCIAL SERVICES : Grants,Community Covenant G,T & R ,SECTION 48 GRANTS,Community Strategy Refresh,"32,500.00"
19.11.2014,7500165922,1,147035,Salford Foundation Ltd,311300,MEDICAL : Equipment,Youth Crim Prev Proj,CFW,PROFESSIONAL FEES,CommissionedProjects,"7,465.00"
20.11.2014,7500165987,1,146408,Eric Charlesworth Ltd,192212,FACILITIES MGT : Security : Equipment,Eric Charlesworth Se,EGEI,EQUIPMENT - PURCHASE,Build Survey-Schemes,"5,422.25"
20.11.2014,7500165988,1,151894,IFTECH�,191300,FACILITIES MGT : Energy Efficiency,Trafford Town Hall I,EGEI,EXTERNAL DAY-TO-DAY,CN:Bldg Serv Schemes,"5,275.00"
20.11.2014,7500166007,1,145041,I-Bus Ltd,361300,TRANSPORT : Passenger Transport,i-bus - Run 676 Pict,CFW,CONT HIRE HOME TO SC,Home to School Tr,"12,240.00"
21.11.2014,7500166021,1,139589,HVB Flooring Services Ltd,101300,BUILDING MATERIALS : Floor Coverings,Nexus Education Cent,EGEI,EXTERNAL DAY-TO-DAY,CN:Bldg Serv Schemes,"10,900.00"
21.11.2014,7500166031,1,153413,Foster Careline,321117,SOCIAL CARE SERVICES : Children : Residential Care,Redacted Personal Data,CFW,CONT VOL BODIES,PLACEMENT FOSTERING,"18,286.40"
21.11.2014,7500166042,1,146408,Eric Charlesworth Ltd,192212,FACILITIES MGT : Security : Equipment,Servicing for school,EGEI,EQUIPMENT - PURCHASE,Build Survey-Schemes,"7,724.75"
21.11.2014,7500166046,1,139619,Kenny Bros (Civil Eng) Ltd,391400,WORKS - CONSTRUCTION : Roads,kenny bros invoice 1,EGEI,SUPPLIES/SERVICES,HIGH/DRAIN WORKS MGT,"9,553.35"
24.11.2014,7500166109,1,145041,I-Bus Ltd,361300,TRANSPORT : Passenger Transport,i-bus - Run 46 Brent,CFW,CONT HIRE HOME TO SC,Home to School Tr,"13,900.00"
24.11.2014,7500166110,1,139771,B & S Travel Ltd,361300,TRANSPORT : Passenger Transport,B & S Run 53-1 Manor,CFW,CONT HIRE HOME TO SC,Home to School Tr,"14,592.00"
24.11.2014,7500166111,1,139771,B & S Travel Ltd,361300,TRANSPORT : Passenger Transport,B & S - Run 400 Long,CFW,CONT HIRE HOME TO SC,Home to School Tr,"15,688.00"
24.11.2014,7500166112,1,147103,Pure Innovations Ltd,261500,HR : Training & Conferences,Suuported traineeshi,CFW,GRANTS TO VOL ORGS,LD DEV FUND,"8,750.00"
25.11.2014,7500166170,1,135210,Wilde Consultants Ltd,151610,CONSULTANCY : Highways : Engineering,Redacted Personal Data,EGEI,CONSULTANTS,TT:RASWA ACCOUNT,"5,550.00"
25.11.2014,7500166170,2,135210,Wilde Consultants Ltd,151610,CONSULTANCY : Highways : Engineering,Redacted Personal Data,EGEI,CONSULTANTS,TT:RASWA ACCOUNT,353.20
25.11.2014,7500166196,1,136048,F R SHARROCK LTD,241500,HORTICULTURAL : Tools & Equipment,Sharrocks Leaf Clear,EGEI,SERV & REP MOWERS,Groundforce DSO Nth,"29,175.00"
25.11.2014,7500166197,1,136048,F R SHARROCK LTD,241500,HORTICULTURAL : Tools & Equipment,Sharrocks Invoice Da,EGEI,SERV & REP MOWERS,Groundforce DSO Nth,"43,934.90"
25.11.2014,7500166236,1,152292,PCC for Greater Manchester,261500,HR : Training & Conferences,HOIF: 14/15 Mediatio,T & R ,CONFERENCE EXP OFF,ABG SSC,"22,530.00"
25.11.2014,7500166248,1,139595,AT Nolan Ltd,391113,WORKS - CONSTRUCTION : Buildings : Repair,DDA Works,EGEI,A&M PAY TO CONTRACTO,Capital Schemes,"6,498.00"
28.11.2014,7500166527,1,153414,The Campaign Company,152200,CONSULTANCY : Technical & Feasibility,Phase 1 Library Cons,EGEI,BOOKS PURCHASE,Acc Traf Stock Devel,"12,500.00"
28.11.2014,7500166527,2,153414,The Campaign Company,152200,CONSULTANCY : Technical & Feasibility,Phase 2 Library Cons,EGEI,BOOKS PURCHASE,Acc Traf Stock Devel,"12,500.00"
28.11.2014,7500166560,1,138993,VCAT,321010,SOCIAL CARE SERVICES : Adult : Advice & Counselling Services,Trafford MH Advisory,CFW,GRANTS TO VOL ORGS,TRAFF MH ADVOC SERVI,"5,333.33"
28.11.2014,7500166560,2,138993,VCAT,321010,SOCIAL CARE SERVICES : Adult : Advice & Counselling Services,Trafford MH Advisory,CFW,GRANTS TO VOL ORGS,TRAFF MH ADVOC SERVI,"5,333.33"
28.11.2014,7500166560,3,138993,VCAT,321010,SOCIAL CARE SERVICES : Adult : Advice & Counselling Services,Trafford MH Advisory,CFW,GRANTS TO VOL ORGS,TRAFF MH ADVOC SERVI,"5,333.33"
28.11.2014,7500166560,4,138993,VCAT,321010,SOCIAL CARE SERVICES : Adult : Advice & Counselling Services,Trafford MH Advisory,CFW,GRANTS TO VOL ORGS,TRAFF MH ADVOC SERVI,"5,333.33"
28.11.2014,7500166560,5,138993,VCAT,321010,SOCIAL CARE SERVICES : Adult : Advice & Counselling Services,Trafford MH Advisory,CFW,GRANTS TO VOL ORGS,TRAFF MH ADVOC SERVI,"5,333.33"
28.11.2014,7500166560,6,138993,VCAT,321010,SOCIAL CARE SERVICES : Adult : Advice & Counselling Services,Trafford MH Advisory,CFW,GRANTS TO VOL ORGS,TRAFF MH ADVOC SERVI,"5,333.33"
28.11.2014,7500166561,1,148223,Trafford Centre for Independent Living,321010,SOCIAL CARE SERVICES : Adult : Advice & Counselling Services,LD Avocacy Oct 14,CFW,GRANTS TO VOL ORGS,CIL,508.25
28.11.2014,7500166561,2,148223,Trafford Centre for Independent Living,321010,SOCIAL CARE SERVICES : Adult : Advice & Counselling Services,LD Advocacy  Oct 14,CFW,CONTRIB EXT PROJECTS,TRAFFORD CIL,"3,158.42"
28.11.2014,7500166561,3,148223,Trafford Centre for Independent Living,321010,SOCIAL CARE SERVICES : Adult : Advice & Counselling Services,LD Advocacy Nov 14,CFW,CONTRIB EXT PROJECTS,TRAFFORD CIL,"3,158.42"
28.11.2014,7500166561,4,148223,Trafford Centre for Independent Living,321010,SOCIAL CARE SERVICES : Adult : Advice & Counselling Services,LD Advocacy Nov 14,CFW,GRANTS TO VOL ORGS,CIL,508.25
28.11.2014,7500166561,5,148223,Trafford Centre for Independent Living,321010,SOCIAL CARE SERVICES : Adult : Advice & Counselling Services,LD Advocacy Dec 14,CFW,CONTRIB EXT PROJECTS,TRAFFORD CIL,"3,158.42"
28.11.2014,7500166561,6,148223,Trafford Centre for Independent Living,321010,SOCIAL CARE SERVICES : Adult : Advice & Counselling Services,LD Advocacy Dec 14,CFW,GRANTS TO VOL ORGS,CIL,508.25
01.12.2014,7500166580,1,136171,The Together Trust,171011,EDUCATION : Services : Children,Redacted Personal Data,CFW,NON MAINT SCH FEES,OTHER L.E.A. & IN,"3,822.00"
01.12.2014,7500166580,2,136171,The Together Trust,171011,EDUCATION : Services : Children,Redacted Personal Data,CFW,NON MAINT SCH FEES,OTHER L.E.A. & IN,"10,967.61"
01.12.2014,7500166580,3,136171,The Together Trust,171011,EDUCATION : Services : Children,Redacted Personal Data,CFW,NON MAINT SCH FEES,OTHER L.E.A. & IN,"10,967.61"
01.12.2014,7500166594,1,150881,NHS Trafford CCG,311600,MEDICAL : Services,NHS Trafford CCG - A,T & R ,MEDICAL REQUISITES,ALCOHOL MISUSE DRUG,"1,976.30"
01.12.2014,7500166594,2,150881,NHS Trafford CCG,311600,MEDICAL : Services,NHS  CCG - Contracep,T & R ,MEDICAL REQUISITES,CONTRACEPTIVES,"27,338.20"
01.12.2014,7500166594,3,150881,NHS Trafford CCG,311600,MEDICAL : Services,NHS Trafford CCG - D,T & R ,MEDICAL REQUISITES,METHADONE,"2,803.80"
01.12.2014,7500166594,4,150881,NHS Trafford CCG,311600,MEDICAL : Services,NHS  CCG - CDT Drug,T & R ,MEDICAL REQUISITES,METHADONE,"10,561.70"
01.12.2014,7500166605,1,147337,Uni of Sth M/cr Nhs Foundation Trus,311600,MEDICAL : Services,UHSM - GUM Mth 7,T & R ,PAYMENTS TO HA'S,GUM ACUTE ACTIVITY,"16,778.00"
02.12.2014,7500166662,1,128258,British Telecommunications Ltd,271500,ICT : Services,Qtr2 14/15 Broadband,T & R ,TELEPHONES - RENTALS,EG:IT EQUIPMENT,"14,180.57"
02.12.2014,7500166662,2,128258,British Telecommunications Ltd,271500,ICT : Services,Qtr2 14/15 Broadband,T & R ,TELEPHONES - RENTALS,EG:IT EQUIPMENT,49.48
02.12.2014,7500166662,3,128258,British Telecommunications Ltd,271500,ICT : Services,Qtr2 14/15 Broadband,T & R ,TELEPHONES - RENTALS,EG:IT EQUIPMENT,2.11
02.12.2014,7500166673,1,142568,Rethink - Mental Health Shop,321010,SOCIAL CARE SERVICES : Adult : Advice & Counselling Services,BME MH Service Oct 2,CFW,GRANTS TO VOL ORGS,RE-THINK,"11,335.00"
02.12.2014,7500166673,2,142568,Rethink - Mental Health Shop,321010,SOCIAL CARE SERVICES : Adult : Advice & Counselling Services,BME MH Service Nov 2,CFW,GRANTS TO VOL ORGS,RE-THINK,"11,335.00"
02.12.2014,7500166673,3,142568,Rethink - Mental Health Shop,321010,SOCIAL CARE SERVICES : Adult : Advice & Counselling Services,BME MH Service Dec 2,CFW,GRANTS TO VOL ORGS,RE-THINK,"11,335.00"
02.12.2014,7500166683,1,136039,VIRGIN MEDIA PAYMENTS LTD,271700,ICT : Telecommunications - Fixed,01612157005 line ren,T & R ,TELEPHONES - RENTALS,EG:VOICE NETWORK COR,203.60
02.12.2014,7500166683,2,136039,VIRGIN MEDIA PAYMENTS LTD,271700,ICT : Telecommunications - Fixed,01612157005 call usa,T & R ,TELEPHONES - CALLS,EG:VOICE NETWORK COR,"2,085.29"
02.12.2014,7500166683,3,136039,VIRGIN MEDIA PAYMENTS LTD,271700,ICT : Telecommunications - Fixed,01612157000 line ren,T & R ,TELEPHONES - RENTALS,EG:VOICE NETWORK COR,178.60
02.12.2014,7500166683,4,136039,VIRGIN MEDIA PAYMENTS LTD,271700,ICT : Telecommunications - Fixed,01612157000 call usa,T & R ,TELEPHONES - CALLS,EG:VOICE NETWORK COR,"1,936.01"
02.12.2014,7500166683,5,136039,VIRGIN MEDIA PAYMENTS LTD,271700,ICT : Telecommunications - Fixed,01612157000 line ren,T & R ,TELEPHONES - RENTALS,EG:VOICE NETWORK COR,178.60
02.12.2014,7500166683,6,136039,VIRGIN MEDIA PAYMENTS LTD,271700,ICT : Telecommunications - Fixed,01612157000 call usa,T & R ,TELEPHONES - CALLS,EG:VOICE NETWORK COR,"1,929.76"
03.12.2014,7500166725,1,143160,Fairfield Residential Ltd,321214,SOCIAL CARE SERVICES : Disabled Children : Residential Care,Redacted Personal Data,CFW,EXT RES CARE FEES,CAN : S17 & CLIENTS,"11,735.67"
03.12.2014,7500166726,1,139619,Kenny Bros (Civil Eng) Ltd,391400,WORKS - CONSTRUCTION : Roads,Kenny Bros vc,EGEI,EXTERNAL DAY-TO-DAY,HIGH/DRAIN WORKS MGT,981.10
03.12.2014,7500166726,2,139619,Kenny Bros (Civil Eng) Ltd,391400,WORKS - CONSTRUCTION : Roads,Kenny Bros vc ,EGEI,EXTERNAL DAY-TO-DAY,HIGH/DRAIN WORKS MGT,995.70
03.12.2014,7500166726,3,139619,Kenny Bros (Civil Eng) Ltd,391400,WORKS - CONSTRUCTION : Roads,Kenny Bros vc ,EGEI,EXTERNAL DAY-TO-DAY,HIGH/DRAIN WORKS MGT,480.55
03.12.2014,7500166726,4,139619,Kenny Bros (Civil Eng) Ltd,391400,WORKS - CONSTRUCTION : Roads,Kenny Bros vc ,EGEI,EXTERNAL DAY-TO-DAY,HIGH/DRAIN WORKS MGT,516.65
03.12.2014,7500166726,5,139619,Kenny Bros (Civil Eng) Ltd,391400,WORKS - CONSTRUCTION : Roads,Kenny Bros vc ,EGEI,EXTERNAL DAY-TO-DAY,HIGH/DRAIN WORKS MGT,966.06
03.12.2014,7500166726,6,139619,Kenny Bros (Civil Eng) Ltd,391400,WORKS - CONSTRUCTION : Roads,Kenny Bros vc,EGEI,EXTERNAL DAY-TO-DAY,HIGH/DRAIN WORKS MGT,577.14
03.12.2014,7500166726,7,139619,Kenny Bros (Civil Eng) Ltd,391400,WORKS - CONSTRUCTION : Roads,Kenny Bros vc,EGEI,EXTERNAL DAY-TO-DAY,HIGH/DRAIN WORKS MGT,937.38
03.12.2014,7500166726,8,139619,Kenny Bros (Civil Eng) Ltd,391400,WORKS - CONSTRUCTION : Roads,Kenny Bros vc ,EGEI,EXTERNAL DAY-TO-DAY,HIGH/DRAIN WORKS MGT,446.10
03.12.2014,7500166726,9,139619,Kenny Bros (Civil Eng) Ltd,391400,WORKS - CONSTRUCTION : Roads,Kenny Bros vc ,EGEI,EXTERNAL DAY-TO-DAY,HIGH/DRAIN WORKS MGT,437.86
03.12.2014,7500166726,10,139619,Kenny Bros (Civil Eng) Ltd,391400,WORKS - CONSTRUCTION : Roads,Kenny Bros vc ,EGEI,EXTERNAL DAY-TO-DAY,HIGH/DRAIN WORKS MGT,350.39
03.12.2014,7500166726,11,139619,Kenny Bros (Civil Eng) Ltd,391400,WORKS - CONSTRUCTION : Roads,Kenny Bros mm,EGEI,EXTERNAL DAY-TO-DAY,HIGH/DRAIN WORKS MGT,91.29
03.12.2014,7500166753,1,143160,Fairfield Residential Ltd,321117,SOCIAL CARE SERVICES : Children : Residential Care,FAIRFIELD TRAFFORD N,CFW,EXT RES CARE FEES,CAN- L.T. RES SCHOOL,"11,130.00"
03.12.2014,7500166770,1,142061,BlueSCI,171000,EDUCATION : Services,Broomwood wellbeing,CFW,HIRE OF ROOMS,Altrincham Youth Cen,"8,666.66"
03.12.2014,7500166795,1,141663,Neopost Ltd (Franking Credit Only),301200,MAIL SERVICES : Postage,Credifon Account Re-,EGEI,POSTAGES,AM:Post Room,"10,000.00"
03.12.2014,7500166796,1,141663,Neopost Ltd (Franking Credit Only),301200,MAIL SERVICES : Postage,Credifon Account Re-,EGEI,POSTAGES,AM:Post Room,"10,000.00"
03.12.2014,7500166809,1,138741,Dlp Services Northern Ltd,391110,WORKS - CONSTRUCTION : Buildings : Construction,Disabled Facilities,CFW,CLIENTS ADAPTATIONS,HS:ADAPTATIONS,"6,918.91"
04.12.2014,7500166810,1,152295,Badenoch & Clark,261413,HR : Temporary & Agency Staff : Professional,Extension to Contrac,T & R ,OUTSIDE TECHNICAL SU,Financial Management,"29,524.00"
03.12.2014,7500166815,1,134900,Trafford Housing Trust,321000,SOCIAL CARE SERVICES : Adult,Minor Adaptations Ma,CFW,CLIENTS ADAPTATIONS,EXTERNAL MINOR ADAPT,"15,627.92"
03.12.2014,7500166815,2,134900,Trafford Housing Trust,321000,SOCIAL CARE SERVICES : Adult,Minor Adapts Panel,CFW,CLIENTS AIDS,EXTERNAL MINOR ADAPT,"5,215.00"
03.12.2014,7500166817,1,134900,Trafford Housing Trust,321000,SOCIAL CARE SERVICES : Adult,Telecare Pledge Oct,CFW,CAPITAL - PURCHASE OF FURNITURE & EQUIPMENT,Capital Schemes,"18,764.69"
04.12.2014,7500166824,1,139610,Tarmac Limited,231100,HIGHWAY EQUIPT&MATLS : Bitumen & Surface Dressing,Redacted Personal Data,EGEI,Inf - Main Works Con,Capital Schemes,"76,036.84"
04.12.2014,7500166854,1,139164,Hemming Group Limited,202100,FINANCIAL SERVICES : Subscriptions,MJ Classified,T & R ,ADVERTISING STAFF PO,CYPS Corp Director,"5,250.00"
04.12.2014,7500166863,1,152292,PCC for Greater Manchester,261500,HR : Training & Conferences,Salary Recharges - 0,T & R ,CONFERENCE EXP OFF,ABG SSC,"6,464.52"
05.12.2014,7500166905,1,153258,The Tiriana Consultancy,151400,CONSULTANCY : Financial,Consultancy - Invest,T & R ,OTHER MISC EXPENSES,FI:GENERAL CONTINGEN,"5,367.00"
05.12.2014,7500166934,1,140142,Beresford Building Contractors,321311,SOCIAL CARE SERVICES : Supplies : Equipment,JOHN LEIGH PARK = DI,EGEI,A&M PAY TO CONTRACTO,Capital Schemes,"7,061.00"
08.12.2014,7500166996,1,142249,Pennine Care NHS Trust,311600,MEDICAL : Services,Equipment recharge -,CFW,EQUIPMENT - PURCHASE,ONE STOP RES CENTRE,"65,581.59"
08.12.2014,7500166999,1,143160,Fairfield Residential Ltd,321117,SOCIAL CARE SERVICES : Children : Residential Care,Fairfield Residentia,CFW,EXT RES CARE FEES,CAN- L.T. RES SCHOOL,"7,791.00"
08.12.2014,7500167005,1,143160,Fairfield Residential Ltd,321117,SOCIAL CARE SERVICES : Children : Residential Care,TRAFFORD RESIDENTIAL,CFW,EXT RES CARE FEES,CAN- L.T. RES SCHOOL,"10,759.00"
08.12.2014,7500167011,1,141963,The Bridgewater Canal,391300,WORKS - CONSTRUCTION : Open Spaces,Bridgewater Way Phas,EGEI,A&M PAY TO CONTRACTO,Capital Schemes,"11,924.00"
08.12.2014,7500167011,2,141963,The Bridgewater Canal,391300,WORKS - CONSTRUCTION : Open Spaces,Bridgewater Way Phas,EGEI,A&M PAY TO CONTRACTO,Capital Schemes,"178,754.62"
08.12.2014,7500167011,3,141963,The Bridgewater Canal,391300,WORKS - CONSTRUCTION : Open Spaces,Bridgewater Way Phas,EGEI,A&M PAY TO CONTRACTO,Capital Schemes,"8,133.00"
08.12.2014,7500167011,4,141963,The Bridgewater Canal,391300,WORKS - CONSTRUCTION : Open Spaces,Bridgewater Way Phas,EGEI,A&M PAY TO CONTRACTO,Capital Schemes,"132,906.50"
08.12.2014,7500167011,5,141963,The Bridgewater Canal,391300,WORKS - CONSTRUCTION : Open Spaces,Bridgewater Way Phas,EGEI,A&M PAY TO CONTRACTO,Capital Schemes,"130,540.53"
08.12.2014,7500167011,6,141963,The Bridgewater Canal,391300,WORKS - CONSTRUCTION : Open Spaces,Bridgewater Way Phas,EGEI,A&M PAY TO CONTRACTO,Capital Schemes,"23,376.95"
08.12.2014,7500167015,1,129754,Groundwork Landscapes Ltd,391310,WORKS - CONSTRUCTION : Open Spaces : Construction,Sylvan Avenue Play A,EGEI,LANDSCAPING WORKS,Capital Schemes,"45,322.75"
08.12.2014,7500167016,1,153491,Community Change Trust,171011,EDUCATION : Services : Children,HOIF Mediation Train,T & R ,CONTRIB EXT PROJECTS,ABG SSC,"7,500.00"
08.12.2014,7500167016,2,153491,Community Change Trust,171011,EDUCATION : Services : Children,HOIF Mediation Train,T & R ,CONTRIB EXT PROJECTS,ABG SSC,"7,500.00"
08.12.2014,7500167030,1,150874,Macintyre Care,171011,EDUCATION : Services : Children,Q2 Brokerage Payment,CFW,ASSISTANCE TO PUPILS,PERSONALISATION INFR,"7,842.58"
08.12.2014,7500167037,1,136048,F R SHARROCK LTD,241500,HORTICULTURAL : Tools & Equipment,Sharrocks Invoice De,EGEI,SERV & REP MOWERS,Groundforce DSO Nth,"25,318.59"
08.12.2014,7500167047,1,151990,IT Works Recruitment Ltd,261400,HR : Temporary & Agency Staff,Redacted Personal Data,T & R ,AGENCY PAY - COMENS,HR Shared Services,"10,000.00"
08.12.2014,7500167050,1,138894,Zurich Insurance Company,201800,FINANCIAL SERVICES : Insurance,LA Comb Policy,T & R ,ZM PREMIUMS (CORP),PUBLIC LIABILITY,"7,221.52"
09.12.2014,7500167054,1,134900,Trafford Housing Trust,321311,SOCIAL CARE SERVICES : Supplies : Equipment,Trafford Houisng Tru,T & R ,FURNITURE PURCHASE,FI:LOCAL WELF ASS,"7,341.08"
09.12.2014,7500167059,1,134900,Trafford Housing Trust,321311,SOCIAL CARE SERVICES : Supplies : Equipment,Rainbow Trust- Nov k,T & R ,FURNITURE PURCHASE,FI:LOCAL WELF ASS,"10,349.42"
09.12.2014,7500167063,1,140872,Acorn Treatment & Housing,311600,MEDICAL : Services,Acorn Treatment re c,T & R ,EXT RES CARE FEES,ADULT RES REHAB,"2,121.43"
09.12.2014,7500167063,1,140872,Acorn Treatment & Housing,311600,MEDICAL : Services,Acorn Treatment re c,T & R ,EXT RES CARE FEES,ADULT RES REHAB,"2,121.43"
09.12.2014,7500167063,2,140872,Acorn Treatment & Housing,311600,MEDICAL : Services,Acorn Treatment re c,T & R ,EXT RES CARE FEES,ADULT RES REHAB,"2,192.14"
09.12.2014,7500167063,3,140872,Acorn Treatment & Housing,311600,MEDICAL : Services,Acorn Treatment re c,T & R ,EXT RES CARE FEES,ADULT RES REHAB,848.57
09.12.2014,7500167065,1,134900,Trafford Housing Trust,321311,SOCIAL CARE SERVICES : Supplies : Equipment,THT Rainbow Trust Se,T & R ,FURNITURE PURCHASE,FI:LOCAL WELF ASS,"9,052.54"
09.12.2014,7500167104,1,137557,Stockport MBC (Contributions),261500,HR : Training & Conferences,Redacted Personal Data,CFW,CONFERENCE EXP OFF,MES,750.00
09.12.2014,7500167104,2,137557,Stockport MBC (Contributions),261500,HR : Training & Conferences,Redacted Personal Data,CFW,CONFERENCE EXP OFF,NEXUS EDUCATION CENT,750.00
09.12.2014,7500167104,3,137557,Stockport MBC (Contributions),261500,HR : Training & Conferences,Redacted Personal Data,CFW,CONFERENCE EXP OFF,MES,"11,000.00"
09.12.2014,7500167104,4,137557,Stockport MBC (Contributions),261500,HR : Training & Conferences,Redacted Personal Data,CFW,CONFERENCE EXP OFF,NEXUS EDUCATION CENT,"11,000.00"
09.12.2014,7500167168,1,145829,The Human Support Group Ltd,321000,SOCIAL CARE SERVICES : Adult,TR112 Reable w.e. 16,CFW,OTH AGENCY CONT SERV,ENHANCED RR,"5,944.00"
09.12.2014,7500167168,2,145829,The Human Support Group Ltd,321000,SOCIAL CARE SERVICES : Adult,TR113 Reable w.e. 23,CFW,OTH AGENCY CONT SERV,ENHANCED RR,"5,944.00"
09.12.2014,7500167168,3,145829,The Human Support Group Ltd,321000,SOCIAL CARE SERVICES : Adult,TR114 Reable w.e. 30,CFW,OTH AGENCY CONT SERV,ENHANCED RR,"5,944.00"
09.12.2014,7500167168,4,145829,The Human Support Group Ltd,321000,SOCIAL CARE SERVICES : Adult,TR115 Reable w.e. 07,CFW,OTH AGENCY CONT SERV,ENHANCED RR,"5,944.00"
09.12.2014,7500167168,5,145829,The Human Support Group Ltd,321000,SOCIAL CARE SERVICES : Adult,TR116 Reable w.e. 14,CFW,OTH AGENCY CONT SERV,ENHANCED RR,"5,944.00"
09.12.2014,7500167168,6,145829,The Human Support Group Ltd,321000,SOCIAL CARE SERVICES : Adult,TR117 Reable w.e. 21,CFW,OTH AGENCY CONT SERV,ENHANCED RR,"5,944.00"
09.12.2014,7500167168,7,145829,The Human Support Group Ltd,321000,SOCIAL CARE SERVICES : Adult,TR118 Reable w.e. 28,CFW,OTH AGENCY CONT SERV,ENHANCED RR,"5,944.00"
09.12.2014,7500167168,8,145829,The Human Support Group Ltd,321000,SOCIAL CARE SERVICES : Adult,TR119 Reable w.e. 04,CFW,OTH AGENCY CONT SERV,ENHANCED RR,"5,944.00"
10.12.2014,7500167207,1,142249,Pennine Care NHS Trust,311600,MEDICAL : Services,Redacted Personal Data,CFW,EQUIPMENT - PURCHASE,ONE STOP RES CENTRE,"30,761.00"
10.12.2014,7500167233,1,125038,LES HALMAN NURSERIES LTD,241100,HORTICULTURAL : Seeds & Plants,Supply Bedding plant,EGEI,Bedding Plants,Groundforce DSO Nth,"13,000.00"
11.12.2014,7500167310,1,139244,Direct Cars Manchester Ltd,361300,TRANSPORT : Passenger Transport,Direct - Run 687 Pic,CFW,CONT HIRE HOME TO SC,Home to School Tr,"7,112.00"
11.12.2014,7500167322,1,139382,Serengeti Systems Limited,271600,ICT : Software,Serengeti Annual Sup,EGEI,SOFTWARE (LEARNING R,PB:Planning Control,"11,141.00"
15.12.2014,7500167374,1,151306,EE Ltd T/A Orange EE (Airtime),271800,ICT : Telecommunications - Mobile,Dec Mobile Data  Cha,T & R ,MOBILE COMMUNICATION,EG:IT EQUIPMENT,668.10
15.12.2014,7500167374,2,151306,EE Ltd T/A Orange EE (Airtime),271800,ICT : Telecommunications - Mobile,Dec Mobile Data Char,T & R ,MOBILE COMMUNICATION,EG:IT EQUIPMENT,362.50
15.12.2014,7500167374,3,151306,EE Ltd T/A Orange EE (Airtime),271800,ICT : Telecommunications - Mobile,Dec Mobile Data Char,T & R ,MOBILE COMMUNICATION,EG:IT EQUIPMENT,914.54
15.12.2014,7500167374,4,151306,EE Ltd T/A Orange EE (Airtime),271800,ICT : Telecommunications - Mobile,Dec Mobile Data Char,T & R ,MOBILE COMMUNICATION,EG:IT EQUIPMENT,554.18
15.12.2014,7500167374,5,151306,EE Ltd T/A Orange EE (Airtime),271800,ICT : Telecommunications - Mobile,Dec Mobile Charges (,T & R ,MOBILE COMMUNICATION,EG:IT EQUIPMENT,"8,785.53"
15.12.2014,7500167374,6,151306,EE Ltd T/A Orange EE (Airtime),271800,ICT : Telecommunications - Mobile,Dec Mobile Charges (,T & R ,MOBILE COMMUNICATION,EG:IT EQUIPMENT,529.84
15.12.2014,7500167465,1,141594,GatenbySanderson Limited,261300,HR : Recruitment & Assessment,Redacted Personal Data,CFW,AGENCY PAY - COMENS,DIR OF COMMISSIONING,"13,725.00"
15.12.2014,7500167467,1,141189,Grant Thornton Uk LLP,201100,FINANCIAL SERVICES : Audit,External Audit-2,T & R ,EXTERNAL AUDIT FEES,FI:EXTERNAL AUDIT FEES,"39,029.75"
15.12.2014,7500167467,2,141189,Grant Thornton Uk LLP,201100,FINANCIAL SERVICES : Audit,NDR Work,T & R ,EXTERNAL AUDIT FEES,FI:EXTERNAL AUDIT FEES,"1,470.00"
16.12.2014,7500167499,1,142480,Crossford Bridge Management Assoc,291200,LEISURE SERVICES : Outsourced Service,Management of facili,T & R ,SP CONTRACT PAYMENTS,LP:CROSSFORD BRIDGE-,"5,734.44"
16.12.2014,7500167531,1,139610,Tarmac Limited,231100,HIGHWAY EQUIPT&MATLS : Bitumen & Surface Dressing,Wood Ln 4 Partington,EGEI,Inf - Main Works Con,Capital Schemes,"44,991.00"
16.12.2014,7500167544,1,138788,Trafford Athletic Club,291400,LEISURE SERVICES : Sport & Fitness,Management - Longfor,T & R ,SP CONTRACT PAYMENTS,LP:LONGFORD PK STADIUM,"10,110.90"
16.12.2014,7500167561,1,133455,Trafford Community Leisure Trust,291400,LEISURE SERVICES : Sport & Fitness,Pitches & Pavillions,T & R ,EXT GR MAINT CONT WK,LP:LEISURE MANAGEMENT,"4,916.66"
16.12.2014,7500167561,2,133455,Trafford Community Leisure Trust,291400,LEISURE SERVICES : Sport & Fitness,Pitches & Pavillions,T & R ,EXT GR MAINT CONT WK,LP:LEISURE MANAGEMENT,"4,916.66"
16.12.2014,7500167563,1,137076,UNIVERSITY OF SALFORD,171010,EDUCATION : Services : Adult & Further Education,ASYE programme 2015,T & R ,PROFESSIONAL TRAININ,Training & Dev CFW,"5,950.00"
17.12.2014,7500167590,1,139394,YouBus Ltd,361300,TRANSPORT : Passenger Transport,YouBus - Run 706 Bre,CFW,CONT HIRE HOME TO SC,Home to School Tr,"14,040.00"
17.12.2014,7500167610,1,139070,Seashell Trust Ltd,171011,EDUCATION : Services : Children,Redacted Personal Data,CFW,NON MAINT SCH FEES,Post 16 - Element 3,"12,590.89"
17.12.2014,7500167610,2,139070,Seashell Trust Ltd,171011,EDUCATION : Services : Children,Redacted Personal Data,CFW,NON MAINT SCH FEES,Post 16 - Element 3,"9,358.49"
17.12.2014,7500167610,3,139070,Seashell Trust Ltd,171011,EDUCATION : Services : Children,Redacted Personal Data,CFW,NON MAINT SCH FEES,Post 16 - Element 3,"10,032.48"
17.12.2014,7500167618,1,150881,NHS Trafford CCG,311600,MEDICAL : Services,Caring for Carers Qt,CFW,CONTRIB EXT PROJECTS,CARING FOR CARERS,"21,885.50"
17.12.2014,7500167621,1,146059,Go Plant T/A Shropsh Roadsweepers,381300,VEHICLES : Industrial,Vehicle Hire - TTP 5,EGEI,EXT VEH & PLANT HIR,EN:TM TIPPERS 7.5-16,300.00
17.12.2014,7500167621,2,146059,Go Plant T/A Shropsh Roadsweepers,381300,VEHICLES : Industrial,Vehicle Hire - TTP 5,EGEI,EXT VEH & PLANT HIR,EN:TM TIPPERS 7.5-16,"5,750.00"
17.12.2014,7500167637,1,152364,Aon UK Limited,201800,FINANCIAL SERVICES : Insurance,Broker Fee,T & R ,ZM PREMIUMS (CORP),INSURANCE ADMIN.,"7,500.00"
17.12.2014,7500167638,1,152364,Aon UK Limited,201800,FINANCIAL SERVICES : Insurance,Acturial Investigati,T & R ,ZM PREMIUMS (CORP),PUBLIC LIABILITY,"8,500.00"
17.12.2014,7500167660,1,141563,Phonak Uk Ltd,321311,SOCIAL CARE SERVICES : Supplies : Equipment,Redacted Personal Data,CFW,CLIENTS AIDS,SENSORY IMPAIRMEN,"1,692.00"
17.12.2014,7500167660,2,141563,Phonak Uk Ltd,321311,SOCIAL CARE SERVICES : Supplies : Equipment,Redacted Personal Data,CFW,CLIENTS AIDS,NQT/ICS,0.00
17.12.2014,7500167660,2,141563,Phonak Uk Ltd,321311,SOCIAL CARE SERVICES : Supplies : Equipment,Redacted Personal Data,CFW,CLIENTS AIDS,SENSORY IMPAIRMEN,"1,620.00"
17.12.2014,7500167660,3,141563,Phonak Uk Ltd,321311,SOCIAL CARE SERVICES : Supplies : Equipment,Redacted Personal Data,CFW,CLIENTS AIDS,SENSORY IMPAIRMEN,"1,242.00"
17.12.2014,7500167660,4,141563,Phonak Uk Ltd,321311,SOCIAL CARE SERVICES : Supplies : Equipment,Redacted Personal Data,CFW,CLIENTS AIDS,SENSORY IMPAIRMEN,828.00
17.12.2014,7500167660,5,141563,Phonak Uk Ltd,321311,SOCIAL CARE SERVICES : Supplies : Equipment,Redacted Personal Data,CFW,CLIENTS AIDS,NQT/ICS,0.00
17.12.2014,7500167660,5,141563,Phonak Uk Ltd,321311,SOCIAL CARE SERVICES : Supplies : Equipment,Redacted Personal Data,CFW,CLIENTS AIDS,SENSORY IMPAIRMEN,414.00
17.12.2014,7500167667,1,139523,Liquidlogic Ltd,271600,ICT : Software,LAS annual suport &,CFW,EXT PROJECT MAN,Capital Schemes,"49,030.00"
18.12.2014,7500167668,1,141268,Greater Manchester West NHS,321000,SOCIAL CARE SERVICES : Adult,Crisis Team,CFW,PAYMENTS TO HA'S,CRISIS RESOLUTION,"310,242.00"
18.12.2014,7500167669,1,141268,Greater Manchester West NHS,321000,SOCIAL CARE SERVICES : Adult,Management Costs,CFW,PAYMENTS TO HA'S,SP:SERVICE MANAGER -,"85,854.00"
18.12.2014,7500167672,1,134900,Trafford Housing Trust,321000,SOCIAL CARE SERVICES : Adult,Telecare Pledge Nov,CFW,CAPITAL - PURCHASE OF FURNITURE & EQUIPMENT,Capital Schemes,"21,413.41"
18.12.2014,7500167716,1,139005,National Teaching & Adv Service Ltd,171100,EDUCATION : Supplies,NTAS August 14: 9817,CFW,CONT VOL BODIES,NTAS,897.50
18.12.2014,7500167716,2,139005,National Teaching & Adv Service Ltd,171100,EDUCATION : Supplies,NTAS September 14: 9,CFW,CONT VOL BODIES,NTAS,"40,129.75"
18.12.2014,7500167716,3,139005,National Teaching & Adv Service Ltd,171100,EDUCATION : Supplies,NTAS October 14: 981,CFW,CONT VOL BODIES,NTAS,"40,733.00"
18.12.2014,7500167738,1,152585,Footsteps a Path to Change 08 Ltd,321117,SOCIAL CARE SERVICES : Children : Residential Care,Redacted Personal Data,CFW,EXT RES CARE FEES,CHILDREN'S HOMES,"15,000.00"
18.12.2014,7500167738,2,152585,Footsteps a Path to Change 08 Ltd,321117,SOCIAL CARE SERVICES : Children : Residential Care,Redacted Personal Data,CFW,EXT RES CARE FEES,CHILDREN'S HOMES,"15,500.00"
18.12.2014,7500167744,1,141775,Wargrave House School,171011,EDUCATION : Services : Children,Redacted Personal Data,CFW,NON MAINT SCH FEES,OTHER L.E.A. & IN,"4,595.36"
18.12.2014,7500167744,2,141775,Wargrave House School,171011,EDUCATION : Services : Children,Redacted Personal Data,CFW,NON MAINT SCH FEES,OTHER L.E.A. & IN,"4,595.36"
18.12.2014,7500167744,3,141775,Wargrave House School,171011,EDUCATION : Services : Children,Redacted Personal Data,CFW,NON MAINT SCH FEES,OTHER L.E.A. & IN,"1,860.18"
18.12.2014,7500167751,1,142118,Rossendale School Priory,171011,EDUCATION : Services : Children,Redacted Personal Data,CFW,NON MAINT SCH FEES,OTHER L.E.A. & IN,"17,412.00"
18.12.2014,7500167762,1,129754,Groundwork Landscapes Ltd,391310,WORKS - CONSTRUCTION : Open Spaces : Construction,Longford Park Play A,EGEI,LANDSCAPING WORKS,Capital Schemes,"46,409.00"
18.12.2014,7500167763,1,129754,Groundwork Landscapes Ltd,391310,WORKS - CONSTRUCTION : Open Spaces : Construction,Davyhulme Park Play,EGEI,LANDSCAPING WORKS,Capital Schemes,"31,883.50"
19.12.2014,7500167783,1,143055,Kelway UK Ltd,271600,ICT : Software,2 x 1240b Fortigate,T & R ,IT MAINT SOFTWARE,EG:ICT SYSTEM SUPPT,"13,017.30"
19.12.2014,7500167785,1,133954,Urban Vision Partnership Ltd,152200,CONSULTANCY : Technical & Feasibility,URBAN VISION ENFORCE,EGEI,CONSULTANTS,PB:Planning Control,"30,000.00"
19.12.2014,7500167798,1,136171,The Together Trust,321117,SOCIAL CARE SERVICES : Children : Residential Care,Redacted Personal Data,CFW,EXT RES CARE FEES,CHILDREN'S HOMES,"10,174.50"
19.12.2014,7500167802,1,139595,AT Nolan Ltd,391113,WORKS - CONSTRUCTION : Buildings : Repair,Old Trafford Youth C,EGEI,EXTERNAL DAY-TO-DAY,CN:Bldg Serv Schemes,"38,583.14"
19.12.2014,7500167804,1,136908,HAWKESWORTH APPLIANCE TESTING LTD,271300,ICT : Maintenance,Wellfield Junior Sch,EGEI,EXTERNAL DAY-TO-DAY,CN:Bldg Serv Schemes,334.50
19.12.2014,7500167804,2,136908,HAWKESWORTH APPLIANCE TESTING LTD,271300,ICT : Maintenance,Worthington Primary,EGEI,EXTERNAL DAY-TO-DAY,CN:Bldg Serv Schemes,454.00
19.12.2014,7500167804,3,136908,HAWKESWORTH APPLIANCE TESTING LTD,271300,ICT : Maintenance,Firs Primary School,EGEI,EXTERNAL DAY-TO-DAY,CN:Bldg Serv Schemes,535.75
19.12.2014,7500167804,4,136908,HAWKESWORTH APPLIANCE TESTING LTD,271300,ICT : Maintenance,St Matthews Primary,EGEI,EXTERNAL DAY-TO-DAY,CN:Bldg Serv Schemes,325.00
19.12.2014,7500167804,5,136908,HAWKESWORTH APPLIANCE TESTING LTD,271300,ICT : Maintenance,Davyhulme Primary Sc,EGEI,EXTERNAL DAY-TO-DAY,CN:Bldg Serv Schemes,469.25
19.12.2014,7500167804,6,136908,HAWKESWORTH APPLIANCE TESTING LTD,271300,ICT : Maintenance,Wellgreen Primary Sc,EGEI,EXTERNAL DAY-TO-DAY,CN:Bldg Serv Schemes,341.25
19.12.2014,7500167804,7,136908,HAWKESWORTH APPLIANCE TESTING LTD,271300,ICT : Maintenance,St Teresas Primary S,EGEI,EXTERNAL DAY-TO-DAY,CN:Bldg Serv Schemes,347.25
19.12.2014,7500167804,8,136908,HAWKESWORTH APPLIANCE TESTING LTD,271300,ICT : Maintenance,St Michaels CE Prima,EGEI,EXTERNAL DAY-TO-DAY,CN:Bldg Serv Schemes,297.25
19.12.2014,7500167804,9,136908,HAWKESWORTH APPLIANCE TESTING LTD,271300,ICT : Maintenance,Partington Primary S,EGEI,EXTERNAL DAY-TO-DAY,CN:Bldg Serv Schemes,551.00
19.12.2014,7500167804,10,136908,HAWKESWORTH APPLIANCE TESTING LTD,271300,ICT : Maintenance,Urmston Junior Schoo,EGEI,EXTERNAL DAY-TO-DAY,CN:Bldg Serv Schemes,512.50
19.12.2014,7500167804,11,136908,HAWKESWORTH APPLIANCE TESTING LTD,271300,ICT : Maintenance,Victoria Park Junior,EGEI,EXTERNAL DAY-TO-DAY,CN:Bldg Serv Schemes,361.75
19.12.2014,7500167804,12,136908,HAWKESWORTH APPLIANCE TESTING LTD,271300,ICT : Maintenance,Broadeath Primary Sc,EGEI,EXTERNAL DAY-TO-DAY,CN:Bldg Serv Schemes,571.25
19.12.2014,7500167804,13,136908,HAWKESWORTH APPLIANCE TESTING LTD,271300,ICT : Maintenance,Old Trafford Communi,EGEI,EXTERNAL DAY-TO-DAY,CN:Bldg Serv Schemes,517.25
19.12.2014,7500167804,14,136908,HAWKESWORTH APPLIANCE TESTING LTD,271300,ICT : Maintenance,Navigation Primary S,EGEI,EXTERNAL DAY-TO-DAY,CN:Bldg Serv Schemes,616.00
19.12.2014,7500167804,15,136908,HAWKESWORTH APPLIANCE TESTING LTD,271300,ICT : Maintenance,St Margaret Ward Pri,EGEI,EXTERNAL DAY-TO-DAY,CN:Bldg Serv Schemes,483.00
19.12.2014,7500167804,16,136908,HAWKESWORTH APPLIANCE TESTING LTD,271300,ICT : Maintenance,Cherry Manor Junior,EGEI,EXTERNAL DAY-TO-DAY,CN:Bldg Serv Schemes,575.50
19.12.2014,7500167804,17,136908,HAWKESWORTH APPLIANCE TESTING LTD,271300,ICT : Maintenance,St Vincents Primary,EGEI,EXTERNAL DAY-TO-DAY,CN:Bldg Serv Schemes,779.25
19.12.2014,7500167810,1,152585,Footsteps a Path to Change 08 Ltd,321117,SOCIAL CARE SERVICES : Children : Residential Care,Redacted Personal Data,CFW,EXT RES CARE FEES,CHILDREN'S HOMES,"15,500.00"
21.12.2014,7500167823,1,106560,Bethell Construction Ltd,391111,WORKS - CONSTRUCTION : Buildings : Maintenance,"Br No 165, Woodlands",EGEI,A&M PAY TO CONTRACTO,Capital Schemes,"200,000.00"
22.12.2014,7500167828,1,152510,Lets Connect IT Solutions Ltd,271200,ICT : Hardware,Lets Connect,T & R ,S Sacrifice Cash Adv,Home Techhology,"23,404.50"
22.12.2014,7500167833,1,153150,Enterprise (AOL) Ltd,231400,HIGHWAY EQUIPMENT & MATERIALS : Street Lighting,Street Lighting Work,EGEI,ELECT - STREET LIGHT,EN:WORKS MGT- ST LIG,"1,315.00"
22.12.2014,7500167833,2,153150,Enterprise (AOL) Ltd,231400,HIGHWAY EQUIPMENT & MATERIALS : Street Lighting,Street Lighting Work,EGEI,ELECT - STREET LIGHT,EN:WORKS MGT- ST LIG,192.50
22.12.2014,7500167833,3,153150,Enterprise (AOL) Ltd,231400,HIGHWAY EQUIPMENT & MATERIALS : Street Lighting,Street Lighting Work,EGEI,ELECT - STREET LIGHT,EN:WORKS MGT- ST LIG,372.50
22.12.2014,7500167833,4,153150,Enterprise (AOL) Ltd,231400,HIGHWAY EQUIPMENT & MATERIALS : Street Lighting,Street Lighting Work,EGEI,ELECT - STREET LIGHT,EN:WORKS MGT- ST LIG,29.50
22.12.2014,7500167833,5,153150,Enterprise (AOL) Ltd,231400,HIGHWAY EQUIPMENT & MATERIALS : Street Lighting,Street Lighting Work,EGEI,ELECT - STREET LIGHT,EN:WORKS MGT- ST LIG,204.00
22.12.2014,7500167833,6,153150,Enterprise (AOL) Ltd,231400,HIGHWAY EQUIPMENT & MATERIALS : Street Lighting,Street Lighting Work,EGEI,ELECT - STREET LIGHT,EN:WORKS MGT- ST LIG,118.50
22.12.2014,7500167833,7,153150,Enterprise (AOL) Ltd,231400,HIGHWAY EQUIPMENT & MATERIALS : Street Lighting,Street Lighting Work,EGEI,ELECT - STREET LIGHT,EN:WORKS MGT- ST LIG,154.00
22.12.2014,7500167833,8,153150,Enterprise (AOL) Ltd,231400,HIGHWAY EQUIPMENT & MATERIALS : Street Lighting,Street Lighting Work,EGEI,ELECT - STREET LIGHT,EN:WORKS MGT- ST LIG,373.50
22.12.2014,7500167833,9,153150,Enterprise (AOL) Ltd,231400,HIGHWAY EQUIPMENT & MATERIALS : Street Lighting,Street Lighting Work,EGEI,ELECT - STREET LIGHT,EN:WORKS MGT- ST LIG,525.69
22.12.2014,7500167833,10,153150,Enterprise (AOL) Ltd,231400,HIGHWAY EQUIPMENT & MATERIALS : Street Lighting,Street Lighting Work,EGEI,ELECT - STREET LIGHT,EN:WORKS MGT- ST LIG,240.75
22.12.2014,7500167833,11,153150,Enterprise (AOL) Ltd,231400,HIGHWAY EQUIPMENT & MATERIALS : Street Lighting,Street Lighting Work,EGEI,ELECT - STREET LIGHT,EN:WORKS MGT- ST LIG,266.00
22.12.2014,7500167833,12,153150,Enterprise (AOL) Ltd,231400,HIGHWAY EQUIPMENT & MATERIALS : Street Lighting,Street Lighting Work,EGEI,ELECT - STREET LIGHT,EN:WORKS MGT- ST LIG,764.50
22.12.2014,7500167833,13,153150,Enterprise (AOL) Ltd,231400,HIGHWAY EQUIPMENT & MATERIALS : Street Lighting,Street Lighting Work,EGEI,ELECT - STREET LIGHT,EN:WORKS MGT- ST LIG,43.00
22.12.2014,7500167833,14,153150,Enterprise (AOL) Ltd,231400,HIGHWAY EQUIPMENT & MATERIALS : Street Lighting,Street Lighting Work,EGEI,ELECT - STREET LIGHT,EN:WORKS MGT- ST LIG,384.00
22.12.2014,7500167833,15,153150,Enterprise (AOL) Ltd,231400,HIGHWAY EQUIPMENT & MATERIALS : Street Lighting,Street Lighting Work,EGEI,ELECT - STREET LIGHT,EN:WORKS MGT- ST LIG,25.00
22.12.2014,7500167833,16,153150,Enterprise (AOL) Ltd,231400,HIGHWAY EQUIPMENT & MATERIALS : Street Lighting,Street Lighting Work,EGEI,ELECT - STREET LIGHT,EN:WORKS MGT- ST LIG,52.00
22.12.2014,7500167833,17,153150,Enterprise (AOL) Ltd,231400,HIGHWAY EQUIPMENT & MATERIALS : Street Lighting,Street Lighting Work,EGEI,ELECT - STREET LIGHT,EN:WORKS MGT- ST LIG,266.00
22.12.2014,7500167833,18,153150,Enterprise (AOL) Ltd,231400,HIGHWAY EQUIPMENT & MATERIALS : Street Lighting,Street Lighting Work,EGEI,ELECT - STREET LIGHT,EN:WORKS MGT- ST LIG,41.00
22.12.2014,7500167833,19,153150,Enterprise (AOL) Ltd,231400,HIGHWAY EQUIPMENT & MATERIALS : Street Lighting,Street Lighting Work,EGEI,ELECT - STREET LIGHT,EN:WORKS MGT- ST LIG,34.00
22.12.2014,7500167833,20,153150,Enterprise (AOL) Ltd,231400,HIGHWAY EQUIPMENT & MATERIALS : Street Lighting,Street Lighting Work,EGEI,ELECT - STREET LIGHT,EN:WORKS MGT- ST LIG,62.00
22.12.2014,7500167833,21,153150,Enterprise (AOL) Ltd,231400,HIGHWAY EQUIPMENT & MATERIALS : Street Lighting,Street Lighting Work,EGEI,ELECT - STREET LIGHT,EN:WORKS MGT- ST LIG,143.00
22.12.2014,7500167833,22,153150,Enterprise (AOL) Ltd,231400,HIGHWAY EQUIPMENT & MATERIALS : Street Lighting,Street Lighting Work,EGEI,ELECT - STREET LIGHT,EN:WORKS MGT- ST LIG,425.00
22.12.2014,7500167833,23,153150,Enterprise (AOL) Ltd,231400,HIGHWAY EQUIPMENT & MATERIALS : Street Lighting,Street Lighting Work,EGEI,ELECT - STREET LIGHT,EN:WORKS MGT- ST LIG,62.00
22.12.2014,7500167833,24,153150,Enterprise (AOL) Ltd,231400,HIGHWAY EQUIPMENT & MATERIALS : Street Lighting,Street Lighting Work,EGEI,ELECT - STREET LIGHT,EN:WORKS MGT- ST LIG,220.50
22.12.2014,7500167833,25,153150,Enterprise (AOL) Ltd,231400,HIGHWAY EQUIPMENT & MATERIALS : Street Lighting,Street Lighting Work,EGEI,ELECT - STREET LIGHT,EN:WORKS MGT- ST LIG,121.00
22.12.2014,7500167833,26,153150,Enterprise (AOL) Ltd,231400,HIGHWAY EQUIPMENT & MATERIALS : Street Lighting,Street Lighting Work,EGEI,ELECT - STREET LIGHT,EN:WORKS MGT- ST LIG,284.00
22.12.2014,7500167833,27,153150,Enterprise (AOL) Ltd,231400,HIGHWAY EQUIPMENT & MATERIALS : Street Lighting,Street Lighting Work,EGEI,ELECT - STREET LIGHT,EN:WORKS MGT- ST LIG,34.00
22.12.2014,7500167833,28,153150,Enterprise (AOL) Ltd,231400,HIGHWAY EQUIPMENT & MATERIALS : Street Lighting,Street Lighting Work,EGEI,ELECT - STREET LIGHT,EN:WORKS MGT- ST LIG,90.00
22.12.2014,7500167833,29,153150,Enterprise (AOL) Ltd,231400,HIGHWAY EQUIPMENT & MATERIALS : Street Lighting,Street Lighting Work,EGEI,ELECT - STREET LIGHT,EN:WORKS MGT- ST LIG,420.50
22.12.2014,7500167833,30,153150,Enterprise (AOL) Ltd,231400,HIGHWAY EQUIPMENT & MATERIALS : Street Lighting,Street Lighting Work,EGEI,ELECT - STREET LIGHT,EN:WORKS MGT- ST LIG,320.00
22.12.2014,7500167833,31,153150,Enterprise (AOL) Ltd,231400,HIGHWAY EQUIPMENT & MATERIALS : Street Lighting,Street Lighting Work,EGEI,ELECT - STREET LIGHT,EN:WORKS MGT- ST LIG,52.50
22.12.2014,7500167833,32,153150,Enterprise (AOL) Ltd,231400,HIGHWAY EQUIPMENT & MATERIALS : Street Lighting,Street Lighting Work,EGEI,ELECT - STREET LIGHT,EN:WORKS MGT- ST LIG,201.50
22.12.2014,7500167833,33,153150,Enterprise (AOL) Ltd,231400,HIGHWAY EQUIPMENT & MATERIALS : Street Lighting,Street Lighting Work,EGEI,ELECT - STREET LIGHT,EN:WORKS MGT- ST LIG,201.50
22.12.2014,7500167833,34,153150,Enterprise (AOL) Ltd,231400,HIGHWAY EQUIPMENT & MATERIALS : Street Lighting,Street Lighting Work,EGEI,ELECT - STREET LIGHT,EN:WORKS MGT- ST LIG,91.50
22.12.2014,7500167833,35,153150,Enterprise (AOL) Ltd,231400,HIGHWAY EQUIPMENT & MATERIALS : Street Lighting,Street Lighting Work,EGEI,ELECT - STREET LIGHT,EN:WORKS MGT- ST LIG,52.50
22.12.2014,7500167833,36,153150,Enterprise (AOL) Ltd,231400,HIGHWAY EQUIPMENT & MATERIALS : Street Lighting,Street Lighting Work,EGEI,ELECT - STREET LIGHT,EN:WORKS MGT- ST LIG,315.00
22.12.2014,7500167833,37,153150,Enterprise (AOL) Ltd,231400,HIGHWAY EQUIPMENT & MATERIALS : Street Lighting,Street Lighting Work,EGEI,ELECT - STREET LIGHT,EN:WORKS MGT- ST LIG,157.50
22.12.2014,7500167833,38,153150,Enterprise (AOL) Ltd,231400,HIGHWAY EQUIPMENT & MATERIALS : Street Lighting,Street Lighting Work,EGEI,ELECT - STREET LIGHT,EN:WORKS MGT- ST LIG,210.00
22.12.2014,7500167833,39,153150,Enterprise (AOL) Ltd,231400,HIGHWAY EQUIPMENT & MATERIALS : Street Lighting,Street Lighting Work,EGEI,ELECT - STREET LIGHT,EN:WORKS MGT- ST LIG,52.50
22.12.2014,7500167833,40,153150,Enterprise (AOL) Ltd,231400,HIGHWAY EQUIPMENT & MATERIALS : Street Lighting,Street Lighting Work,EGEI,ELECT - STREET LIGHT,EN:WORKS MGT- ST LIG,315.00
22.12.2014,7500167833,41,153150,Enterprise (AOL) Ltd,231400,HIGHWAY EQUIPMENT & MATERIALS : Street Lighting,Street Lighting Work,EGEI,ELECT - STREET LIGHT,EN:WORKS MGT- ST LIG,44.00
22.12.2014,7500167833,42,153150,Enterprise (AOL) Ltd,231400,HIGHWAY EQUIPMENT & MATERIALS : Street Lighting,Street Lighting Work,EGEI,ELECT - STREET LIGHT,EN:WORKS MGT- ST LIG,108.00
22.12.2014,7500167833,43,153150,Enterprise (AOL) Ltd,231400,HIGHWAY EQUIPMENT & MATERIALS : Street Lighting,Street Lighting Work,EGEI,ELECT - STREET LIGHT,EN:WORKS MGT- ST LIG,160.00
22.12.2014,7500167833,44,153150,Enterprise (AOL) Ltd,231400,HIGHWAY EQUIPMENT & MATERIALS : Street Lighting,Street Lighting Work,EGEI,ELECT - STREET LIGHT,EN:WORKS MGT- ST LIG,52.50
22.12.2014,7500167833,45,153150,Enterprise (AOL) Ltd,231400,HIGHWAY EQUIPMENT & MATERIALS : Street Lighting,Street Lighting Work,EGEI,ELECT - STREET LIGHT,EN:WORKS MGT- ST LIG,469.00
22.12.2014,7500167833,46,153150,Enterprise (AOL) Ltd,231400,HIGHWAY EQUIPMENT & MATERIALS : Street Lighting,Street Lighting Work,EGEI,ELECT - STREET LIGHT,EN:WORKS MGT- ST LIG,85.00
22.12.2014,7500167833,47,153150,Enterprise (AOL) Ltd,231400,HIGHWAY EQUIPMENT & MATERIALS : Street Lighting,Street Lighting Work,EGEI,ELECT - STREET LIGHT,EN:WORKS MGT- ST LIG,91.50
22.12.2014,7500167833,48,153150,Enterprise (AOL) Ltd,231400,HIGHWAY EQUIPMENT & MATERIALS : Street Lighting,Street Lighting Work,EGEI,ELECT - STREET LIGHT,EN:WORKS MGT- ST LIG,59.00
22.12.2014,7500167833,49,153150,Enterprise (AOL) Ltd,231400,HIGHWAY EQUIPMENT & MATERIALS : Street Lighting,Street Lighting Work,EGEI,ELECT - STREET LIGHT,EN:WORKS MGT- ST LIG,113.50
22.12.2014,7500167833,50,153150,Enterprise (AOL) Ltd,231400,HIGHWAY EQUIPMENT & MATERIALS : Street Lighting,Street Lighting Work,EGEI,ELECT - STREET LIGHT,EN:WORKS MGT- ST LIG,95.00
22.12.2014,7500167833,51,153150,Enterprise (AOL) Ltd,231400,HIGHWAY EQUIPMENT & MATERIALS : Street Lighting,Street Lighting Work,EGEI,ELECT - STREET LIGHT,EN:WORKS MGT- ST LIG,59.50
22.12.2014,7500167833,52,153150,Enterprise (AOL) Ltd,231400,HIGHWAY EQUIPMENT & MATERIALS : Street Lighting,Street Lighting Work,EGEI,ELECT - STREET LIGHT,EN:WORKS MGT- ST LIG,96.00
22.12.2014,7500167833,53,153150,Enterprise (AOL) Ltd,231400,HIGHWAY EQUIPMENT & MATERIALS : Street Lighting,Street Lighting Work,EGEI,ELECT - STREET LIGHT,EN:WORKS MGT- ST LIG,572.50
22.12.2014,7500167833,54,153150,Enterprise (AOL) Ltd,231400,HIGHWAY EQUIPMENT & MATERIALS : Street Lighting,Street Lighting Work,EGEI,ELECT - STREET LIGHT,EN:WORKS MGT- ST LIG,387.00
22.12.2014,7500167833,55,153150,Enterprise (AOL) Ltd,231400,HIGHWAY EQUIPMENT & MATERIALS : Street Lighting,Street Lighting Work,EGEI,ELECT - STREET LIGHT,EN:WORKS MGT- ST LIG,201.50
22.12.2014,7500167833,56,153150,Enterprise (AOL) Ltd,231400,HIGHWAY EQUIPMENT & MATERIALS : Street Lighting,Street Lighting Work,EGEI,ELECT - STREET LIGHT,EN:WORKS MGT- ST LIG,40.00
22.12.2014,7500167833,57,153150,Enterprise (AOL) Ltd,231400,HIGHWAY EQUIPMENT & MATERIALS : Street Lighting,Street Lighting Work,EGEI,ELECT - STREET LIGHT,EN:WORKS MGT- ST LIG,120.00
22.12.2014,7500167833,58,153150,Enterprise (AOL) Ltd,231400,HIGHWAY EQUIPMENT & MATERIALS : Street Lighting,Street Lighting Work,EGEI,ELECT - STREET LIGHT,EN:WORKS MGT- ST LIG,71.00
22.12.2014,7500167833,59,153150,Enterprise (AOL) Ltd,231400,HIGHWAY EQUIPMENT & MATERIALS : Street Lighting,Street Lighting Work,EGEI,ELECT - STREET LIGHT,EN:WORKS MGT- ST LIG,34.00
22.12.2014,7500167833,60,153150,Enterprise (AOL) Ltd,231400,HIGHWAY EQUIPMENT & MATERIALS : Street Lighting,Street Lighting Work,EGEI,ELECT - STREET LIGHT,EN:WORKS MGT- ST LIG,62.00
22.12.2014,7500167833,61,153150,Enterprise (AOL) Ltd,231400,HIGHWAY EQUIPMENT & MATERIALS : Street Lighting,Street Lighting Work,EGEI,ELECT - STREET LIGHT,EN:WORKS MGT- ST LIG,59.50
22.12.2014,7500167833,62,153150,Enterprise (AOL) Ltd,231400,HIGHWAY EQUIPMENT & MATERIALS : Street Lighting,Street Lighting Work,EGEI,ELECT - STREET LIGHT,EN:WORKS MGT- ST LIG,195.00
22.12.2014,7500167833,63,153150,Enterprise (AOL) Ltd,231400,HIGHWAY EQUIPMENT & MATERIALS : Street Lighting,Street Lighting Work,EGEI,ELECT - STREET LIGHT,EN:WORKS MGT- ST LIG,40.00
22.12.2014,7500167833,64,153150,Enterprise (AOL) Ltd,231400,HIGHWAY EQUIPMENT & MATERIALS : Street Lighting,Street Lighting Work,EGEI,ELECT - STREET LIGHT,EN:WORKS MGT- ST LIG,32.00
22.12.2014,7500167833,65,153150,Enterprise (AOL) Ltd,231400,HIGHWAY EQUIPMENT & MATERIALS : Street Lighting,Street Lighting Work,EGEI,ELECT - STREET LIGHT,EN:WORKS MGT- ST LIG,59.00
22.12.2014,7500167833,66,153150,Enterprise (AOL) Ltd,231400,HIGHWAY EQUIPMENT & MATERIALS : Street Lighting,Street Lighting Work,EGEI,ELECT - STREET LIGHT,EN:WORKS MGT- ST LIG,86.50
22.12.2014,7500167833,67,153150,Enterprise (AOL) Ltd,231400,HIGHWAY EQUIPMENT & MATERIALS : Street Lighting,Street Lighting Work,EGEI,ELECT - STREET LIGHT,EN:WORKS MGT- ST LIG,40.00
22.12.2014,7500167833,68,153150,Enterprise (AOL) Ltd,231400,HIGHWAY EQUIPMENT & MATERIALS : Street Lighting,Street Lighting Work,EGEI,ELECT - STREET LIGHT,EN:WORKS MGT- ST LIG,32.00
22.12.2014,7500167833,69,153150,Enterprise (AOL) Ltd,231400,HIGHWAY EQUIPMENT & MATERIALS : Street Lighting,Street Lighting Work,EGEI,ELECT - STREET LIGHT,EN:WORKS MGT- ST LIG,83.25
22.12.2014,7500167833,70,153150,Enterprise (AOL) Ltd,231400,HIGHWAY EQUIPMENT & MATERIALS : Street Lighting,Street Lighting Work,EGEI,ELECT - STREET LIGHT,EN:WORKS MGT- ST LIG,106.00
22.12.2014,7500167833,71,153150,Enterprise (AOL) Ltd,231400,HIGHWAY EQUIPMENT & MATERIALS : Street Lighting,Street Lighting Work,EGEI,ELECT - STREET LIGHT,EN:WORKS MGT- ST LIG,52.50
22.12.2014,7500167833,72,153150,Enterprise (AOL) Ltd,231400,HIGHWAY EQUIPMENT & MATERIALS : Street Lighting,Street Lighting Work,EGEI,ELECT - STREET LIGHT,EN:WORKS MGT- ST LIG,53.00
22.12.2014,7500167833,73,153150,Enterprise (AOL) Ltd,231400,HIGHWAY EQUIPMENT & MATERIALS : Street Lighting,Street Lighting Work,EGEI,ELECT - STREET LIGHT,EN:WORKS MGT- ST LIG,59.25
22.12.2014,7500167833,74,153150,Enterprise (AOL) Ltd,231400,HIGHWAY EQUIPMENT & MATERIALS : Street Lighting,Street Lighting Work,EGEI,ELECT - STREET LIGHT,EN:WORKS MGT- ST LIG,36.00
22.12.2014,7500167833,75,153150,Enterprise (AOL) Ltd,231400,HIGHWAY EQUIPMENT & MATERIALS : Street Lighting,Street Lighting Work,EGEI,ELECT - STREET LIGHT,EN:WORKS MGT- ST LIG,59.50
22.12.2014,7500167833,76,153150,Enterprise (AOL) Ltd,231400,HIGHWAY EQUIPMENT & MATERIALS : Street Lighting,Street Lighting Work,EGEI,ELECT - STREET LIGHT,EN:WORKS MGT- ST LIG,53.00
22.12.2014,7500167833,77,153150,Enterprise (AOL) Ltd,231400,HIGHWAY EQUIPMENT & MATERIALS : Street Lighting,Street Lighting Work,EGEI,ELECT - STREET LIGHT,EN:WORKS MGT- ST LIG,58.00
22.12.2014,7500167833,78,153150,Enterprise (AOL) Ltd,231400,HIGHWAY EQUIPMENT & MATERIALS : Street Lighting,Street Lighting Work,EGEI,ELECT - STREET LIGHT,EN:WORKS MGT- ST LIG,112.00
22.12.2014,7500167833,79,153150,Enterprise (AOL) Ltd,231400,HIGHWAY EQUIPMENT & MATERIALS : Street Lighting,Street Lighting Work,EGEI,ELECT - STREET LIGHT,EN:WORKS MGT- ST LIG,41.00
22.12.2014,7500167833,80,153150,Enterprise (AOL) Ltd,231400,HIGHWAY EQUIPMENT & MATERIALS : Street Lighting,Street Lighting Work,EGEI,ELECT - STREET LIGHT,EN:WORKS MGT- ST LIG,36.00
22.12.2014,7500167840,1,136039,VIRGIN MEDIA PAYMENTS LTD,271700,ICT : Telecommunications - Fixed,01612158000 ISDN30 L,T & R ,TELEPHONES - RENTALS,EG:VOICE NETWORK COR,"1,278.33"
22.12.2014,7500167840,2,136039,VIRGIN MEDIA PAYMENTS LTD,271700,ICT : Telecommunications - Fixed,01612158000 ISDN30 C,T & R ,TELEPHONES - CALLS,EG:VOICE NETWORK COR,"4,479.35"
22.12.2014,7500167840,3,136039,VIRGIN MEDIA PAYMENTS LTD,271700,ICT : Telecommunications - Fixed,01612158000 ISDN30 L,T & R ,TELEPHONES - RENTALS,EG:VOICE NETWORK COR,"1,278.33"
22.12.2014,7500167840,4,136039,VIRGIN MEDIA PAYMENTS LTD,271700,ICT : Telecommunications - Fixed,01612158000 ISDN30 C,T & R ,TELEPHONES - CALLS,EG:VOICE NETWORK COR,"1,205.62"
22.12.2014,7500167840,5,136039,VIRGIN MEDIA PAYMENTS LTD,271700,ICT : Telecommunications - Fixed,01612158000 ISDN30 L,T & R ,TELEPHONES - RENTALS,EG:VOICE NETWORK COR,"1,278.33"
22.12.2014,7500167840,6,136039,VIRGIN MEDIA PAYMENTS LTD,271700,ICT : Telecommunications - Fixed,01612158000 ISDN30 C,T & R ,TELEPHONES - CALLS,EG:VOICE NETWORK COR,"3,171.69"
22.12.2014,7500167840,7,136039,VIRGIN MEDIA PAYMENTS LTD,271700,ICT : Telecommunications - Fixed,01612158000 ISDN30 L,T & R ,TELEPHONES - RENTALS,EG:VOICE NETWORK COR,"1,278.33"
22.12.2014,7500167840,8,136039,VIRGIN MEDIA PAYMENTS LTD,271700,ICT : Telecommunications - Fixed,01612158000 ISDN30 C,T & R ,TELEPHONES - CALLS,EG:VOICE NETWORK COR,611.03
22.12.2014,7500167840,9,136039,VIRGIN MEDIA PAYMENTS LTD,271700,ICT : Telecommunications - Fixed,01612158000 ISDN30 L,T & R ,TELEPHONES - RENTALS,EG:VOICE NETWORK COR,"1,278.66"
22.12.2014,7500167840,10,136039,VIRGIN MEDIA PAYMENTS LTD,271700,ICT : Telecommunications - Fixed,01612158000 ISDN30 C,T & R ,TELEPHONES - CALLS,EG:VOICE NETWORK COR,138.77
22.12.2014,7500167840,11,136039,VIRGIN MEDIA PAYMENTS LTD,271700,ICT : Telecommunications - Fixed,01612158000 ISDN30 L,T & R ,TELEPHONES - RENTALS,EG:VOICE NETWORK COR,"1,278.66"
22.12.2014,7500167840,12,136039,VIRGIN MEDIA PAYMENTS LTD,271700,ICT : Telecommunications - Fixed,01612158000 ISDN30 C,T & R ,TELEPHONES - CALLS,EG:VOICE NETWORK COR,352.80
22.12.2014,7500167840,13,136039,VIRGIN MEDIA PAYMENTS LTD,271700,ICT : Telecommunications - Fixed,01612158000 ISDN30 L,T & R ,TELEPHONES - RENTALS,EG:VOICE NETWORK COR,"1,278.66"
22.12.2014,7500167840,14,136039,VIRGIN MEDIA PAYMENTS LTD,271700,ICT : Telecommunications - Fixed,01612158000 ISDN30 C,T & R ,TELEPHONES - CALLS,EG:VOICE NETWORK COR,"1,255.37"
22.12.2014,7500167840,15,136039,VIRGIN MEDIA PAYMENTS LTD,271700,ICT : Telecommunications - Fixed,01612158000 ISDN30 L,T & R ,TELEPHONES - RENTALS,EG:VOICE NETWORK COR,"1,278.66"
22.12.2014,7500167840,16,136039,VIRGIN MEDIA PAYMENTS LTD,271700,ICT : Telecommunications - Fixed,01612158000 ISDN30 C,T & R ,TELEPHONES - CALLS,EG:VOICE NETWORK COR,"3,357.63"
23.12.2014,7500167884,1,132761,GB Group Plc,271500,ICT : Services,Uniserv OE Mail for,T & R ,IT MAINT SOFTWARE,EG: Business Systems,"12,058.12"
23.12.2014,7500167887,1,134058,Thomson Reuters Professional,202100,FINANCIAL SERVICES : Subscriptions,PLC Renewal 2014/5,T & R ,BOOKS PURCHASE,LD:LEGAL CENTRAL OFF,"6,150.00"
24.12.2014,7500167943,1,150881,NHS Trafford CCG,311600,MEDICAL : Services,NHS CCG - Oct Alcoho,T & R ,MEDICAL REQUISITES,ALCOHOL MISUSE DRUG,"1,798.40"
24.12.2014,7500167943,2,150881,NHS Trafford CCG,311600,MEDICAL : Services,NHS CCG - Oct Contra,T & R ,MEDICAL REQUISITES,CONTRACEPTIVES,"25,655.80"
24.12.2014,7500167943,3,150881,NHS Trafford CCG,311600,MEDICAL : Services,NHS CCG - Oct Drug R,T & R ,MEDICAL REQUISITES,METHADONE,"2,981.00"
24.12.2014,7500167943,4,150881,NHS Trafford CCG,311600,MEDICAL : Services,NHS CCG - Oct CDT Re,T & R ,MEDICAL REQUISITES,METHADONE,"9,618.80"
24.12.2014,7500167963,1,146670,Dodd Group (Midlands) Ltd,391113,WORKS - CONSTRUCTION : Buildings : Repair,Old Trafford Youth C,EGEI,EXTERNAL DAY-TO-DAY,CN:Bldg Serv Schemes,"17,545.79"
